Workbook

Sheet Notes
A1: PrecisionTrendAnalysis.xlsm; Traders Tip spreadsheet created for the September 2024 Issue
A2: Coded beginning 2024-July-05 by Ronald McAllister (rpmac_xltt@sprynet.com)
A4: This Workbook demonstrates an EXCEL version of the ideas presented
A5: by John F. Ehlers in an article titled "Precision Trend Analysis",
A6: which originally appeared in the September 2024 issue of
A7: "Technical Analysis of Stocks and Commodities" magazine.
A14: 2024July05 - This is the second T-Tip spreadsheet that has been adjusted for the April 15, 2024 problem.
A15: This spreadsheet also includes the "April 15 Repairs" tab (described below under June 12 tag) which, if you have not already done so,
A16: will allow you to repair older spreadsheets that were broken by this "Tax Day" problem.
A19: 2024June12 - This, the August 2024 T-Tip spreadsheet, is the first T-Tip that has been "adjusted" to correct the April 15, 2024 data retrieval failure caused by Yahoo Finance changes
A20: to their Stock Summary web page. These changes took effect on, or slightly before, April 15, 2024.
A22: It took a while to sus out what changed and how to reliably locate the information I use in these T-Tips.
A24: The result is a complete re-write of my data retrieval code as it applies to the information I need from the Stock Summary web page.
A25: No simple description of the necessary VBA code changes would be sufficient for those of you might wish to restore older T-Tips to service.
A27: So I have included in this T-Tip spreadsheet the capability to "FIX" older T-Tips spreadsheets by replacing the appropriate section of their VBA code
A28: using the the fully functional code contained in this August 2024 T-Tip spreadsheet as my Template.
A29: See tab "April 15 Repairs" for step by step instructions.
A31: Things discovered along the way
A32: It turns out that there is a plethora of interesting information burried in the Summary Sheet HTML but not shown on the web page you and I see.
A33: I pulled out and incorporated a couple of them by way of this April 15 fix:
A34: InputPriceData tab
A35: First Trade Date - the first date and time the current symbol was traded
A36: Market State - Will show correct Time Zone time and Time Zone code for the market where the current symbol is traded.
A37: Example: Retrieving symbol "^HIS" at 10:am EDT will display "HANG SENG INDEX (^HSI) -HKSE (Daily) At Close: 4:08 PM HKT"
A38: CalculationAndCharts tab
A39: Cell "A2" and the price chart title will now include market state, market time, and TimeZone Code.
A40: Follow tab
A41: Entries on the Follow Tab will also show Times and time zones for the marke where traded
A43: 2024Feb04 - Added "TallChart" Check Box and supporting functionality that allows the user to expand the charting area to use all of the vertical area that is "visible" on the worksheet.
A44: I found this to be a usefull toggle when the numer of user selected indicator subcharts scrunches them so tightly into the normal vertical space that much of the visual detail is lost.
A45: Note: "Visible" vertical space is sensitive to the level of "zoom" you choose for the worksheet (Slider at the bottom right of the sheet display)
A47: Just a note:
A48: November 2023 was the first T-Tip built using EXCEL 365. Specifically:
A49: Microsoft® Excel® for Microsoft 365 MSO (Version 2308 Build 16.0.16731.20052) 64-bit (plus any more recent updates to MSO as they happen)
A50: All previous T-Tip spreadsheets were built using EXCEL 2010.

Sheet InputPriceData
A1: Royal Bank of Canada (RY) -NYSE (Daily)
B2: First trade was: | C2: 1995-10-16T09:30:00 | M2: To retrieve data for symbols traded on non US Exchanges, | IJ2: 241.79
A3: Request Online Yahoo History for: | F3: Market State == > | G3: As Of: | H3: 15:07:00 | I3: EDT | M3: you will need to append the dot-suffix for the exchange to the symbol.
A4: Symbol | B4: RY | D4: Valid | I4: =OFFSET(I4,-2,0,1,1) -> 0 | M4: The following links provide a description of how to use the exchange suffix
A5: From | B5: =EDATE(HistReqEndDate,-360) -> 1994-07-17 | D5: Data | M5: along with a list of suffixes for the major world exchanges. | AD5: Trailing 12 Div return (Cur Close)
A6: To | B6: =NOW() -> 2024-07-17T12:32:03.420 | D6: Types | E6: =VLOOKUP(B7,D7:E10,2,FALSE) -> d | M6: https://help.yahoo.com/kb/finance/SLN2310.html
A7: Data Type | B7: Daily | D7: Daily | E7: d | M7: And
A8: Crumb | D8: Weekly | E8: w | M8: https://www.stockmarketeye.com/users-guide/ticker-symbols-and-data-providers/data-providers.html
A9: Available Data | D9: Monthly | E9: m
A10: Bar Count: | B10: 7229 | M10: You may search on “exchange suffixes” for additional discussions | AD10: =OFFSET(AC15,1,0,1,1)/OFFSET(N15,1,0,1,1) -> 0.02762724277
A11: From: | B11: =IF(B10<=0,"",OFFSET(B15,B10,IF(HistReqDataType="v",1,0),1,1)) -> 1995-10-16 | W11: Trailing 12 Month Dividend Returns
A12: To: | B12: =IF(B10<=0,"",IF(HistReqDataType="v",OFFSET(B15,2,1,1,1),OFFSET(B15,1,0,1,1))) -> 2024-07-05 | W12: Raw Close price on Dividend date | X12: Div Year and Month | Y12: Looking for year ago Div Year and Month | Z12: Year ago Div Date we found | AA12: row offset to year ago div Date | AB12: Same month flag | AC12: Trailing 12 Div Total | AD12: Trailing 12 Div return
Q13: Split History | S13: 2 | T13: Running | U13: Dividend History
B14: Raw Data Values | H14: Adjusted | I14: Price Adjust | J14: Vol Adjust | K14: Adjusted Values | P14: Last | Q14: Effective | R14: Shares | T14: Vol Adjust | V14: 109
A15: RelRow | B15: Date | C15: Open | D15: High | E15: Low | F15: Close | G15: Volume | H15: Close | I15: Factor | J15: Factor | K15: Open | L15: High | M15: Low | N15: Close | O15: Volume | P15: Trade | Q15: 45479 | R15: New | S15: Old | T15: 1 | U15: Date | V15: $ / Share
A16: 1 | B16: 2024-07-05 | C16: 110 | D16: 110.129997 | E16: 109.025002 | F16: 109.235397 | G16: 324453 | H16: 109.235397 | I16: =IF(F16=0,1,H16/F16) -> 1 | J16: =INDEX(OFFSET($T$15,0,0,$S$13+1,1),MATCH(B16,OFFSET($Q$15,0,0,$S$13+1,1),-1)) -> 1 | K16: =ROUND($I16*C16,2) -> 110 | L16: =ROUND($I16*D16,2) -> 110.13 | M16: 109.03 | N16: 109.24 | O16: =G16*J16 -> 324453 | Q16: 2006-04-07 | R16: 2 | S16: 1 | T16: 2 | U16: 2024-04-24 | V16: 1.01 | W16: =(INDEX(OFFSET($F$15,1,0,$B$10,1),MATCH(U16,OFFSET($B$15,1,0,$B$10,1),-1))) -> 97.269997 | X16: =YEAR(U16)&RIGHT("0"&MONTH(U16),2) -> 202404 | Y16: =YEAR(U16)-1&RIGHT("0"&MONTH(U16),2) -> 202304 | Z16: =OFFSET(U15,AA16,0,1,1) -> 2023-04-24 | AA16: =MATCH(Y16,OFFSET($X$15,A16,0,$V$14+1-A16,1),-1) -> 4 | AB16: =IF(OR(AND(YEAR(U16)=YEAR(Z16),MONTH(U16)=MONTH(Z16)),MONTH(U16)=MONTH(Z16)),1,0) -> 1 | AC16: =(V16+IF(AA16-AB16=0,0,IFERROR(SUM(OFFSET(V16,1,0,AA16-AB16-1,1)),0))) -> 3.018 | AD16: =AC16/(INDEX(OFFSET($F$15,1,0,$B$10,1),MATCH(U16,OFFSET($B$15,1,0,$B$10,1),-1))) -> 0.0310270391
A17: 2 | B17: 2024-07-03 | C17: 108.190002 | D17: 109.599998 | E17: 107.949997 | F17: 109.019997 | G17: 473700 | H17: 109.019997 | I17: =IF(F17=0,1,H17/F17) -> 1 | J17: =INDEX(OFFSET($T$15,0,0,$S$13+1,1),MATCH(B17,OFFSET($Q$15,0,0,$S$13+1,1),-1)) -> 1 | K17: =ROUND($I17*C17,2) -> 108.19 | L17: =ROUND($I17*D17,2) -> 109.6 | M17: =ROUND($I17*E17,2) -> 107.95 | N17: =ROUND($I17*F17,2) -> 109.02 | O17: =G17*J17 -> 473700 | Q17: 2000-10-06 | R17: 2 | S17: 1 | T17: 4 | U17: 2023-10-25 | V17: 0.983 | W17: =(INDEX(OFFSET($F$15,1,0,$B$10,1),MATCH(U17,OFFSET($B$15,1,0,$B$10,1),-1))) -> 79.110001 | X17: =YEAR(U17)&RIGHT("0"&MONTH(U17),2) -> 202310 | Y17: =YEAR(U17)-1&RIGHT("0"&MONTH(U17),2) -> 202210 | Z17: =OFFSET(U16,AA17,0,1,1) -> 2022-10-25 | AA17: =MATCH(Y17,OFFSET($X$15,A17,0,$V$14+1-A17,1),-1) -> 5 | AB17: =IF(OR(AND(YEAR(U17)=YEAR(Z17),MONTH(U17)=MONTH(Z17)),MONTH(U17)=MONTH(Z17)),1,0) -> 1 | AC17: =(V17+IF(AA17-AB17=0,0,IFERROR(SUM(OFFSET(V17,1,0,AA17-AB17-1,1)),0))) -> 3.971 | AD17: =AC17/(INDEX(OFFSET($F$15,1,0,$B$10,1),MATCH(U17,OFFSET($B$15,1,0,$B$10,1),-1))) -> 0.05019592908
A18: 3 | B18: 2024-07-02 | C18: 106 | D18: 107.669998 | E18: 105.93 | F18: 107.519997 | G18: 714300 | H18: 107.519997 | I18: 1 | J18: 1 | K18: 106 | L18: 107.67 | M18: 105.93 | N18: 107.52 | O18: 714300 | U18: 2023-07-25 | V18: 1.025 | W18: 98.709999 | X18: 202307 | Y18: 202207 | Z18: 2022-07-25 | AA18: 5 | AB18: 1 | AC18: 3.922 | AD18: 0.0397325503
A19: 4 | B19: 2024-07-01 | C19: 106.830002 | D19: 107.32 | E19: 105.970001 | F19: 105.980003 | G19: 419900 | H19: 105.980003 | I19: 1 | J19: 1 | K19: 106.83 | L19: 107.32 | M19: 105.97 | N19: 105.98 | O19: 419900 | U19: 2023-04-24 | V19: 0.975 | W19: 98.669998 | X19: 202304 | Y19: 202204 | Z19: 2022-04-22 | AA19: 5 | AB19: 1 | AC19: 3.888 | AD19: 0.03940407499
A20: 5 | B20: 2024-06-28 | C20: 106.129997 | D20: 106.730003 | E20: 105.949997 | F20: 106.379997 | G20: 632900 | H20: 106.379997 | I20: 1 | J20: 1 | K20: 106.13 | L20: 106.73 | M20: 105.95 | N20: 106.38 | O20: 632900 | U20: 2023-01-25 | V20: 0.988 | W20: 99.730003 | X20: 202301 | Y20: 202201 | Z20: 2022-01-25 | AA20: 5 | AB20: 1 | AC20: 3.867 | AD20: 0.0387746905
A21: 6 | B21: 2024-06-27 | C21: 105.699997 | D21: 106.230003 | E21: 105.209999 | F21: 106.129997 | G21: 482200 | H21: 106.129997 | I21: 1 | J21: 1 | K21: 105.7 | L21: 106.23 | M21: 105.21 | N21: 106.13 | O21: 482200 | U21: 2022-10-25 | V21: 0.934 | W21: 91.019997 | X21: 202210 | Y21: 202110 | Z21: 2021-10-25 | AA21: 5 | AB21: 1 | AC21: 3.829 | AD21: 0.04206767882
A22: 7 | B22: 2024-06-26 | C22: 105.599998 | D22: 105.690002 | E22: 105.059998 | F22: 105.599998 | G22: 482600 | H22: 105.599998 | I22: 1 | J22: 1 | K22: 105.6 | L22: 105.69 | M22: 105.06 | N22: 105.6 | O22: 482600 | U22: 2022-07-25 | V22: 0.991 | W22: 95.900002 | X22: 202207 | Y22: 202107 | Z22: 2021-07-23 | AA22: 5 | AB22: 1 | AC22: 3.769 | AD22: 0.03930135476
A23: 8 | B23: 2024-06-25 | C23: 106.389999 | D23: 106.699997 | E23: 105.610001 | F23: 106.360001 | G23: 1031900 | H23: 106.360001 | I23: 1 | J23: 1 | K23: 106.39 | L23: 106.7 | M23: 105.61 | N23: 106.36 | O23: 1031900 | U23: 2022-04-22 | V23: 0.954 | W23: 104.410004 | X23: 202204 | Y23: 202104 | Z23: 2021-04-21 | AA23: 5 | AB23: 1 | AC23: 3.638 | AD23: 0.03484340447
A24: 9 | B24: 2024-06-24 | C24: 104.120003 | D24: 106.360001 | E24: 104.120003 | F24: 106.220001 | G24: 814300 | H24: 106.220001 | I24: 1 | J24: 1 | K24: 104.12 | L24: 106.36 | M24: 104.12 | N24: 106.22 | O24: 814300 | U24: 2022-01-25 | V24: 0.95 | W24: 111.889999 | X24: 202201 | Y24: 202101 | Z24: 2021-01-25 | AA24: 5 | AB24: 1 | AC24: 3.541 | AD24: 0.03164715374
A25: 10 | B25: 2024-06-21 | C25: 103.029999 | D25: 103.830002 | E25: 102.519997 | F25: 103.629997 | G25: 954600 | H25: 103.629997 | I25: 1 | J25: 1 | K25: 103.03 | L25: 103.83 | M25: 102.52 | N25: 103.63 | O25: 954600 | U25: 2021-10-25 | V25: 0.874 | W25: 106.949997 | X25: 202110 | Y25: 202010 | Z25: 2020-10-23 | AA25: 5 | AB25: 1 | AC25: 3.439 | AD25: 0.03215521362
A26: 11 | B26: 2024-06-20 | C26: 103.410004 | D26: 103.650002 | E26: 102.830002 | F26: 103.379997 | G26: 1024900 | H26: 103.379997 | I26: 1 | J26: 1 | K26: 103.41 | L26: 103.65 | M26: 102.83 | N26: 103.38 | O26: 1024900 | U26: 2021-07-23 | V26: 0.86 | W26: 99.970001 | X26: 202107 | Y26: 202007 | Z26: 2020-07-24 | AA26: 5 | AB26: 1 | AC26: 3.387 | AD26: 0.03388016371
A27: 12 | B27: 2024-06-18 | C27: 103.589996 | D27: 104.389999 | E27: 103.360001 | F27: 103.809998 | G27: 979800 | H27: 103.809998 | I27: 1 | J27: 1 | K27: 103.59 | L27: 104.39 | M27: 103.36 | N27: 103.81 | O27: 979800 | U27: 2021-04-21 | V27: 0.857 | W27: 92.900002 | X27: 202104 | Y27: 202004 | Z27: 2020-04-22 | AA27: 5 | AB27: 1 | AC27: 3.332 | AD27: 0.03586652237
A28: 13 | B28: 2024-06-17 | C28: 103.699997 | D28: 103.779999 | E28: 102.690002 | F28: 103.589996 | G28: 884800 | H28: 103.589996 | I28: 1 | J28: 1 | K28: 103.7 | L28: 103.78 | M28: 102.69 | N28: 103.59 | O28: 884800 | U28: 2021-01-25 | V28: 0.848 | W28: 83.400002 | X28: 202101 | Y28: 202001 | Z28: 2020-01-24 | AA28: 5 | AB28: 1 | AC28: 3.235 | AD28: 0.03878896789
A29: 14 | B29: 2024-06-14 | C29: 103.690002 | D29: 104.059998 | E29: 102.440002 | F29: 103.940002 | G29: 597100 | H29: 103.940002 | I29: 1 | J29: 1 | K29: 103.69 | L29: 104.06 | M29: 102.44 | N29: 103.94 | O29: 597100 | U29: 2020-10-23 | V29: 0.822 | W29: 73.300003 | X29: 202010 | Y29: 201910 | Z29: 2019-10-23 | AA29: 5 | AB29: 1 | AC29: 3.187 | AD29: 0.04347885225
A30: 15 | B30: 2024-06-13 | C30: 105.309998 | D30: 105.32 | E30: 104.010002 | F30: 104.389999 | G30: 537500 | H30: 104.389999 | I30: 1 | J30: 1 | K30: 105.31 | L30: 105.32 | M30: 104.01 | N30: 104.39 | O30: 537500 | U30: 2020-07-24 | V30: 0.805 | W30: 69.839996 | X30: 202007 | Y30: 201907 | Z30: 2019-07-24 | AA30: 5 | AB30: 1 | AC30: 3.167 | AD30: 0.0453465089
A31: 16 | B31: 2024-06-12 | C31: 106.150002 | D31: 106.690002 | E31: 105.25 | F31: 105.5 | G31: 652200 | H31: 105.5 | I31: 1 | J31: 1 | K31: 106.15 | L31: 106.69 | M31: 105.25 | N31: 105.5 | O31: 652200 | U31: 2020-04-22 | V31: 0.76 | W31: 58.43 | X31: 202004 | Y31: 201904 | Z31: 2019-04-24 | AA31: 5 | AB31: 1 | AC31: 3.138 | AD31: 0.05370528838
A32: 17 | B32: 2024-06-11 | C32: 105.599998 | D32: 105.779999 | E32: 105.019997 | F32: 105.379997 | G32: 382800 | H32: 105.379997 | I32: 1 | J32: 1 | K32: 105.6 | L32: 105.78 | M32: 105.02 | N32: 105.38 | O32: 382800 | U32: 2020-01-24 | V32: 0.8 | W32: 80.480003 | X32: 202001 | Y32: 201901 | Z32: 2019-04-24 | AA32: 4 | AB32: 0 | AC32: 3.138 | AD32: 0.03899105222
A33: 18 | B33: 2024-06-10 | C33: 106.07 | D33: 106.419998 | E33: 105.660004 | F33: 106.230003 | G33: 1807200 | H33: 106.230003 | I33: 1 | J33: 1 | K33: 106.07 | L33: 106.42 | M33: 105.66 | N33: 106.23 | O33: 1807200 | U33: 2019-10-23 | V33: 0.802 | W33: 81.360001 | X33: 201910 | Y33: 201810 | Z33: 2018-10-24 | AA33: 4 | AB33: 1 | AC33: 2.338 | AD33: 0.02873647949
A34: 19 | B34: 2024-06-07 | C34: 107.099998 | D34: 107.230003 | E34: 106.220001 | F34: 106.389999 | G34: 395000 | H34: 106.389999 | I34: 1 | J34: 1 | K34: 107.1 | L34: 107.23 | M34: 106.22 | N34: 106.39 | O34: 395000 | U34: 2019-07-24 | V34: 0.776 | W34: 79.860001 | X34: 201907 | Y34: 201807 | Z34: 2018-07-25 | AA34: 4 | AB34: 1 | AC34: 2.285 | AD34: 0.02861257164
A35: 20 | B35: 2024-06-06 | C35: 107.300003 | D35: 107.669998 | E35: 106.589996 | F35: 107.620003 | G35: 418500 | H35: 107.620003 | I35: 1 | J35: 1 | K35: 107.3 | L35: 107.67 | M35: 106.59 | N35: 107.62 | O35: 418500 | U35: 2019-04-24 | V35: 0.76 | W35: 78.160004 | X35: 201904 | Y35: 201804 | Z35: 2018-04-24 | AA35: 4 | AB35: 1 | AC35: 2.223 | AD35: 0.02844165668
A36: 21 | B36: 2024-06-05 | C36: 107.830002 | D36: 108.07 | E36: 106.400002 | F36: 107.110001 | G36: 605100 | H36: 107.110001 | I36: 1 | J36: 1 | K36: 107.83 | L36: 108.07 | M36: 106.4 | N36: 107.11 | O36: 605100 | U36: 2018-10-24 | V36: 0.749 | W36: 72.480003 | X36: 201810 | Y36: 201710 | Z36: 2018-01-24 | AA36: 4 | AB36: 0 | AC36: 2.928 | AD36: 0.04039734932
A37: 22 | B37: 2024-06-04 | C37: 107.410004 | D37: 108.440002 | E37: 107 | F37: 107.480003 | G37: 568300 | H37: 107.480003 | I37: 1 | J37: 1 | K37: 107.41 | L37: 108.44 | M37: 107 | N37: 107.48 | O37: 568300 | U37: 2018-07-25 | V37: 0.714 | W37: 77.400002 | X37: 201807 | Y37: 201707 | Z37: 2017-07-24 | AA37: 4 | AB37: 1 | AC37: 2.179 | AD37: 0.02815245405
A38: 23 | B38: 2024-06-03 | C38: 109.5 | D38: 109.510002 | E38: 107.519997 | F38: 108.599998 | G38: 614600 | H38: 108.599998 | I38: 1 | J38: 1 | K38: 109.5 | L38: 109.51 | M38: 107.52 | N38: 108.6 | O38: 614600 | U38: 2018-04-24 | V38: 0.732 | W38: 75.269997 | X38: 201804 | Y38: 201704 | Z38: 2017-04-21 | AA38: 4 | AB38: 1 | AC38: 2.159 | AD38: 0.02868340755
A39: 24 | B39: 2024-05-31 | C39: 109.25 | D39: 109.470001 | E39: 107.459999 | F39: 109.269997 | G39: 1654400 | H39: 109.269997 | I39: 1 | J39: 1 | K39: 109.25 | L39: 109.47 | M39: 107.46 | N39: 109.27 | O39: 1654400 | U39: 2018-01-24 | V39: 0.733 | W39: 85.970001 | X39: 201801 | Y39: 201701 | Z39: 2017-01-24 | AA39: 4 | AB39: 1 | AC39: 2.073 | AD39: 0.02411306242
A40: 25 | B40: 2024-05-30 | C40: 105.099998 | D40: 108.660004 | E40: 105 | F40: 108.400002 | G40: 1630500 | H40: 108.400002 | I40: 1 | J40: 1 | K40: 105.1 | L40: 108.66 | M40: 105 | N40: 108.4 | O40: 1630500 | U40: 2017-07-24 | V40: 0.694 | W40: 74.940002 | X40: 201707 | Y40: 201607 | Z40: 2016-07-22 | AA40: 5 | AB40: 1 | AC40: 2.59 | AD40: 0.0345609812
A41: 26 | B41: 2024-05-29 | C41: 104.190002 | D41: 104.309998 | E41: 102.800003 | F41: 102.849998 | G41: 668700 | H41: 102.849998 | I41: 1 | J41: 1 | K41: 104.19 | L41: 104.31 | M41: 102.8 | N41: 102.85 | O41: 668700 | U41: 2017-04-21 | V41: 0.646 | W41: 70 | X41: 201704 | Y41: 201604 | Z41: 2016-04-21 | AA41: 5 | AB41: 1 | AC41: 2.515 | AD41: 0.03592857143
A42: 27 | B42: 2024-05-28 | C42: 105.309998 | D42: 105.489998 | E42: 104.620003 | F42: 105.040001 | G42: 427900 | H42: 105.040001 | I42: 1 | J42: 1 | K42: 105.31 | L42: 105.49 | M42: 104.62 | N42: 105.04 | O42: 427900 | U42: 2017-01-24 | V42: 0.627 | W42: 71 | X42: 201701 | Y42: 201601 | Z42: 2016-01-22 | AA42: 5 | AB42: 1 | AC42: 2.509 | AD42: 0.03533802817
A43: 28 | B43: 2024-05-24 | C43: 104.290001 | D43: 105.769997 | E43: 104.190002 | F43: 105.300003 | G43: 862400 | H43: 105.300003 | I43: 1 | J43: 1 | K43: 104.29 | L43: 105.77 | M43: 104.19 | N43: 105.3 | O43: 862400 | U43: 2016-10-24 | V43: 0.623 | W43: 62.59 | X43: 201610 | Y43: 201510 | Z43: 2015-10-22 | AA43: 5 | AB43: 1 | AC43: 2.436 | AD43: 0.03891995526
A44: 29 | B44: 2024-05-23 | C44: 106.480003 | D44: 106.650002 | E44: 104.279999 | F44: 104.610001 | G44: 570300 | H44: 104.610001 | I44: 1 | J44: 1 | K44: 106.48 | L44: 106.65 | M44: 104.28 | N44: 104.61 | O44: 570300 | U44: 2016-07-22 | V44: 0.619 | W44: 60.580002 | X44: 201607 | Y44: 201507 | Z44: 2015-07-23 | AA44: 5 | AB44: 1 | AC44: 2.414 | AD44: 0.03984813338
A45: 30 | B45: 2024-05-22 | C45: 105.389999 | D45: 106.43 | E45: 105 | F45: 105.959999 | G45: 933900 | H45: 105.959999 | I45: 1 | J45: 1 | K45: 105.39 | L45: 106.43 | M45: 105 | N45: 105.96 | O45: 933900 | U45: 2016-04-21 | V45: 0.64 | W45: 60.849998 | X45: 201604 | Y45: 201504 | Z45: 2015-04-21 | AA45: 5 | AB45: 1 | AC45: 2.386 | AD45: 0.03921117631
A46: 31 | B46: 2024-05-21 | C46: 105.480003 | D46: 106.379997 | E46: 105.260002 | F46: 105.879997 | G46: 658600 | H46: 105.879997 | I46: 1 | J46: 1 | K46: 105.48 | L46: 106.38 | M46: 105.26 | N46: 105.88 | O46: 658600 | U46: 2016-01-22 | V46: 0.554 | W46: 48.970001 | X46: 201601 | Y46: 201501 | Z46: 2015-01-22 | AA46: 5 | AB46: 1 | AC46: 2.376 | AD46: 0.04851950074
A47: 32 | B47: 2024-05-20 | C47: 106.790001 | D47: 107.199997 | E47: 105.839996 | F47: 105.839996 | G47: 328000 | H47: 105.839996 | I47: 1 | J47: 1 | K47: 106.79 | L47: 107.2 | M47: 105.84 | N47: 105.84 | O47: 328000 | U47: 2015-10-22 | V47: 0.601 | W47: 56.73 | X47: 201510 | Y47: 201410 | Z47: 2014-10-23 | AA47: 5 | AB47: 1 | AC47: 2.43 | AD47: 0.04283447911
A48: 33 | B48: 2024-05-17 | C48: 106.150002 | D48: 106.870003 | E48: 105.769997 | F48: 106.790001 | G48: 1492600 | H48: 106.790001 | I48: 1 | J48: 1 | K48: 106.15 | L48: 106.87 | M48: 105.77 | N48: 106.79 | O48: 1492600 | U48: 2015-07-23 | V48: 0.591 | W48: 57.799999 | X48: 201507 | Y48: 201407 | Z48: 2014-07-22 | AA48: 5 | AB48: 1 | AC48: 2.496 | AD48: 0.04318339175
A49: 34 | B49: 2024-05-16 | C49: 105.32 | D49: 106.489998 | E49: 105.18 | F49: 105.989998 | G49: 812700 | H49: 105.989998 | I49: 1 | J49: 1 | K49: 105.32 | L49: 106.49 | M49: 105.18 | N49: 105.99 | O49: 812700 | U49: 2015-04-21 | V49: 0.63 | W49: 65.349998 | X49: 201504 | Y49: 201404 | Z49: 2014-04-22 | AA49: 5 | AB49: 1 | AC49: 2.566 | AD49: 0.0392654947
A50: 35 | B50: 2024-05-15 | C50: 104.550003 | D50: 105.519997 | E50: 104.220001 | F50: 105.489998 | G50: 606100 | H50: 105.489998 | I50: 1 | J50: 1 | K50: 104.55 | L50: 105.52 | M50: 104.22 | N50: 105.49 | O50: 606100 | U50: 2015-01-22 | V50: 0.608 | W50: 60.259998 | X50: 201501 | Y50: 201401 | Z50: 2014-01-23 | AA50: 5 | AB50: 1 | AC50: 2.581 | AD50: 0.0428310668
A51: 36 | B51: 2024-05-14 | C51: 104.989998 | D51: 105 | E51: 103.919998 | F51: 104.300003 | G51: 593200 | H51: 104.300003 | I51: 1 | J51: 1 | K51: 104.99 | L51: 105 | M51: 103.92 | N51: 104.3 | O51: 593200 | U51: 2014-10-23 | V51: 0.667 | W51: 70.389999 | X51: 201410 | Y51: 201310 | Z51: 2013-10-22 | AA51: 5 | AB51: 1 | AC51: 2.578 | AD51: 0.03662452105
A52: 37 | B52: 2024-05-13 | C52: 103.5 | D52: 104.709999 | E52: 103.300003 | F52: 104.610001 | G52: 561500 | H52: 104.610001 | I52: 1 | J52: 1 | K52: 103.5 | L52: 104.71 | M52: 103.3 | N52: 104.61 | O52: 561500 | U52: 2014-07-22 | V52: 0.661 | W52: 73.919998 | X52: 201407 | Y52: 201307 | Z52: 2013-07-23 | AA52: 5 | AB52: 1 | AC52: 2.561 | AD52: 0.03464556371
A53: 38 | B53: 2024-05-10 | C53: 103.480003 | D53: 104.080002 | E53: 103.18 | F53: 103.209999 | G53: 540100 | H53: 103.209999 | I53: 1 | J53: 1 | K53: 103.48 | L53: 104.08 | M53: 103.18 | N53: 103.21 | O53: 540100 | U53: 2014-04-22 | V53: 0.645 | W53: 65.690002 | X53: 201404 | Y53: 201304 | Z53: 2013-04-23 | AA53: 5 | AB53: 1 | AC53: 2.51 | AD53: 0.03820977201
A54: 39 | B54: 2024-05-09 | C54: 102.099998 | D54: 103.110001 | E54: 101.959999 | F54: 103.089996 | G54: 618600 | H54: 103.089996 | I54: 1 | J54: 1 | K54: 102.1 | L54: 103.11 | M54: 101.96 | N54: 103.09 | O54: 618600 | U54: 2014-01-23 | V54: 0.605 | W54: 64.379997 | X54: 201401 | Y54: 201301 | Z54: 2013-01-22 | AA54: 5 | AB54: 1 | AC54: 2.48 | AD54: 0.0385212817
A55: 40 | B55: 2024-05-08 | C55: 100.620003 | D55: 101.980003 | E55: 100.32 | F55: 101.849998 | G55: 564900 | H55: 101.849998 | I55: 1 | J55: 1 | K55: 100.62 | L55: 101.98 | M55: 100.32 | N55: 101.85 | O55: 564900 | U55: 2013-10-22 | V55: 0.65 | W55: 67.199997 | X55: 201310 | Y55: 201210 | Z55: 2012-10-23 | AA55: 5 | AB55: 1 | AC55: 2.48 | AD55: 0.03690476355
A56: 41 | B56: 2024-05-07 | C56: 102 | D56: 102.120003 | E56: 100.889999 | F56: 101.019997 | G56: 634500 | H56: 101.019997 | I56: 1 | J56: 1 | K56: 102 | L56: 102.12 | M56: 100.89 | N56: 101.02 | O56: 634500 | U56: 2013-07-23 | V56: 0.61 | W56: 63.220001 | X56: 201307 | Y56: 201207 | Z56: 2012-07-24 | AA56: 5 | AB56: 1 | AC56: 2.434 | AD56: 0.03850047392
A57: 42 | B57: 2024-05-06 | C57: 101.839996 | D57: 102.040001 | E57: 100.959999 | F57: 101.82 | G57: 1596000 | H57: 101.82 | I57: 1 | J57: 1 | K57: 101.84 | L57: 102.04 | M57: 100.96 | N57: 101.82 | O57: 1596000 | U57: 2013-04-23 | V57: 0.615 | W57: 58.360001 | X57: 201304 | Y57: 201204 | Z57: 2012-04-23 | AA57: 5 | AB57: 1 | AC57: 2.385 | AD57: 0.04086703151
A58: 43 | B58: 2024-05-03 | C58: 100.110001 | D58: 101.309998 | E58: 99.989998 | F58: 101.169998 | G58: 2470600 | H58: 101.169998 | I58: 1 | J58: 1 | K58: 100.11 | L58: 101.31 | M58: 99.99 | N58: 101.17 | O58: 2470600 | U58: 2013-01-22 | V58: 0.605 | W58: 62.16 | X58: 201301 | Y58: 201201 | Z58: 2012-01-24 | AA58: 5 | AB58: 1 | AC58: 2.345 | AD58: 0.03772522523
A59: 44 | B59: 2024-05-02 | C59: 98.040001 | D59: 99.339996 | E59: 97.720001 | F59: 99.220001 | G59: 1936700 | H59: 99.220001 | I59: 1 | J59: 1 | K59: 98.04 | L59: 99.34 | M59: 97.72 | N59: 99.22 | O59: 1936700 | U59: 2012-10-23 | V59: 0.604 | W59: 57.360001 | X59: 201210 | Y59: 201110 | Z59: 2011-10-24 | AA59: 5 | AB59: 1 | AC59: 2.275 | AD59: 0.03966178452
A60: 45 | B60: 2024-05-01 | C60: 96.980003 | D60: 98.290001 | E60: 96.519997 | F60: 97.379997 | G60: 534600 | H60: 97.379997 | I60: 1 | J60: 1 | K60: 96.98 | L60: 98.29 | M60: 96.52 | N60: 97.38 | O60: 534600 | U60: 2012-07-24 | V60: 0.561 | W60: 49.790001 | X60: 201207 | Y60: 201107 | Z60: 2011-07-22 | AA60: 5 | AB60: 1 | AC60: 2.205 | AD60: 0.04428600032
A61: 46 | B61: 2024-04-30 | C61: 97.18 | D61: 97.959999 | E61: 96.739998 | F61: 96.830002 | G61: 799500 | H61: 96.830002 | I61: 1 | J61: 1 | K61: 97.18 | L61: 97.96 | M61: 96.74 | N61: 96.83 | O61: 799500 | U61: 2012-04-23 | V61: 0.575 | W61: 56.93 | X61: 201204 | Y61: 201104 | Z61: 2011-04-21 | AA61: 5 | AB61: 1 | AC61: 2.216 | AD61: 0.03892499561
A62: 47 | B62: 2024-04-29 | C62: 98.309998 | D62: 98.669998 | E62: 97.599998 | F62: 97.989998 | G62: 575700 | H62: 97.989998 | I62: 1 | J62: 1 | K62: 98.31 | L62: 98.67 | M62: 97.6 | N62: 97.99 | O62: 575700 | U62: 2012-01-24 | V62: 0.535 | W62: 53.169998 | X62: 201201 | Y62: 201101 | Z62: 2011-01-24 | AA62: 5 | AB62: 1 | AC62: 2.155 | AD62: 0.0405303758
A63: 48 | B63: 2024-04-26 | C63: 97.970001 | D63: 98.449997 | E63: 97.599998 | F63: 98.160004 | G63: 502500 | H63: 98.160004 | I63: 1 | J63: 1 | K63: 97.97 | L63: 98.45 | M63: 97.6 | N63: 98.16 | O63: 502500 | U63: 2011-10-24 | V63: 0.534 | W63: 47.830002 | X63: 201110 | Y63: 201010 | Z63: 2010-10-22 | AA63: 5 | AB63: 1 | AC63: 2.122 | AD63: 0.04436545915
A64: 49 | B64: 2024-04-25 | C64: 96.440002 | D64: 97.970001 | E64: 95.839996 | F64: 97.68 | G64: 649100 | H64: 97.68 | I64: 1 | J64: 1 | K64: 96.44 | L64: 97.97 | M64: 95.84 | N64: 97.68 | O64: 649100 | U64: 2011-07-22 | V64: 0.572 | W64: 56.169998 | X64: 201107 | Y64: 201007 | Z64: 2010-07-22 | AA64: 5 | AB64: 1 | AC64: 2.079 | AD64: 0.03701264152
A65: 50 | B65: 2024-04-24 | C65: 98.790001 | D65: 98.809998 | E65: 96.82 | F65: 97.269997 | G65: 3537100 | H65: 97.269997 | I65: 1 | J65: 1 | K65: 98.79 | L65: 98.81 | M65: 96.82 | N65: 97.27 | O65: 3537100 | U65: 2011-04-21 | V65: 0.514 | W65: 62.889999 | X65: 201104 | Y65: 201004 | Z65: 2010-04-20 | AA65: 5 | AB65: 1 | AC65: 1.989 | AD65: 0.03162665021
A66: 51 | B66: 2024-04-23 | C66: 99.489998 | D66: 100.25 | E66: 99.260002 | F66: 99.849998 | G66: 1954000 | H66: 98.840004 | I66: 0.9898848871 | J66: 1 | K66: 98.48 | L66: 99.24 | M66: 98.26 | N66: 98.84 | O66: 1954000 | U66: 2011-01-24 | V66: 0.502 | W66: 53.669998 | X66: 201101 | Y66: 201001 | Z66: 2010-01-22 | AA66: 5 | AB66: 1 | AC66: 1.958 | AD66: 0.03648220743
A67: 52 | B67: 2024-04-22 | C67: 98.379997 | D67: 99.32 | E67: 98.07 | F67: 99.199997 | G67: 3192900 | H67: 98.196571 | I67: 0.9898848182 | J67: 1 | K67: 97.38 | L67: 98.32 | M67: 97.08 | N67: 98.2 | O67: 3192900 | U67: 2010-10-22 | V67: 0.491 | W67: 54.299999 | X67: 201010 | Y67: 200910 | Z67: 2009-10-22 | AA67: 5 | AB67: 1 | AC67: 1.932 | AD67: 0.03558011115
A68: 53 | B68: 2024-04-19 | C68: 97 | D68: 98.120003 | E68: 96.730003 | F68: 97.860001 | G68: 882500 | H68: 96.870132 | I68: 0.9898848458 | J68: 1 | K68: 96.02 | L68: 97.13 | M68: 95.75 | N68: 96.87 | O68: 882500 | U68: 2010-07-22 | V68: 0.482 | W68: 50.02 | X68: 201007 | Y68: 200907 | Z68: 2009-07-23 | AA68: 5 | AB68: 1 | AC68: 1.915 | AD68: 0.03828468613
A69: 54 | B69: 2024-04-18 | C69: 96.730003 | D69: 97.699997 | E69: 96.43 | F69: 96.900002 | G69: 675600 | H69: 95.919846 | I69: 0.9898848712 | J69: 1 | K69: 95.75 | L69: 96.71 | M69: 95.45 | N69: 95.92 | O69: 675600 | U69: 2010-04-20 | V69: 0.483 | W69: 61.470001 | X69: 201004 | Y69: 200904 | Z69: 2009-04-21 | AA69: 5 | AB69: 1 | AC69: 1.885 | AD69: 0.03066536472
A70: 55 | B70: 2024-04-17 | C70: 96.559998 | D70: 97.93 | E70: 96.129997 | F70: 96.779999 | G70: 821000 | H70: 95.801056 | I70: 0.9898848625 | J70: 1 | K70: 95.58 | L70: 96.94 | M70: 95.16 | N70: 95.8 | O70: 821000 | U70: 2010-01-22 | V70: 0.476 | W70: 49.93 | X70: 201001 | Y70: 200901 | Z70: 2009-01-22 | AA70: 5 | AB70: 1 | AC70: 1.809 | AD70: 0.03623072301
A71: 56 | B71: 2024-04-16 | C71: 97.330002 | D71: 97.419998 | E71: 96.199997 | F71: 96.400002 | G71: 911300 | H71: 95.424904 | I71: 0.9898848757 | J71: 1 | K71: 96.35 | L71: 96.43 | M71: 95.23 | N71: 95.42 | O71: 911300 | U71: 2009-10-22 | V71: 0.474 | W71: 53.98 | X71: 200910 | Y71: 200810 | Z71: 2008-10-23 | AA71: 5 | AB71: 1 | AC71: 1.729 | AD71: 0.03203038162
A72: 57 | B72: 2024-04-15 | C72: 99.290001 | D72: 99.720001 | E72: 97.5 | F72: 97.919998 | G72: 583600 | H72: 96.92952 | I72: 0.9898848241 | J72: 1 | K72: 98.29 | L72: 98.71 | M72: 96.51 | N72: 96.93 | O72: 583600 | U72: 2009-07-23 | V72: 0.452 | W72: 46.02 | X72: 200907 | Y72: 200807 | Z72: 2008-07-22 | AA72: 5 | AB72: 1 | AC72: 1.656 | AD72: 0.03598435463
A73: 58 | B73: 2024-04-12 | C73: 99.459999 | D73: 99.879997 | E73: 98.139999 | F73: 98.529999 | G73: 826500 | H73: 97.533356 | I73: 0.9898848776 | J73: 1 | K73: 98.45 | L73: 98.87 | M73: 97.15 | N73: 97.53 | O73: 826500 | U73: 2009-04-21 | V73: 0.407 | W73: 33.459999 | X73: 200904 | Y73: 200804 | Z73: 2008-04-22 | AA73: 5 | AB73: 1 | AC73: 1.702 | AD73: 0.05086670804
A74: 59 | B74: 2024-04-11 | C74: 100.879997 | D74: 100.949997 | E74: 99.559998 | F74: 100.360001 | G74: 822500 | H74: 99.344841 | I74: 0.9898848148 | J74: 1 | K74: 99.86 | L74: 99.93 | M74: 98.55 | N74: 99.34 | O74: 822500 | U74: 2009-01-22 | V74: 0.396 | W74: 23.860001 | X74: 200901 | Y74: 200801 | Z74: 2008-01-22 | AA74: 5 | AB74: 1 | AC74: 1.791 | AD74: 0.07506286358
A75: 60 | B75: 2024-04-10 | C75: 101.489998 | D75: 101.489998 | E75: 100.199997 | F75: 100.940002 | G75: 1374100 | H75: 99.918976 | I75: 0.9898848229 | J75: 1 | K75: 100.46 | L75: 100.46 | M75: 99.19 | N75: 99.92 | O75: 1374100 | U75: 2008-10-23 | V75: 0.401 | W75: 37.189999 | X75: 200810 | Y75: 200710 | Z75: 2007-10-23 | AA75: 5 | AB75: 1 | AC75: 1.885 | AD75: 0.05068566955
A76: 61 | B76: 2024-04-09 | C76: 103.300003 | D76: 103.879997 | E76: 101.839996 | F76: 102.779999 | G76: 831800 | H76: 101.740364 | I76: 0.989884851 | J76: 1 | K76: 102.26 | L76: 102.83 | M76: 100.81 | N76: 101.74 | O76: 831800 | U76: 2008-07-22 | V76: 0.498 | W76: 44.919998 | X76: 200807 | Y76: 200707 | Z76: 2007-07-24 | AA76: 5 | AB76: 1 | AC76: 2.002 | AD76: 0.04456812309
A77: 62 | B77: 2024-04-08 | C77: 102.349998 | D77: 103.080002 | E77: 102.209999 | F77: 103.050003 | G77: 771900 | H77: 102.007637 | I77: 0.9898848523 | J77: 1 | K77: 101.31 | L77: 102.04 | M77: 101.18 | N77: 102.01 | O77: 771900 | U77: 2008-04-22 | V77: 0.496 | W77: 47.689999 | X77: 200804 | Y77: 200704 | Z77: 2007-04-23 | AA77: 5 | AB77: 1 | AC77: 1.943 | AD77: 0.04074229484
A78: 63 | B78: 2024-04-05 | C78: 101 | D78: 102.540001 | E78: 100.699997 | F78: 102.339996 | G78: 784700 | H78: 101.30481 | I78: 0.9898848345 | J78: 1 | K78: 99.98 | L78: 101.5 | M78: 99.68 | N78: 101.3 | O78: 784700 | U78: 2008-01-22 | V78: 0.49 | W78: 47.130001 | X78: 200801 | Y78: 200701 | Z78: 2007-01-23 | AA78: 5 | AB78: 1 | AC78: 1.852 | AD78: 0.03929556462
A79: 64 | B79: 2024-04-04 | C79: 101.110001 | D79: 102.32 | E79: 100.510002 | F79: 100.980003 | G79: 2542800 | H79: 99.958572 | I79: 0.9898848191 | J79: 1 | K79: 100.09 | L79: 101.29 | M79: 99.49 | N79: 99.96 | O79: 2542800 | U79: 2007-10-23 | V79: 0.518 | W79: 55.599998 | X79: 200710 | Y79: 200610 | Z79: 2006-10-24 | AA79: 5 | AB79: 1 | AC79: 1.703 | AD79: 0.0306294975
A80: 65 | B80: 2024-04-03 | C80: 99.489998 | D80: 100.720001 | E80: 99.360001 | F80: 100.260002 | G80: 1741500 | H80: 99.245857 | I80: 0.9898848496 | J80: 1 | K80: 98.48 | L80: 99.7 | M80: 98.35 | N80: 99.25 | O80: 1741500 | U80: 2007-07-24 | V80: 0.439 | W80: 53.990002 | X80: 200707 | Y80: 200607 | Z80: 2006-07-24 | AA80: 5 | AB80: 1 | AC80: 1.541 | AD80: 0.0285423216
A81: 66 | B81: 2024-04-02 | C81: 99.900002 | D81: 100 | E81: 99.239998 | F81: 99.610001 | G81: 1757100 | H81: 98.602432 | I81: =IF(F81=0,1,H81/F81) -> 0.9898848611 | J81: =INDEX(OFFSET($T$15,0,0,$S$13+1,1),MATCH(B81,OFFSET($Q$15,0,0,$S$13+1,1),-1)) -> 1 | K81: =ROUND($I81*C81,2) -> 98.89 | L81: =ROUND($I81*D81,2) -> 98.99 | M81: =ROUND($I81*E81,2) -> 98.24 | N81: =ROUND($I81*F81,2) -> 98.6 | O81: =G81*J81 -> 1757100 | U81: 2007-04-23 | V81: 0.405 | W81: =(INDEX(OFFSET($F$15,1,0,$B$10,1),MATCH(U81,OFFSET($B$15,1,0,$B$10,1),-1))) -> 52.700001 | X81: =YEAR(U81)&RIGHT("0"&MONTH(U81),2) -> 200704 | Y81: =YEAR(U81)-1&RIGHT("0"&MONTH(U81),2) -> 200604 | Z81: =OFFSET(U80,AA81,0,1,1) -> 2006-04-21 | AA81: =MATCH(Y81,OFFSET($X$15,A81,0,$V$14+1-A81,1),-1) -> 5 | AB81: =IF(OR(AND(YEAR(U81)=YEAR(Z81),MONTH(U81)=MONTH(Z81)),MONTH(U81)=MONTH(Z81)),1,0) -> 1 | AC81: =(V81+IF(AA81-AB81=0,0,IFERROR(SUM(OFFSET(V81,1,0,AA81-AB81-1,1)),0))) -> 1.423 | AD81: =AC81/(INDEX(OFFSET($F$15,1,0,$B$10,1),MATCH(U81,OFFSET($B$15,1,0,$B$10,1),-1))) -> 0.02700189702
A82: 67 | B82: 2024-04-01 | C82: 100.879997 | D82: 101 | E82: 99.830002 | F82: 100.300003 | G82: 566300 | H82: 99.285454 | I82: 0.9898848557 | J82: 1 | K82: 99.86 | L82: 99.98 | M82: 98.82 | N82: 99.29 | O82: 566300 | U82: 2007-01-23 | V82: 0.341 | W82: 46.029999 | X82: 200701 | Y82: 200601 | Z82: 2006-01-24 | AA82: 5 | AB82: 1 | AC82: 1.336 | AD82: 0.02902454984
A83: 68 | B83: 2024-03-28 | C83: 100.400002 | D83: 101.260002 | E83: 100.199997 | F83: 100.879997 | G83: 594600 | H83: 99.859581 | I83: 0.989884853 | J83: 1 | K83: 99.38 | L83: 100.24 | M83: 99.19 | N83: 99.86 | O83: 594600 | U83: 2006-10-24 | V83: 0.356 | W83: 44.080002 | X83: 200610 | Y83: 200510 | Z83: 2005-10-21 | AA83: 5 | AB83: 1 | AC83: 1.2725 | AD83: 0.02886796602
A84: 69 | B84: 2024-03-27 | C84: 99.110001 | D84: 100.400002 | E84: 99.110001 | F84: 100.400002 | G84: 591900 | H84: 99.384438 | I84: 0.9898848209 | J84: 1 | K84: 98.11 | L84: 99.38 | M84: 98.11 | N84: 99.38 | O84: 591900 | U84: 2006-07-24 | V84: 0.321 | W84: 41.41 | X84: 200607 | Y84: 200507 | Z84: 2005-07-22 | AA84: 5 | AB84: 1 | AC84: 1.1865 | AD84: 0.0286524994
A85: 70 | B85: 2024-03-26 | C85: 99.43 | D85: 99.75 | E85: 99.040001 | F85: 99.150002 | G85: 529400 | H85: 98.147087 | I85: 0.9898848716 | J85: 1 | K85: 98.42 | L85: 98.74 | M85: 98.04 | N85: 98.15 | O85: 529400 | U85: 2006-04-21 | V85: 0.318 | W85: 41.900002 | X85: 200604 | Y85: 200504 | Z85: 2005-04-21 | AA85: 5 | AB85: 1 | AC85: 1.1705 | AD85: 0.02793555953
A86: 71 | B86: 2024-03-25 | C86: 99.550003 | D86: 100.110001 | E86: 99.389999 | F86: 99.419998 | G86: 7056000 | H86: 98.414352 | I86: 0.9898848721 | J86: 1 | K86: 98.54 | L86: 99.1 | M86: 98.38 | N86: 98.41 | O86: 7056000 | U86: 2006-01-24 | V86: 0.2775 | W86: 38.805 | X86: 200601 | Y86: 200501 | Z86: 2005-01-24 | AA86: 5 | AB86: 1 | AC86: 1.1275 | AD86: 0.02905553408
A87: 72 | B87: 2024-03-22 | C87: 100.879997 | D87: 101.059998 | E87: 99.309998 | F87: 99.379997 | G87: 458300 | H87: 98.374756 | I87: 0.9898848759 | J87: 1 | K87: 99.86 | L87: 100.04 | M87: 98.31 | N87: 98.37 | O87: 458300 | U87: 2005-10-21 | V87: 0.27 | W87: 34.950001 | X87: 200510 | Y87: 200410 | Z87: 2004-10-22 | AA87: 5 | AB87: 1 | AC87: 1.125 | AD87: 0.03218884028
A88: 73 | B88: 2024-03-21 | C88: 100.510002 | D88: 101.5 | E88: 100.349998 | F88: 100.879997 | G88: 670600 | H88: 99.859581 | I88: 0.989884853 | J88: 1 | K88: 99.49 | L88: 100.47 | M88: 99.33 | N88: 99.86 | O88: 670600 | U88: 2005-07-22 | V88: 0.305 | W88: 32.334999 | X88: 200507 | Y88: 200407 | Z88: 2004-07-22 | AA88: 5 | AB88: 1 | AC88: 1.115 | AD88: 0.03448275969
A89: 74 | B89: 2024-03-20 | C89: 98.43 | D89: 100.470001 | E89: 98.230003 | F89: 100.400002 | G89: 608100 | H89: 99.384438 | I89: 0.9898848209 | J89: 1 | K89: 97.43 | L89: 99.45 | M89: 97.24 | N89: 99.38 | O89: 608100 | U89: 2005-04-21 | V89: 0.275 | W89: 29.594999 | X89: 200504 | Y89: 200404 | Z89: 2004-04-20 | AA89: 5 | AB89: 1 | AC89: 1.07 | AD89: 0.03615475709
A90: 75 | B90: 2024-03-19 | C90: 99.169998 | D90: 99.449997 | E90: 98.769997 | F90: 98.809998 | G90: 687600 | H90: 97.810516 | I90: 0.989884809 | J90: 1 | K90: 98.17 | L90: 98.44 | M90: 97.77 | N90: 97.81 | O90: 687600 | U90: 2005-01-24 | V90: 0.275 | W90: 25.785 | X90: 200501 | Y90: 200401 | Z90: 2004-01-22 | AA90: 5 | AB90: 1 | AC90: 1.055 | AD90: 0.04091526081
A91: 76 | B91: 2024-03-18 | C91: 99.400002 | D91: 99.559998 | E91: 98.559998 | F91: 99.269997 | G91: 483700 | H91: 98.265869 | I91: 0.9898848793 | J91: 1 | K91: 98.39 | L91: 98.55 | M91: 97.56 | N91: 98.27 | O91: 483700 | U91: 2004-10-22 | V91: 0.26 | W91: 24.969999 | X91: 200410 | Y91: 200310 | Z91: 2003-10-23 | AA91: 5 | AB91: 1 | AC91: 1.01 | AD91: 0.04044853987
A92: 77 | B92: 2024-03-15 | C92: 99.68 | D92: 99.940002 | E92: 98.760002 | F92: 99.339996 | G92: 672700 | H92: 98.335159 | I92: 0.9898848697 | J92: 1 | K92: 98.67 | L92: 98.93 | M92: 97.76 | N92: 98.34 | O92: 672700 | U92: 2004-07-22 | V92: 0.26 | W92: 23.215 | X92: 200407 | Y92: 200307 | Z92: 2003-07-21 | AA92: 5 | AB92: 1 | AC92: 0.98 | AD92: 0.04221408572
A93: 78 | B93: 2024-03-14 | C93: 100.940002 | D93: 101.18 | E93: 99.190002 | F93: 99.760002 | G93: 1030700 | H93: 98.750916 | I93: 0.9898848639 | J93: 1 | K93: 99.92 | L93: 100.16 | M93: 98.19 | N93: 98.75 | O93: 1030700 | U93: 2004-04-20 | V93: 0.26 | W93: 23.01 | X93: 200404 | Y93: 200304 | Z93: 2003-04-21 | AA93: 5 | AB93: 1 | AC93: 0.935 | AD93: 0.04063450674
A94: 79 | B94: 2024-03-13 | C94: 100.699997 | D94: 101.440002 | E94: 100.639999 | F94: 101.080002 | G94: 610800 | H94: 100.057564 | I94: 0.9898848637 | J94: 1 | K94: 99.68 | L94: 100.41 | M94: 99.62 | N94: 100.06 | O94: 610800 | U94: 2004-01-22 | V94: 0.23 | W94: 24.35 | X94: 200401 | Y94: 200301 | Z94: 2003-01-23 | AA94: 5 | AB94: 1 | AC94: 0.89 | AD94: 0.03655030801
A95: 80 | B95: 2024-03-12 | C95: 100 | D95: 100.790001 | E95: 99.339996 | F95: 100.599998 | G95: 714700 | H95: 99.582413 | I95: 0.9898848408 | J95: 1 | K95: 98.99 | L95: 99.77 | M95: 98.34 | N95: 99.58 | O95: 714700 | U95: 2003-10-23 | V95: 0.23 | W95: 24.565001 | X95: 200310 | Y95: 200210 | Z95: 2002-10-21 | AA95: 5 | AB95: 1 | AC95: 0.86 | AD95: 0.03500915795
A96: 81 | B96: 2024-03-11 | C96: 98.989998 | D96: 100.120003 | E96: 98.690002 | F96: 100.029999 | G96: 549100 | H96: 99.018181 | I96: 0.9898848544 | J96: 1 | K96: 97.99 | L96: 99.11 | M96: 97.69 | N96: 99.02 | O96: 549100 | U96: 2003-07-21 | V96: 0.215 | W96: 20.950001 | X96: 200307 | Y96: 200207 | Z96: 2002-07-22 | AA96: 5 | AB96: 1 | AC96: 0.83 | AD96: 0.03961813653
A97: 82 | B97: 2024-03-08 | C97: 99.699997 | D97: 99.809998 | E97: 99.029999 | F97: 99.330002 | G97: 382500 | H97: 98.325264 | I97: 0.9898848487 | J97: 1 | K97: 98.69 | L97: 98.8 | M97: 98.03 | N97: 98.33 | O97: 382500 | U97: 2003-04-21 | V97: 0.215 | W97: 20.23 | X97: 200304 | Y97: 200204 | Z97: 2002-04-22 | AA97: 5 | AB97: 1 | AC97: 0.805 | AD97: 0.03979238754
A98: 83 | B98: 2024-03-07 | C98: 98.769997 | D98: 99.400002 | E98: 98.620003 | F98: 99.400002 | G98: 656900 | H98: 98.394554 | I98: 0.9898848292 | J98: 1 | K98: 97.77 | L98: 98.39 | M98: 97.62 | N98: 98.39 | O98: 656900 | U98: 2003-01-23 | V98: 0.2 | W98: 18.775 | X98: 200301 | Y98: 200201 | Z98: 2002-01-22 | AA98: 5 | AB98: 1 | AC98: 0.78 | AD98: 0.04154460719
A99: 84 | B99: 2024-03-06 | C99: 98.620003 | D99: 99.139999 | E99: 97.879997 | F99: 98.230003 | G99: 835900 | H99: 97.236389 | I99: 0.9898848216 | J99: 1 | K99: 97.62 | L99: 98.14 | M99: 96.89 | N99: 97.24 | O99: 835900 | U99: 2002-10-21 | V99: 0.2 | W99: 18.025 | X99: 200210 | Y99: 200110 | Z99: 2001-10-22 | AA99: 5 | AB99: 1 | AC99: 0.76 | AD99: 0.04216366158
A100: 85 | B100: 2024-03-05 | C100: 97.110001 | D100: 98.25 | E100: 97.040001 | F100: 97.959999 | G100: 1459400 | H100: 96.969116 | I100: 0.9898848202 | J100: 1 | K100: 96.13 | L100: 97.26 | M100: 96.06 | N100: 96.97 | O100: 1459400 | U100: 2002-07-22 | V100: 0.19 | W100: 15.565 | X100: 200207 | Y100: 200107 | Z100: 2001-07-23 | AA100: 5 | AB100: 1 | AC100: 0.74 | AD100: 0.04754256344
A101: 86 | B101: 2024-03-04 | C101: 97 | D101: 97.68 | E101: 96.769997 | F101: 97.18 | G101: 2146300 | H101: 96.197014 | I101: 0.989884894 | J101: 1 | K101: 96.02 | L101: 96.69 | M101: 95.79 | N101: 96.2 | O101: 2146300 | U101: 2002-04-22 | V101: 0.19 | W101: 17.9 | X101: 200204 | Y101: 200104 | Z101: 2001-04-20 | AA101: 5 | AB101: 1 | AC101: 0.73 | AD101: 0.04078212291
A102: 87 | B102: 2024-03-01 | C102: 97.160004 | D102: 97.93 | E102: 96.559998 | F102: 97.330002 | G102: 754800 | H102: 96.345497 | I102: 0.9898848764 | J102: 1 | K102: 96.18 | L102: 96.94 | M102: 95.58 | N102: 96.35 | O102: 754800 | U102: 2002-01-22 | V102: 0.18 | W102: 15.46 | X102: 200201 | Y102: 200101 | Z102: 2001-01-22 | AA102: 5 | AB102: 1 | AC102: 0.705 | AD102: 0.04560155239
A103: 88 | B103: 2024-02-29 | C103: 96.830002 | D103: 97.25 | E103: 96.080002 | F103: 97.080002 | G103: 1474900 | H103: 96.098022 | I103: 0.9898848375 | J103: 1 | K103: 95.85 | L103: 96.27 | M103: 95.11 | N103: 96.1 | O103: 1474900 | U103: 2001-10-22 | V103: 0.18 | W103: 14.39 | X103: 200110 | Y103: 200010 | Z103: 2000-10-23 | AA103: 5 | AB103: 1 | AC103: 0.69 | AD103: 0.04794996525
A104: 89 | B104: 2024-02-28 | C104: 96.919998 | D104: 98.18 | E104: 96.389999 | F104: 96.459999 | G104: 898100 | H104: 95.484291 | I104: 0.9898848434 | J104: 1 | K104: 95.94 | L104: 97.19 | M104: 95.41 | N104: 95.48 | O104: 898100 | U104: 2001-07-23 | V104: 0.18 | W104: 16.43 | X104: 200107 | Y104: 200007 | Z104: 2000-07-21 | AA104: 5 | AB104: 1 | AC104: 0.66 | AD104: 0.04017041996
A105: 90 | B105: 2024-02-27 | C105: 97.389999 | D105: 97.900002 | E105: 96.459999 | F105: 96.919998 | G105: 1602800 | H105: 95.939636 | I105: 0.9898848326 | J105: 1 | K105: 96.4 | L105: 96.91 | M105: 95.48 | N105: 95.94 | O105: 1602800 | U105: 2001-04-20 | V105: 0.165 | W105: 14.345 | X105: 200104 | Y105: 200004 | Z105: 2000-04-19 | AA105: 5 | AB105: 1 | AC105: 0.63 | AD105: 0.04391774137
A106: 91 | B106: 2024-02-26 | C106: 98.480003 | D106: 99.059998 | E106: 97.779999 | F106: 97.970001 | G106: 1036600 | H106: 96.979019 | I106: 0.9898848424 | J106: 1 | K106: 97.48 | L106: 98.06 | M106: 96.79 | N106: 96.98 | O106: 1036600 | U106: 2001-01-22 | V106: 0.165 | W106: 17.0625 | X106: 200101 | Y106: 200001 | Z106: 2000-01-21 | AA106: 5 | AB106: 1 | AC106: 0.6 | AD106: 0.03516483516
A107: 92 | B107: 2024-02-23 | C107: 98.459999 | D107: 98.970001 | E107: 98.309998 | F107: 98.660004 | G107: 434100 | H107: 97.662041 | I107: 0.9898848271 | J107: 1 | K107: 97.46 | L107: 97.97 | M107: 97.32 | N107: 97.66 | O107: 434100 | U107: 2000-10-23 | V107: 0.15 | W107: 13.59375 | X107: 200010 | Y107: 199910 | Z107: 1999-10-21 | AA107: 5 | AB107: 1 | AC107: 0.57 | AD107: 0.04193103448
A108: 93 | B108: 2024-02-22 | C108: 98.07 | D108: 98.739998 | E108: 97.889999 | F108: 98.139999 | G108: 1061700 | H108: 97.147301 | I108: 0.9898848786 | J108: 1 | K108: 97.08 | L108: 97.74 | M108: 96.9 | N108: 97.15 | O108: 1061700 | U108: 2000-07-21 | V108: 0.15 | W108: 13.1875 | X108: 200007 | Y108: 199907 | Z108: 1999-07-22 | AA108: 5 | AB108: 1 | AC108: 0.54 | AD108: 0.0409478673
A109: 94 | B109: 2024-02-21 | C109: 98.120003 | D109: 98.18 | E109: 97.349998 | F109: 97.68 | G109: 1232900 | H109: 96.691956 | I109: 0.9898848894 | J109: 1 | K109: 97.13 | L109: 97.19 | M109: 96.37 | N109: 96.69 | O109: 1232900 | U109: 2000-04-19 | V109: 0.135 | W109: 12.15625 | X109: 200004 | Y109: 199904 | Z109: 1999-04-21 | AA109: 5 | AB109: 1 | AC109: 0.51 | AD109: 0.04195372751
A110: 95 | B110: 2024-02-20 | C110: 97.300003 | D110: 98.660004 | E110: 97.129997 | F110: 98.019997 | G110: 1365300 | H110: 97.028511 | I110: 0.9898848599 | J110: 1 | K110: 96.32 | L110: 97.66 | M110: 96.15 | N110: 97.03 | O110: 1365300 | U110: 2000-01-21 | V110: 0.135 | W110: 9.875 | X110: 200001 | Y110: 199901 | Z110: 1999-01-21 | AA110: 5 | AB110: 1 | AC110: 0.49 | AD110: 0.04962025316
A111: 96 | B111: 2024-02-16 | C111: 97.68 | D111: 98.720001 | E111: 97.580002 | F111: 97.830002 | G111: 1103900 | H111: 96.840439 | I111: 0.9898848719 | J111: 1 | K111: 96.69 | L111: 97.72 | M111: 96.59 | N111: 96.84 | O111: 1103900 | U111: 1999-10-21 | V111: 0.12 | W111: 10.453125 | X111: 199910 | Y111: 199810 | Z111: 1998-10-22 | AA111: 5 | AB111: 1 | AC111: 0.47 | AD111: 0.04496263079
A112: 97 | B112: 2024-02-15 | C112: 97.160004 | D112: 98.550003 | E112: 96.919998 | F112: 97.970001 | G112: 1057700 | H112: 96.979019 | I112: 0.9898848424 | J112: 1 | K112: 96.18 | L112: 97.55 | M112: 95.94 | N112: 96.98 | O112: 1057700 | U112: 1999-07-22 | V112: 0.12 | W112: 11.390625 | X112: 199907 | Y112: 199807 | Z112: 1998-07-23 | AA112: 5 | AB112: 1 | AC112: 0.465 | AD112: 0.04082304527
A113: 98 | B113: 2024-02-14 | C113: 95.190002 | D113: 96.790001 | E113: 95.190002 | F113: 96.769997 | G113: 581700 | H113: 95.791153 | I113: 0.98988484 | J113: 1 | K113: 94.23 | L113: 95.81 | M113: 94.23 | N113: 95.79 | O113: 581700 | U113: 1999-04-21 | V113: 0.115 | W113: 12.921875 | X113: 199904 | Y113: 199804 | Z113: 1998-04-22 | AA113: 5 | AB113: 1 | AC113: 0.46 | AD113: 0.03559854897
A114: 99 | B114: 2024-02-13 | C114: 96.779999 | D114: 96.970001 | E114: 93.970001 | F114: 94.699997 | G114: 1260700 | H114: 93.742096 | I114: 0.9898848888 | J114: 1 | K114: 95.8 | L114: 95.99 | M114: 93.02 | N114: 93.74 | O114: 1260700 | U114: 1999-01-21 | V114: 0.115 | W114: 12.578125 | X114: 199901 | Y114: 199801 | Z114: 1998-01-22 | AA114: 5 | AB114: 1 | AC114: 0.45 | AD114: 0.03577639752
A115: 100 | B115: 2024-02-12 | C115: 97.480003 | D115: 97.940002 | E115: 97.040001 | F115: 97.760002 | G115: 1673600 | H115: 96.771149 | I115: 0.9898848918 | J115: 1 | K115: 96.49 | L115: 96.95 | M115: 96.06 | N115: 96.77 | O115: 1673600 | U115: 1998-10-22 | V115: 0.115 | W115: 10.703125 | X115: 199810 | Y115: 199710 | Z115: 1997-10-23 | AA115: 5 | AB115: 1 | AC115: 0.44 | AD115: 0.04110948905
A116: 101 | B116: 2024-02-09 | C116: 96.800003 | D116: 97.5 | E116: 96.519997 | F116: 97.339996 | G116: 1163500 | H116: 96.355385 | I116: 0.989884826 | J116: 1 | K116: 95.82 | L116: 96.51 | M116: 95.54 | N116: 96.36 | O116: 1163500 | U116: 1998-07-23 | V116: 0.115 | W116: 14.328125 | X116: 199807 | Y116: 199707 | Z116: 1997-07-22 | AA116: 5 | AB116: 1 | AC116: 0.4225 | AD116: 0.02948745911
A117: 102 | B117: 2024-02-08 | C117: 96.940002 | D117: 97.029999 | E117: 95.639999 | F117: 96.760002 | G117: 1208500 | H117: 95.781258 | I117: 0.9898848287 | J117: 1 | K117: 95.96 | L117: 96.05 | M117: 94.67 | N117: 95.78 | O117: 1208500 | U117: 1998-04-22 | V117: 0.105 | W117: 15.359375 | X117: 199804 | Y117: 199704 | Z117: 1997-04-22 | AA117: 5 | AB117: 1 | AC117: 0.405 | AD117: 0.02636826043
A118: 103 | B118: 2024-02-07 | C118: 97.010002 | D118: 97.309998 | E118: 96.400002 | F118: 97.029999 | G118: 815100 | H118: 96.048523 | I118: 0.989884819 | J118: 1 | K118: 96.03 | L118: 96.33 | M118: 95.42 | N118: 96.05 | O118: 815100 | U118: 1998-01-22 | V118: 0.105 | W118: 12.390625 | X118: 199801 | Y118: 199701 | Z118: 1997-01-23 | AA118: 5 | AB118: 1 | AC118: 0.3925 | AD118: 0.03167717528
A119: 104 | B119: 2024-02-06 | C119: 96.480003 | D119: 97.160004 | E119: 96.260002 | F119: 96.940002 | G119: 371800 | H119: 95.959442 | I119: 0.9898848775 | J119: 1 | K119: 95.5 | L119: 96.18 | M119: 95.29 | N119: 95.96 | O119: 371800 | U119: 1997-10-23 | V119: 0.0975 | W119: 13.375 | X119: 199710 | Y119: 199610 | Z119: 1996-10-22 | AA119: 5 | AB119: 1 | AC119: 0.38 | AD119: 0.02841121495
A120: 105 | B120: 2024-02-05 | C120: 97.029999 | D120: 97.190002 | E120: 96 | F120: 96.440002 | G120: 2146000 | H120: 95.4645 | I120: 0.989884882 | J120: 1 | K120: 96.05 | L120: 96.21 | M120: 95.03 | N120: 95.46 | O120: 2146000 | U120: 1997-07-22 | V120: 0.0975 | W120: 12.375 | X120: 199707 | Y120: 199607 | Z120: 1996-07-22 | AA120: 5 | AB120: 1 | AC120: 0.3675 | AD120: 0.0296969697
A121: 106 | B121: 2024-02-02 | C121: 97.650002 | D121: 97.790001 | E121: 96.790001 | F121: 97.440002 | G121: 523200 | H121: 96.454384 | I121: 0.9898848729 | J121: 1 | K121: 96.66 | L121: 96.8 | M121: 95.81 | N121: 96.45 | O121: 523200 | U121: 1997-04-22 | V121: 0.0925 | W121: 9.59375 | X121: 199704 | Y121: 199604 | Z121: 1996-07-22 | AA121: 4 | AB121: 0 | AC121: 0.355 | AD121: 0.03700325733
A122: 107 | B122: 2024-02-01 | C122: 97.610001 | D122: 98.25 | E122: 97.150002 | F122: 98.199997 | G122: 900500 | H122: 97.206688 | I122: 0.9898848368 | J122: 1 | K122: 96.62 | L122: 97.26 | M122: 96.17 | N122: 97.21 | O122: 900500 | U122: 1997-01-23 | V122: 0.0925 | W122: 9.3125 | X122: 199701 | Y122: 199601 | Z122: 1996-07-22 | AA122: 3 | AB122: 0 | AC122: 0.2625 | AD122: 0.02818791946
A123: 108 | B123: 2024-01-31 | C123: 99.199997 | D123: 99.779999 | E123: 97.260002 | F123: 97.610001 | G123: 825500 | H123: 96.622658 | I123: 0.9898848172 | J123: 1 | K123: 98.2 | L123: 98.77 | M123: 96.28 | N123: 96.62 | O123: 825500 | U123: 1996-10-22 | V123: 0.085 | W123: 8 | X123: 199610 | Y123: 199510 | Z123: 1996-07-22 | AA123: 2 | AB123: 0 | AC123: 0.17 | AD123: 0.02125
A124: 109 | B124: 2024-01-30 | C124: 98.959999 | D124: 99.419998 | E124: 98.269997 | F124: 99.279999 | G124: 727300 | H124: 98.275764 | I124: 0.9898848206 | J124: 1 | K124: 97.96 | L124: 98.41 | M124: 97.28 | N124: 98.28 | O124: 727300 | U124: 1996-07-22 | V124: 0.085 | W124: 6.28125 | X124: 199607 | Y124: 199507 | Z124: 1996-07-22 | AA124: 1 | AB124: 1 | AC124: 0.085 | AD124: 0.01353233831
A125: 110 | B125: 2024-01-29 | C125: 98.68 | D125: 99.010002 | E125: 97.959999 | F125: 98.989998 | G125: 488300 | H125: 97.988701 | I125: 0.989884867 | J125: 1 | K125: 97.68 | L125: 98.01 | M125: 96.97 | N125: 97.99 | O125: 488300
A126: 111 | B126: 2024-01-26 | C126: 98.239998 | D126: 99.010002 | E126: 98.209999 | F126: 98.849998 | G126: 481800 | H126: 97.850113 | I126: 0.9898848253 | J126: 1 | K126: 97.25 | L126: 98.01 | M126: 97.22 | N126: 97.85 | O126: 481800
A127: 112 | B127: 2024-01-25 | C127: 98.269997 | D127: 98.419998 | E127: 97.440002 | F127: 98.209999 | G127: 7576900 | H127: 97.216591 | I127: 0.9898848589 | J127: 1 | K127: 97.28 | L127: 97.42 | M127: 96.45 | N127: 97.22 | O127: 7576900
A128: 113 | B128: 2024-01-24 | C128: 98.889999 | D128: 99.25 | E128: 97.599998 | F128: 97.830002 | G128: 2970300 | H128: 96.840439 | I128: 0.9898848719 | J128: 1 | K128: 97.89 | L128: 98.25 | M128: 96.61 | N128: 96.84 | O128: 2970300
A129: 114 | B129: 2024-01-23 | C129: 98.949997 | D129: 99.510002 | E129: 98.809998 | F129: 99.269997 | G129: 2198100 | H129: 98.265869 | I129: 0.9898848793 | J129: 1 | K129: 97.95 | L129: 98.5 | M129: 97.81 | N129: 98.27 | O129: 2198100
A130: 115 | B130: 2024-01-22 | C130: 99.620003 | D130: 99.849998 | E130: 98.580002 | F130: 98.949997 | G130: 2630300 | H130: 97.949104 | I130: 0.9898848607 | J130: 1 | K130: 98.61 | L130: 98.84 | M130: 97.58 | N130: 97.95 | O130: 2630300
A131: 116 | B131: 2024-01-19 | C131: 98.480003 | D131: 99.82 | E131: 97.650002 | F131: 99.620003 | G131: 691200 | H131: 98.612335 | I131: 0.9898848829 | J131: 1 | K131: 97.48 | L131: 98.81 | M131: 96.66 | N131: 98.61 | O131: 691200
A132: 117 | B132: 2024-01-18 | C132: 98.099998 | D132: 98.519997 | E132: 97.75 | F132: 98.169998 | G132: 555900 | H132: 97.176994 | I132: 0.9898848526 | J132: 1 | K132: 97.11 | L132: 97.52 | M132: 96.76 | N132: 97.18 | O132: 555900
A133: 118 | B133: 2024-01-17 | C133: 97.510002 | D133: 97.959999 | E133: 96.690002 | F133: 97.480003 | G133: 585000 | H133: 96.49398 | I133: 0.989884869 | J133: 1 | K133: 96.52 | L133: 96.97 | M133: 95.71 | N133: 96.49 | O133: 585000
A134: 119 | B134: 2024-01-16 | C134: 97.809998 | D134: 98.400002 | E134: 97.43 | F134: 98.349998 | G134: 703100 | H134: 97.355171 | I134: 0.9898848295 | J134: 1 | K134: 96.82 | L134: 97.4 | M134: 96.44 | N134: 97.36 | O134: 703100
A135: 120 | B135: 2024-01-12 | C135: 100.07 | D135: 100.400002 | E135: 98.550003 | F135: 98.559998 | G135: 705700 | H135: 97.563049 | I135: 0.9898848517 | J135: 1 | K135: 99.06 | L135: 99.38 | M135: 97.55 | N135: 97.56 | O135: 705700
A136: 121 | B136: 2024-01-11 | C136: 100.239998 | D136: 100.620003 | E136: 98.809998 | F136: 99.550003 | G136: 841000 | H136: 98.543037 | I136: 0.989884822 | J136: 1 | K136: 99.23 | L136: 99.6 | M136: 97.81 | N136: 98.54 | O136: 841000
A137: 122 | B137: 2024-01-10 | C137: 101.029999 | D137: 101.309998 | E137: 100.010002 | F137: 100.650002 | G137: 1410800 | H137: 99.631912 | I137: 0.9898848487 | J137: 1 | K137: 100.01 | L137: 100.29 | M137: 99 | N137: 99.63 | O137: 1410800
A138: 123 | B138: 2024-01-09 | C138: 100.519997 | D138: 101.330002 | E138: 100.089996 | F138: 100.989998 | G138: 1757200 | H138: 99.968468 | I138: 0.9898848399 | J138: 1 | K138: 99.5 | L138: 100.31 | M138: 99.08 | N138: 99.97 | O138: 1757200
A139: 124 | B139: 2024-01-08 | C139: 100.580002 | D139: 101.400002 | E139: 100.190002 | F139: 101.309998 | G139: 1105000 | H139: 100.285233 | I139: 0.9898848582 | J139: 1 | K139: 99.56 | L139: 100.37 | M139: 99.18 | N139: 100.29 | O139: 1105000
A140: 125 | B140: 2024-01-05 | C140: 100.260002 | D140: 101.360001 | E140: 100.029999 | F140: 100.75 | G140: 1213200 | H140: 99.730896 | I140: 0.9898848238 | J140: 1 | K140: 99.25 | L140: 100.33 | M140: 99.02 | N140: 99.73 | O140: 1213200
A141: 126 | B141: 2024-01-04 | C141: 100 | D141: 101.07 | E141: 99.959999 | F141: 100.169998 | G141: 1614100 | H141: 99.156761 | I141: 0.9898848256 | J141: 1 | K141: 98.99 | L141: 100.05 | M141: 98.95 | N141: 99.16 | O141: 1614100
A142: 127 | B142: 2024-01-03 | C142: 100 | D142: 100.300003 | E142: 99.360001 | F142: 100.010002 | G142: 682500 | H142: 98.998383 | I142: 0.9898848217 | J142: 1 | K142: 98.99 | L142: 99.29 | M142: 98.35 | N142: 99 | O142: 682500
A143: 128 | B143: 2024-01-02 | C143: 100.050003 | D143: 100.800003 | E143: 99.860001 | F143: 100.489998 | G143: 703400 | H143: 99.473526 | I143: 0.9898848441 | J143: 1 | K143: 99.04 | L143: 99.78 | M143: 98.85 | N143: 99.47 | O143: 703400
A144: 129 | B144: 2023-12-29 | C144: 101.190002 | D144: 101.790001 | E144: 100.970001 | F144: 101.129997 | G144: 428400 | H144: 100.107056 | I144: 0.9898848904 | J144: 1 | K144: 100.17 | L144: 100.76 | M144: 99.95 | N144: 100.11 | O144: 428400
A145: 130 | B145: 2023-12-28 | C145: 101.43 | D145: 101.809998 | E145: 101.110001 | F145: 101.330002 | G145: 609800 | H145: 100.305031 | I145: =IF(F145=0,1,H145/F145) -> 0.9898848221 | J145: =INDEX(OFFSET($T$15,0,0,$S$13+1,1),MATCH(B145,OFFSET($Q$15,0,0,$S$13+1,1),-1)) -> 1 | K145: =ROUND($I145*C145,2) -> 100.4 | L145: =ROUND($I145*D145,2) -> 100.78 | M145: =ROUND($I145*E145,2) -> 100.09 | N145: =ROUND($I145*F145,2) -> 100.31 | O145: =G145*J145 -> 609800
A146: 131 | B146: 2023-12-27 | C146: 101.440002 | D146: 102.07 | E146: 101.32 | F146: 101.599998 | G146: 739400 | H146: 100.572296 | I146: 0.9898848226 | J146: 1 | K146: 100.41 | L146: 101.04 | M146: 100.3 | N146: 100.57 | O146: 739400
A147: 132 | B147: 2023-12-26 | C147: 100.980003 | D147: 101.949997 | E147: 100.910004 | F147: 101.949997 | G147: 414200 | H147: 100.918755 | I147: 0.9898848256 | J147: 1 | K147: 99.96 | L147: 100.92 | M147: 99.89 | N147: 100.92 | O147: 414200
A148: 133 | B148: 2023-12-22 | C148: 100.629997 | D148: 101.220001 | E148: 100.459999 | F148: 100.779999 | G148: 779600 | H148: 99.760597 | I148: 0.9898848779 | J148: 1 | K148: 99.61 | L148: 100.2 | M148: 99.44 | N148: 99.76 | O148: 779600
A149: 134 | B149: 2023-12-21 | C149: 99.68 | D149: 100.5 | E149: 99.68 | F149: 100.18 | G149: 1015200 | H149: 99.166664 | I149: 0.9898848473 | J149: 1 | K149: 98.67 | L149: 99.48 | M149: 98.67 | N149: 99.17 | O149: 1015200
A150: 135 | B150: 2023-12-20 | C150: 99.970001 | D150: 100.839996 | E150: 98.970001 | F150: 98.970001 | G150: 971900 | H150: 97.968903 | I150: 0.9898848339 | J150: 1 | K150: 98.96 | L150: 99.82 | M150: 97.97 | N150: 97.97 | O150: 971900
A151: 136 | B151: 2023-12-19 | C151: 99.309998 | D151: 100.190002 | E151: 99.230003 | F151: 100.029999 | G151: 1194400 | H151: 99.018181 | I151: 0.9898848544 | J151: 1 | K151: 98.31 | L151: 99.18 | M151: 98.23 | N151: 99.02 | O151: 1194400
A152: 137 | B152: 2023-12-18 | C152: 98.730003 | D152: 99.360001 | E152: 98.43 | F152: 98.860001 | G152: 1299800 | H152: 97.860016 | I152: 0.9898848372 | J152: 1 | K152: 97.73 | L152: 98.35 | M152: 97.43 | N152: 97.86 | O152: 1299800
A153: 138 | B153: 2023-12-15 | C153: 97.849998 | D153: 98.610001 | E153: 97.540001 | F153: 98.160004 | G153: 1802300 | H153: 97.167099 | I153: 0.9898848313 | J153: 1 | K153: 96.86 | L153: 97.61 | M153: 96.55 | N153: 97.17 | O153: 1802300
A154: 139 | B154: 2023-12-14 | C154: 95.949997 | D154: 97.790001 | E154: 95.879997 | F154: 97.610001 | G154: 1416100 | H154: 96.622658 | I154: 0.9898848172 | J154: 1 | K154: 94.98 | L154: 96.8 | M154: 94.91 | N154: 96.62 | O154: 1416100
A155: 140 | B155: 2023-12-13 | C155: 92.709999 | D155: 95.339996 | E155: 91.989998 | F155: 95.290001 | G155: 1077700 | H155: 94.326126 | I155: 0.9898848254 | J155: 1 | K155: 91.77 | L155: 94.38 | M155: 91.06 | N155: 94.33 | O155: 1077700
A156: 141 | B156: 2023-12-12 | C156: 92.470001 | D156: 92.470001 | E156: 91.779999 | F156: 92.349998 | G156: 595200 | H156: 91.415863 | I156: 0.9898848401 | J156: 1 | K156: 91.53 | L156: 91.53 | M156: 90.85 | N156: 91.42 | O156: 595200
A157: 142 | B157: 2023-12-11 | C157: 92.110001 | D157: 92.540001 | E157: 91.769997 | F157: 92.459999 | G157: 514600 | H157: 91.52475 | I157: 0.9898848258 | J157: 1 | K157: 91.18 | L157: 91.6 | M157: 90.84 | N157: 91.52 | O157: 514600
A158: 143 | B158: 2023-12-08 | C158: 91.550003 | D158: 92.470001 | E158: 91.43 | F158: 92.18 | G158: 560600 | H158: 91.247589 | I158: 0.9898848883 | J158: 1 | K158: 90.62 | L158: 91.53 | M158: 90.51 | N158: 91.25 | O158: 560600
A159: 144 | B159: 2023-12-07 | C159: 91.239998 | D159: 91.540001 | E159: 90.709999 | F159: 91.419998 | G159: 609800 | H159: 90.49527 | I159: 0.989884839 | J159: 1 | K159: 90.32 | L159: 90.61 | M159: 89.79 | N159: 90.5 | O159: 609800
A160: 145 | B160: 2023-12-06 | C160: 91.779999 | D160: 92.550003 | E160: 91.050003 | F160: 91.089996 | G160: 825200 | H160: 90.16861 | I160: 0.9898848826 | J160: 1 | K160: 90.85 | L160: 91.61 | M160: 90.13 | N160: 90.17 | O160: 825200
A161: 146 | B161: 2023-12-05 | C161: 90.739998 | D161: 91.769997 | E161: 90.739998 | F161: 91.230003 | G161: 1134300 | H161: 90.307198 | I161: 0.9898848518 | J161: 1 | K161: 89.82 | L161: 90.84 | M161: 89.82 | N161: 90.31 | O161: 1134300
A162: 147 | B162: 2023-12-04 | C162: 90.260002 | D162: 91.230003 | E162: 90.209999 | F162: 91.010002 | G162: 3120100 | H162: 90.089424 | I162: 0.98988487 | J162: 1 | K162: 89.35 | L162: 90.31 | M162: 89.3 | N162: 90.09 | O162: 3120100
A163: 148 | B163: 2023-12-01 | C163: 90.269997 | D163: 91.209999 | E163: 89.849998 | F163: 91.089996 | G163: 1660300 | H163: 90.16861 | I163: 0.9898848826 | J163: 1 | K163: 89.36 | L163: 90.29 | M163: 88.94 | N163: 90.17 | O163: 1660300
A164: 149 | B164: 2023-11-30 | C164: 88.599998 | D164: 90.540001 | E164: 88.489998 | F164: 90.400002 | G164: 1946000 | H164: 89.485596 | I164: 0.9898848896 | J164: 1 | K164: 87.7 | L164: 89.62 | M164: 87.59 | N164: 89.49 | O164: 1946000
A165: 150 | B165: 2023-11-29 | C165: 86.620003 | D165: 87.720001 | E165: 86.360001 | F165: 87.330002 | G165: 1294500 | H165: 86.446648 | I165: 0.9898848737 | J165: 1 | K165: 85.74 | L165: 86.83 | M165: 85.49 | N165: 86.45 | O165: 1294500
A166: 151 | B166: 2023-11-28 | C166: 86.099998 | D166: 86.550003 | E166: 85.019997 | F166: 86.419998 | G166: 1485400 | H166: 85.545845 | I166: 0.9898848297 | J166: 1 | K166: 85.23 | L166: 85.67 | M166: 84.16 | N166: 85.55 | O166: 1485400
A167: 152 | B167: 2023-11-27 | C167: 87.150002 | D167: 87.150002 | E167: 86.480003 | F167: 86.760002 | G167: 730600 | H167: 85.882416 | I167: 0.9898849011 | J167: 1 | K167: 86.27 | L167: 86.27 | M167: 85.61 | N167: 85.88 | O167: 730600
A168: 153 | B168: 2023-11-24 | C168: 86.989998 | D168: 87.739998 | E168: 86.629997 | F168: 87.629997 | G168: 400100 | H168: 86.743607 | I168: 0.9898848564 | J168: 1 | K168: 86.11 | L168: 86.85 | M168: 85.75 | N168: 86.74 | O168: 400100
A169: 154 | B169: 2023-11-22 | C169: 87.419998 | D169: 87.470001 | E169: 86.529999 | F169: 86.889999 | G169: 1407600 | H169: 86.011093 | I169: 0.9898848428 | J169: 1 | K169: 86.54 | L169: 86.59 | M169: 85.65 | N169: 86.01 | O169: 1407600
A170: 155 | B170: 2023-11-21 | C170: 87.779999 | D170: 88.360001 | E170: 87.309998 | F170: 87.440002 | G170: 946800 | H170: 86.555534 | I170: 0.9898848584 | J170: 1 | K170: 86.89 | L170: 87.47 | M170: 86.43 | N170: 86.56 | O170: 946800
A171: 156 | B171: 2023-11-20 | C171: 87.699997 | D171: 88.25 | E171: 87.379997 | F171: 87.830002 | G171: 809500 | H171: 86.941589 | I171: 0.9898848573 | J171: 1 | K171: 86.81 | L171: 87.36 | M171: 86.5 | N171: 86.94 | O171: 809500
A172: 157 | B172: 2023-11-17 | C172: 87.589996 | D172: 88.269997 | E172: 87.5 | F172: 88 | G172: 884600 | H172: 87.109863 | I172: 0.9898848068 | J172: 1 | K172: 86.7 | L172: 87.38 | M172: 86.61 | N172: 87.11 | O172: 884600
A173: 158 | B173: 2023-11-16 | C173: 87.279999 | D173: 87.510002 | E173: 86.75 | F173: 87.010002 | G173: 1006300 | H173: 86.129883 | I173: 0.9898848525 | J173: 1 | K173: 86.4 | L173: 86.62 | M173: 85.87 | N173: 86.13 | O173: 1006300
A174: 159 | B174: 2023-11-15 | C174: 87.459999 | D174: 88.120003 | E174: 87.110001 | F174: 87.610001 | G174: 1047400 | H174: 86.723816 | I174: 0.9898848877 | J174: 1 | K174: 86.58 | L174: 87.23 | M174: 86.23 | N174: 86.72 | O174: 1047400
A175: 160 | B175: 2023-11-14 | C175: 85.82 | D175: 87.230003 | E175: 85.669998 | F175: 87.019997 | G175: 1175800 | H175: 86.139778 | I175: 0.9898848652 | J175: 1 | K175: 84.95 | L175: 86.35 | M175: 84.8 | N175: 86.14 | O175: 1175800
A176: 161 | B176: 2023-11-13 | C176: 84.480003 | D176: 85.220001 | E176: 84.279999 | F176: 84.68 | G176: 761900 | H176: 83.823448 | I176: 0.989884837 | J176: 1 | K176: 83.63 | L176: 84.36 | M176: 83.43 | N176: 83.82 | O176: 761900
A177: 162 | B177: 2023-11-10 | C177: 84.440002 | D177: 84.800003 | E177: 83.57 | F177: 84.650002 | G177: 661800 | H177: 83.793755 | I177: 0.9898848555 | J177: 1 | K177: 83.59 | L177: 83.94 | M177: 82.72 | N177: 83.79 | O177: 661800
A178: 163 | B178: 2023-11-09 | C178: 84.260002 | D178: 85.290001 | E178: 84.089996 | F178: 84.169998 | G178: 802500 | H178: 83.318604 | I178: 0.9898848281 | J178: 1 | K178: 83.41 | L178: 84.43 | M178: 83.24 | N178: 83.32 | O178: 802500
A179: 164 | B179: 2023-11-08 | C179: 83.900002 | D179: 84.379997 | E179: 83.599998 | F179: 84.080002 | G179: 678100 | H179: 83.229523 | I179: 0.9898848837 | J179: 1 | K179: 83.05 | L179: 83.53 | M179: 82.75 | N179: 83.23 | O179: 678100
A180: 165 | B180: 2023-11-07 | C180: 84.379997 | D180: 84.379997 | E180: 83.800003 | F180: 84.120003 | G180: 574200 | H180: 83.269119 | I180: 0.9898848791 | J180: 1 | K180: 83.53 | L180: 83.53 | M180: 82.95 | N180: 83.27 | O180: 574200
A181: 166 | B181: 2023-11-06 | C181: 85.540001 | D181: 85.720001 | E181: 84.559998 | F181: 84.889999 | G181: 830700 | H181: 84.031326 | I181: 0.9898848744 | J181: 1 | K181: 84.67 | L181: 84.85 | M181: 83.7 | N181: 84.03 | O181: 830700
A182: 167 | B182: 2023-11-03 | C182: 84.339996 | D182: 85.129997 | E182: 84.139999 | F182: 84.879997 | G182: 2507900 | H182: 84.021423 | I182: 0.9898848488 | J182: 1 | K182: 83.49 | L182: 84.27 | M182: 83.29 | N182: 84.02 | O182: 2507900
A183: 168 | B183: 2023-11-02 | C183: 80.989998 | D183: 83.559998 | E183: 80.959999 | F183: 83.559998 | G183: 1229900 | H183: 82.714775 | I183: 0.989884837 | J183: 1 | K183: 80.17 | L183: 82.71 | M183: 80.14 | N183: 82.71 | O183: 1229900
A184: 169 | B184: 2023-11-01 | C184: 79.970001 | D184: 80.379997 | E184: 79.139999 | F184: 80.300003 | G184: 1122100 | H184: 79.487755 | I184: 0.9898848323 | J184: 1 | K184: 79.16 | L184: 79.57 | M184: 78.34 | N184: 79.49 | O184: 1122100
A185: 170 | B185: 2023-10-31 | C185: 79.779999 | D185: 79.940002 | E185: 79.120003 | F185: 79.879997 | G185: 704900 | H185: 79.071999 | I185: 0.9898848519 | J185: 1 | K185: 78.97 | L185: 79.13 | M185: 78.32 | N185: 79.07 | O185: 704900
A186: 171 | B186: 2023-10-30 | C186: 79.099998 | D186: 80.059998 | E186: 79.029999 | F186: 79.669998 | G186: 2909600 | H186: 78.864128 | I186: 0.9898849 | J186: 1 | K186: 78.3 | L186: 79.25 | M186: 78.23 | N186: 78.86 | O186: 2909600
A187: 172 | B187: 2023-10-27 | C187: 79.970001 | D187: 79.970001 | E187: 77.900002 | F187: 78.190002 | G187: 1818200 | H187: 77.399101 | I187: 0.9898848832 | J187: 1 | K187: 79.16 | L187: 79.16 | M187: 77.11 | N187: 77.4 | O187: 1818200
A188: 173 | B188: 2023-10-26 | C188: 78.900002 | D188: 80.220001 | E188: 78.709999 | F188: 79.699997 | G188: 1048800 | H188: 78.893822 | I188: 0.9898848804 | J188: 1 | K188: 78.1 | L188: 79.41 | M188: 77.91 | N188: 78.89 | O188: 1048800
A189: 174 | B189: 2023-10-25 | C189: 78.690002 | D189: 79.699997 | E189: 78.209999 | F189: 79.110001 | G189: 3218400 | H189: 78.309792 | I189: 0.9898848567 | J189: 1 | K189: 77.89 | L189: 78.89 | M189: 77.42 | N189: 78.31 | O189: 3218400
A190: 175 | B190: 2023-10-24 | C190: 81.610001 | D190: 81.610001 | E190: 79.940002 | F190: 80.389999 | G190: 3075900 | H190: 78.603783 | I190: 0.9777806192 | J190: 1 | K190: 79.8 | L190: 79.8 | M190: 78.16 | N190: 78.6 | O190: 3075900
A191: 176 | B191: 2023-10-23 | C191: 80.480003 | D191: 82.209999 | E191: 80.300003 | F191: 81.309998 | G191: 4060800 | H191: 79.503342 | I191: 0.9777806414 | J191: 1 | K191: 78.69 | L191: 80.38 | M191: 78.52 | N191: 79.5 | O191: 4060800
A192: 177 | B192: 2023-10-20 | C192: 82.110001 | D192: 82.470001 | E192: 80.879997 | F192: 80.970001 | G192: 1126400 | H192: 79.170898 | I192: 0.9777806227 | J192: 1 | K192: 80.29 | L192: 80.64 | M192: 79.08 | N192: 79.17 | O192: 1126400
A193: 178 | B193: 2023-10-19 | C193: 82.730003 | D193: 83.739998 | E193: 82.300003 | F193: 82.43 | G193: 774200 | H193: 80.598457 | I193: 0.977780626 | J193: 1 | K193: 80.89 | L193: 81.88 | M193: 80.47 | N193: 80.6 | O193: 774200
A194: 179 | B194: 2023-10-18 | C194: 84.230003 | D194: 84.339996 | E194: 82.760002 | F194: 82.900002 | G194: 1311500 | H194: 81.058014 | I194: 0.9777806037 | J194: 1 | K194: 82.36 | L194: 82.47 | M194: 80.92 | N194: 81.06 | O194: 1311500
A195: 180 | B195: 2023-10-17 | C195: 84.559998 | D195: 85.769997 | E195: 84.489998 | F195: 84.68 | G195: 1034800 | H195: 82.798462 | I195: 0.9777806094 | J195: 1 | K195: 82.68 | L195: 83.86 | M195: 82.61 | N195: 82.8 | O195: 1034800
A196: 181 | B196: 2023-10-16 | C196: 84.389999 | D196: 85.470001 | E196: 83.989998 | F196: 85.370003 | G196: 782300 | H196: 83.473137 | I196: 0.9777806497 | J196: 1 | K196: 82.51 | L196: 83.57 | M196: 82.12 | N196: 83.47 | O196: 782300
A197: 182 | B197: 2023-10-13 | C197: 84.669998 | D197: 85.230003 | E197: 83.669998 | F197: 83.860001 | G197: 635400 | H197: 81.996681 | I197: 0.977780587 | J197: 1 | K197: 82.79 | L197: 83.34 | M197: 81.81 | N197: 82 | O197: 635400
A198: 183 | B198: 2023-10-12 | C198: 85.480003 | D198: 85.730003 | E198: 84.120003 | F198: 84.400002 | G198: 573100 | H198: 82.524689 | I198: 0.9777806522 | J198: 1 | K198: 83.58 | L198: 83.83 | M198: 82.25 | N198: 82.52 | O198: 573100
A199: 184 | B199: 2023-10-11 | C199: 85.379997 | D199: 85.989998 | E199: 84.919998 | F199: 85.589996 | G199: 645200 | H199: 83.688248 | I199: 0.977780721 | J199: 1 | K199: 83.48 | L199: 84.08 | M199: 83.03 | N199: 83.69 | O199: 645200
A200: 185 | B200: 2023-10-10 | C200: 84.330002 | D200: 85.239998 | E200: 84.199997 | F200: 85.089996 | G200: 802100 | H200: 83.199356 | I200: 0.9777807017 | J200: 1 | K200: 82.46 | L200: 83.35 | M200: 82.33 | N200: 83.2 | O200: 802100
... 4300 more rows

Sheet CalculationsAndCharts
A1: PrecisionTrendAnalysis.xlsm
A2: =InputPriceData!A1 & CHAR(13) & InputPriceData!G3 & UPPER(TEXT(InputPriceData!B16,"yyyy mmm dd")) & ", " & TEXT(InputPriceData!H3,"hh:mm am/pm ") & InputPriceData!I3 -> Royal Bank of Canada (RY) -NYSE (Daily) As Of: 2024 JUL 05, 03:07 PM EDT
H3: ="Subtracting HiPass(" & $A$18 & ") from HiPass(" & $A$17 & ") to arive at Trend(" & $A$17 & ", " & $A$18 & ")" -> Subtracting HiPass(40) from HiPass(250) to arive at Trend(250, 40)
A4: User Charting Controls | E4: Click to Shift Chart One Bar:
A5: Data Control | C5: FALSE
A6: =InputPriceData!$B$10 -> 7229 | B6: Available Input Data Rows | E6: Earliest: | F6: =OFFSET(InputPriceData!B15,CalculationsAndCharts!A6,0,1,1) -> 1995-10-16
A7: =MAX(A33:A56896) -> 1250 | B7: Available Calculation Rows | E7: Latest: | F7: =OFFSET(InputPriceData!B15,1,0,1,1) -> 2024-07-05
A8: =MIN(AvailableInputRows-DataPanRows,A7) -> 1250 | B8: Logically Available for Calc / Plot | E8: $ Change: | F8: =G33-G34 -> 0.2154
A10: Historical Price Windowing Specifications | F10: Click to Shift
A11: 0 | B11: Input Data Offset (Pan) | F11: Points to Plot
A12: 90 | B12: Data Points to Plot (Zoom)
B13: First: | C13: =OFFSET(B32,A12,0,1,1) -> 2024-02-27
B14: ="Last: " & IF(OFFSET(InputPriceData!P15,1+A11,0,1,1)="","",TEXT(OFFSET(InputPriceData!P15,1+A11,0,1,1),"H:MM AM/PM")) -> Last: | C14: =B33 -> 2024-07-05
A15: User Controls
A16: Trend
A17: 250 | B17: Length1
A18: 40 | B18: Length2
A20: SuperSmoother
A21: 12 | B21: Length1-R
A25: Help! I would like to plot data
A26: From | B26: 2023-03-02 | C26: =OFFSET(InputPriceData!$A$15,MATCH(B26,OFFSET(InputPriceData!B15,1,0,InputPriceData!$B$10,1),0),0,1,1)-C27 -> 234 | E26: 83
A27: To | B27: 2024-02-05 | C27: =OFFSET(InputPriceData!$A$15,MATCH(B27,OFFSET(InputPriceData!$B$15,1,0,InputPriceData!$B$10,1),0),0,1,1)-1 -> 104 | E27: =$A$12-$E$26+1 -> 8
H28: Value @ Cursor => | I28: =OFFSET(A32,$E$27,0,1,1)&"(RR)" -> 8(RR) | J28: =OFFSET($B$32,E27,0,1,1) -> 2024-06-25 | K28: =TEXT(OFFSET(D32,$E$27,0,1,1),"#,##0.00")&"(o)" -> 106.39(o) | L28: =TEXT(OFFSET(E32,$E$27,0,1,1),"#,##0.00")&"(h)" -> 106.70(h) | M28: =TEXT(OFFSET(F32,$E$27,0,1,1),"#,##0.00")&"(l)" -> 105.61(l) | N28: =TEXT(OFFSET(G32,$E$27,0,1,1),"#,##0.00")&"(c)" -> 106.36(c) | O28: =TEXT(OFFSET(C32,$E$27,0,1,1),"#,##0.00,,""M""")&"(v)" -> 1.03M(v)
E29: Cursor ==> | BE29: Work Area For Chart Cursors
B30: =LogicallyAvailableRows -> 1250 | C30: <== Calculation Rel Row Limits ==>
A31: Rel Row | H31: ="High Pass for Length 1 = "&$A$17 -> High Pass for Length 1 = 250 | K31: ="High Pass for Length 2 = "&$A$18 -> High Pass for Length 2 = 40 | Q31: ="ROC SuperSmoother = "&$A$21 -> ROC SuperSmoother = 12 | BC31: Used To Color Vol Bars
B32: Date | C32: Volume | D32: Open | E32: High | F32: Low | G32: Close | H32: ="High-Pass "&$A$17&" Coeffients" -> High-Pass 250 Coeffients | J32: ="HiPass("&$A$17&")" -> HiPass(250) | K32: ="High-Pass "&$A$18&" Coeffients" -> High-Pass 40 Coeffients | M32: ="HiPass("&$A$18&")" -> HiPass(40) | N32: ="Trend("&$A$17&", "&$A$18&")" -> Trend(250, 40) | O32: ="ROC("&$A$18&")" -> ROC(40) | Q32: ="SuperSmoother "&$A$21&" Coeffients" -> SuperSmoother 12 Coeffients | S32: ="Ss-ROC("&$A$21&")" -> Ss-ROC(12) | BC32: Up Vol | BD32: Dn Vol | BE32: Volume Cursor | BF32: =MAX(OFFSET(C33,0,0,A12,1)) -> 7056000 | BG32: Price Chart Cursor | BI32: Indicator01Cursor | BK32: Indicator02Cursor | BM32: Indicator03Cursor | BO32: Indicator04Cursor | BQ32: Indicator05Cursor | BS32: Indicator06Cursor | BU32: Indicator07Cursor | BW32: Indicator08Cursor
A33: 1 | B33: =IF($A33>$A$8,"",OFFSET(InputPriceData!$B$15,$A33+$A$11,0,1,1)) -> 2024-07-05 | C33: =IF($A33>$A$8,"",OFFSET(InputPriceData!$G$15,CalculationsAndCharts!$A33+$A$11,IF($C$5,8,0),1,1)) -> 324453 | D33: =IF(A33>$A$8,"",OFFSET(InputPriceData!$C$15,CalculationsAndCharts!$A33+$A$11,IF($C$5,8,0),1,1)) -> 110 | E33: =IF(A33>$A$8,"",OFFSET(InputPriceData!$D$15,CalculationsAndCharts!$A33+$A$11,IF($C$5,8,0),1,1)) -> 110.129997 | F33: =IF(A33>$A$8,"",OFFSET(InputPriceData!$E$15,CalculationsAndCharts!$A33+$A$11,IF($C$5,8,0),1,1)) -> 109.025002 | G33: =IF(A33>$A$8,"",OFFSET(InputPriceData!$F$15,CalculationsAndCharts!$A33+$A$11,IF($C$5,8,0),1,1)) -> 109.235397 | H33: a1 | I33: =EXP(-1.414*PI()/$A$17) -> 0.982388087 | J33: =I$35*($G33-2*$G34+$G35)+I$36*J34+I$37*J35 -> 2.292135504 | K33: a2 | L33: =EXP(-1.414*PI()/$A$18) -> 0.8948892599 | M33: =L$35*($G33-2*$G34+$G35)+L$36*M34+L$37*M35 -> 2.402506273 | N33: =J33-M33 -> -0.1103707693 | O33: =$L$39*(N33-N34) -> 3.166425589 | Q33: a1 | R33: =EXP(-1.414*3.14159/$A$21) -> 0.6906072322 | S33: =R$35*($O33+$O34)/2+R$36*S34+R$37*S35 -> 1.531156666 | BC33: =IF(G33>=G34,C33,NA()) -> 324453 | BD33: =IF(G33<G34,C33,NA()) ->  | BE33: =$E$27 -> 8 | BF33: 0 | BG33: =$E$27 -> 8 | BH33: 95.66137099 | BI33: =$E$27 -> 8 | BJ33: -5.048570359 | BK33: =$E$27 -> 8 | BL33: -4.7 | BM33: =$E$27 -> 8 | BO33: =$E$27 -> 8 | BP33: -1 | BQ33: 8 | BS33: 8 | BT33: 0 | BU33: 8 | BV33: 0 | BW33: 8
A34: 2 | B34: =IF($A34>$A$8,"",OFFSET(InputPriceData!$B$15,$A34+$A$11,0,1,1)) -> 2024-07-03 | C34: =IF($A34>$A$8,"",OFFSET(InputPriceData!$G$15,CalculationsAndCharts!$A34+$A$11,IF($C$5,8,0),1,1)) -> 473700 | D34: =IF(A34>$A$8,"",OFFSET(InputPriceData!$C$15,CalculationsAndCharts!$A34+$A$11,IF($C$5,8,0),1,1)) -> 108.190002 | E34: =IF(A34>$A$8,"",OFFSET(InputPriceData!$D$15,CalculationsAndCharts!$A34+$A$11,IF($C$5,8,0),1,1)) -> 109.599998 | F34: =IF(A34>$A$8,"",OFFSET(InputPriceData!$E$15,CalculationsAndCharts!$A34+$A$11,IF($C$5,8,0),1,1)) -> 107.949997 | G34: =IF(A34>$A$8,"",OFFSET(InputPriceData!$F$15,CalculationsAndCharts!$A34+$A$11,IF($C$5,8,0),1,1)) -> 109.019997 | H34: b1 | I34: =2*I33*COS(RADIANS(1.414*180/$A$17)) -> 1.964466011 | J34: =$I$35*($G34-2*$G35+$G36)+$I$36*J35+$I$37*J36 -> 2.264294176 | K34: b2 | L34: =2*L33*COS(RADIANS(1.414*180/$A$18)) -> 1.778752939 | M34: =L$35*($G34-2*$G35+$G36)+L$36*M35+L$37*M36 -> 2.871793763 | N34: =J34-M34 -> -0.6074995867 | O34: =$L$39*(N34-N35) -> 2.606917203 | Q34: b1 | R34: =2*R33*COS(RADIANS(1.414*180/$A$21)) -> 1.287651924 | S34: =R$35*($O34+$O35)/2+R$36*S35+R$37*S36 -> 0.9954877417 | BC34: =IF(G34>=G35,C34,NA()) -> 473700 | BD34: =IF(G34<G35,C34,NA()) ->  | BE34: =$E$27 -> 8 | BF34: =CEILING(BF32,10^INT(LOG10(BF32))/8) -> 7125000 | BG34: =$E$27 -> 8 | BH34: 110.308622 | BI34: =$E$27 -> 8 | BJ34: 5.081197732 | BK34: =$E$27 -> 8 | BL34: 4.7 | BM34: 8 | BN34: 0 | BO34: 8 | BP34: 1.0028993 | BQ34: 8 | BR34: 0 | BS34: 8 | BT34: 0 | BU34: 8 | BV34: 0 | BW34: 8 | BX34: 0
A35: 3 | B35: =IF(A35>$A$8,"",OFFSET(InputPriceData!B$15,$A35+$A$11,0,1,1)) -> 2024-07-02 | C35: =IF(A35>$A$8,"",OFFSET(InputPriceData!G$15,CalculationsAndCharts!$A35+$A$11,IF($C$5,8,0),1,1)) -> 714300 | D35: =IF(A35>$A$8,"",OFFSET(InputPriceData!C$15,CalculationsAndCharts!$A35+$A$11,IF($C$5,8,0),1,1)) -> 106 | E35: =IF(A35>$A$8,"",OFFSET(InputPriceData!D$15,CalculationsAndCharts!$A35+$A$11,IF($C$5,8,0),1,1)) -> 107.669998 | F35: =IF(A35>$A$8,"",OFFSET(InputPriceData!E$15,CalculationsAndCharts!$A35+$A$11,IF($C$5,8,0),1,1)) -> 105.93 | G35: =IF(A35>$A$8,"",OFFSET(InputPriceData!$F$15,CalculationsAndCharts!$A35+$A$11,IF($C$5,8,0),1,1)) -> 107.519997 | H35: c1 | I35: =(1+I36-I37)/4 -> 0.9823880911 | J35: 0.9263603195 | K35: c1 | L35: =(1+L36-L37)/4 -> 0.8948949316 | M35: 1.943145907 | N35: -1.016785588 | O35: 1.08139229 | Q35: c1 | R35: =(1-R36-R37) -> 0.1892864249 | S35: 0.6229164617 | BC35: 714300
A36: 4 | B36: =IF(A36>$A$8,"",OFFSET(InputPriceData!B$15,$A36+$A$11,0,1,1)) -> 2024-07-01 | C36: =IF(A36>$A$8,"",OFFSET(InputPriceData!G$15,CalculationsAndCharts!$A36+$A$11,IF($C$5,8,0),1,1)) -> 419900 | D36: =IF(A36>$A$8,"",OFFSET(InputPriceData!C$15,CalculationsAndCharts!$A36+$A$11,IF($C$5,8,0),1,1)) -> 106.830002 | E36: =IF(A36>$A$8,"",OFFSET(InputPriceData!D$15,CalculationsAndCharts!$A36+$A$11,IF($C$5,8,0),1,1)) -> 107.32 | F36: =IF(A36>$A$8,"",OFFSET(InputPriceData!E$15,CalculationsAndCharts!$A36+$A$11,IF($C$5,8,0),1,1)) -> 105.970001 | G36: =IF(A36>$A$8,"",OFFSET(InputPriceData!F$15,CalculationsAndCharts!$A36+$A$11,IF($C$5,8,0),1,1)) -> 105.980003 | H36: c2 | I36: =I34 -> 1.964466011 | J36: -0.5012820278 | K36: c2 | L36: =L34 -> 1.778752939 | M36: 0.6852821493 | N36: -1.186564177 | O36: 0.525293162 | Q36: c2 | R36: =R34 -> 1.287651924 | S36: 0.3264264616 | BD36: 419900
A37: 5 | B37: =IF(A37>$A$8,"",OFFSET(InputPriceData!B$15,$A37+$A$11,0,1,1)) -> 2024-06-28 | C37: =IF(A37>$A$8,"",OFFSET(InputPriceData!G$15,CalculationsAndCharts!$A37+$A$11,IF($C$5,8,0),1,1)) -> 632900 | D37: =IF(A37>$A$8,"",OFFSET(InputPriceData!C$15,CalculationsAndCharts!$A37+$A$11,IF($C$5,8,0),1,1)) -> 106.129997 | E37: =IF(A37>$A$8,"",OFFSET(InputPriceData!D$15,CalculationsAndCharts!$A37+$A$11,IF($C$5,8,0),1,1)) -> 106.730003 | F37: =IF(A37>$A$8,"",OFFSET(InputPriceData!E$15,CalculationsAndCharts!$A37+$A$11,IF($C$5,8,0),1,1)) -> 105.949997 | G37: =IF(A37>$A$8,"",OFFSET(InputPriceData!F$15,CalculationsAndCharts!$A37+$A$11,IF($C$5,8,0),1,1)) -> 106.379997 | H37: c3 | I37: =-I33*I33 -> -0.9650863536 | J37: -0.005482117565 | K37: c3 | L37: =-L33*L33 -> -0.8008267875 | M37: 1.263553086 | N37: -1.269035204 | O37: 0.6931612628 | Q37: c3 | R37: =-R33*R33 -> -0.4769383492 | S37: -0.1059485524 | BC37: 632900
A38: 6 | B38: =IF(A38>$A$8,"",OFFSET(InputPriceData!B$15,$A38+$A$11,0,1,1)) -> 2024-06-27 | C38: =IF(A38>$A$8,"",OFFSET(InputPriceData!G$15,CalculationsAndCharts!$A38+$A$11,IF($C$5,8,0),1,1)) -> 482200 | D38: =IF(A38>$A$8,"",OFFSET(InputPriceData!C$15,CalculationsAndCharts!$A38+$A$11,IF($C$5,8,0),1,1)) -> 105.699997 | E38: =IF(A38>$A$8,"",OFFSET(InputPriceData!D$15,CalculationsAndCharts!$A38+$A$11,IF($C$5,8,0),1,1)) -> 106.230003 | F38: =IF(A38>$A$8,"",OFFSET(InputPriceData!E$15,CalculationsAndCharts!$A38+$A$11,IF($C$5,8,0),1,1)) -> 105.209999 | G38: =IF(A38>$A$8,"",OFFSET(InputPriceData!F$15,CalculationsAndCharts!$A38+$A$11,IF($C$5,8,0),1,1)) -> 106.129997 | J38: -0.1533891451 | M38: 1.224472377 | N38: -1.377861522 | O38: 0.2722140892 | S38: -0.728674636 | BC38: 482200
A39: 7 | B39: =IF(A39>$A$8,"",OFFSET(InputPriceData!B$15,$A39+$A$11,0,1,1)) -> 2024-06-26 | C39: =IF(A39>$A$8,"",OFFSET(InputPriceData!G$15,CalculationsAndCharts!$A39+$A$11,IF($C$5,8,0),1,1)) -> 482600 | D39: =IF(A39>$A$8,"",OFFSET(InputPriceData!C$15,CalculationsAndCharts!$A39+$A$11,IF($C$5,8,0),1,1)) -> 105.599998 | E39: =IF(A39>$A$8,"",OFFSET(InputPriceData!D$15,CalculationsAndCharts!$A39+$A$11,IF($C$5,8,0),1,1)) -> 105.690002 | F39: =IF(A39>$A$8,"",OFFSET(InputPriceData!E$15,CalculationsAndCharts!$A39+$A$11,IF($C$5,8,0),1,1)) -> 105.059998 | G39: =IF(A39>$A$8,"",OFFSET(InputPriceData!F$15,CalculationsAndCharts!$A39+$A$11,IF($C$5,8,0),1,1)) -> 105.599998 | J39: -0.5915670918 | K39: ROC | L39: =$A$18/6.28 -> 6.369426752 | M39: 0.8290320419 | N39: -1.420599134 | O39: 0.4166238591 | S39: -1.553585535 | BD39: 482600
A40: 8 | B40: =IF(A40>$A$8,"",OFFSET(InputPriceData!B$15,$A40+$A$11,0,1,1)) -> 2024-06-25 | C40: =IF(A40>$A$8,"",OFFSET(InputPriceData!G$15,CalculationsAndCharts!$A40+$A$11,IF($C$5,8,0),1,1)) -> 1031900 | D40: =IF(A40>$A$8,"",OFFSET(InputPriceData!C$15,CalculationsAndCharts!$A40+$A$11,IF($C$5,8,0),1,1)) -> 106.389999 | E40: =IF(A40>$A$8,"",OFFSET(InputPriceData!D$15,CalculationsAndCharts!$A40+$A$11,IF($C$5,8,0),1,1)) -> 106.699997 | F40: =IF(A40>$A$8,"",OFFSET(InputPriceData!E$15,CalculationsAndCharts!$A40+$A$11,IF($C$5,8,0),1,1)) -> 105.610001 | G40: =IF(A40>$A$8,"",OFFSET(InputPriceData!F$15,CalculationsAndCharts!$A40+$A$11,IF($C$5,8,0),1,1)) -> 106.360001 | J40: 0.2679120903 | M40: 1.75392117 | N40: -1.48600908 | O40: 0.8063065959 | S40: -2.529905454 | BC40: =IF(G40>=G41,C40,NA()) -> 1031900 | BD40: =IF(G40<G41,C40,NA()) -> 
A41: 9 | B41: =IF(A41>$A$8,"",OFFSET(InputPriceData!B$15,$A41+$A$11,0,1,1)) -> 2024-06-24 | C41: =IF(A41>$A$8,"",OFFSET(InputPriceData!G$15,CalculationsAndCharts!$A41+$A$11,IF($C$5,8,0),1,1)) -> 814300 | D41: =IF(A41>$A$8,"",OFFSET(InputPriceData!C$15,CalculationsAndCharts!$A41+$A$11,IF($C$5,8,0),1,1)) -> 104.120003 | E41: =IF(A41>$A$8,"",OFFSET(InputPriceData!D$15,CalculationsAndCharts!$A41+$A$11,IF($C$5,8,0),1,1)) -> 106.360001 | F41: =IF(A41>$A$8,"",OFFSET(InputPriceData!E$15,CalculationsAndCharts!$A41+$A$11,IF($C$5,8,0),1,1)) -> 104.120003 | G41: =IF(A41>$A$8,"",OFFSET(InputPriceData!F$15,CalculationsAndCharts!$A41+$A$11,IF($C$5,8,0),1,1)) -> 106.220001 | J41: 0.2421742439 | M41: 1.854773459 | N41: -1.612599215 | O41: -0.9059154317 | S41: -3.330220829 | BC41: 814300
A42: 10 | B42: =IF(A42>$A$8,"",OFFSET(InputPriceData!B$15,$A42+$A$11,0,1,1)) -> 2024-06-21 | C42: =IF(A42>$A$8,"",OFFSET(InputPriceData!G$15,CalculationsAndCharts!$A42+$A$11,IF($C$5,8,0),1,1)) -> 954600 | D42: =IF(A42>$A$8,"",OFFSET(InputPriceData!C$15,CalculationsAndCharts!$A42+$A$11,IF($C$5,8,0),1,1)) -> 103.029999 | E42: =IF(A42>$A$8,"",OFFSET(InputPriceData!D$15,CalculationsAndCharts!$A42+$A$11,IF($C$5,8,0),1,1)) -> 103.830002 | F42: =IF(A42>$A$8,"",OFFSET(InputPriceData!E$15,CalculationsAndCharts!$A42+$A$11,IF($C$5,8,0),1,1)) -> 102.519997 | G42: =IF(A42>$A$8,"",OFFSET(InputPriceData!F$15,CalculationsAndCharts!$A42+$A$11,IF($C$5,8,0),1,1)) -> 103.629997 | J42: -2.278577211 | M42: -0.8082067189 | N42: -1.470370492 | O42: -2.927497328 | S42: -3.706322018 | BC42: 954600
A43: 11 | B43: =IF(A43>$A$8,"",OFFSET(InputPriceData!B$15,$A43+$A$11,0,1,1)) -> 2024-06-20 | C43: =IF(A43>$A$8,"",OFFSET(InputPriceData!G$15,CalculationsAndCharts!$A43+$A$11,IF($C$5,8,0),1,1)) -> 1024900 | D43: =IF(A43>$A$8,"",OFFSET(InputPriceData!C$15,CalculationsAndCharts!$A43+$A$11,IF($C$5,8,0),1,1)) -> 103.410004 | E43: =IF(A43>$A$8,"",OFFSET(InputPriceData!D$15,CalculationsAndCharts!$A43+$A$11,IF($C$5,8,0),1,1)) -> 103.650002 | F43: =IF(A43>$A$8,"",OFFSET(InputPriceData!E$15,CalculationsAndCharts!$A43+$A$11,IF($C$5,8,0),1,1)) -> 102.830002 | G43: =IF(A43>$A$8,"",OFFSET(InputPriceData!F$15,CalculationsAndCharts!$A43+$A$11,IF($C$5,8,0),1,1)) -> 103.379997 | J43: -2.507101729 | M43: -1.496348318 | N43: -1.010753412 | O43: -3.281394483 | S43: -3.784636632 | BD43: 1024900
A44: 12 | B44: =IF(A44>$A$8,"",OFFSET(InputPriceData!B$15,$A44+$A$11,0,1,1)) -> 2024-06-18 | C44: =IF(A44>$A$8,"",OFFSET(InputPriceData!G$15,CalculationsAndCharts!$A44+$A$11,IF($C$5,8,0),1,1)) -> 979800 | D44: =IF(A44>$A$8,"",OFFSET(InputPriceData!C$15,CalculationsAndCharts!$A44+$A$11,IF($C$5,8,0),1,1)) -> 103.589996 | E44: =IF(A44>$A$8,"",OFFSET(InputPriceData!D$15,CalculationsAndCharts!$A44+$A$11,IF($C$5,8,0),1,1)) -> 104.389999 | F44: =IF(A44>$A$8,"",OFFSET(InputPriceData!E$15,CalculationsAndCharts!$A44+$A$11,IF($C$5,8,0),1,1)) -> 103.360001 | G44: =IF(A44>$A$8,"",OFFSET(InputPriceData!F$15,CalculationsAndCharts!$A44+$A$11,IF($C$5,8,0),1,1)) -> 103.809998 | J44: -2.050090161 | M44: -1.554515683 | N44: -0.4955744781 | O44: -3.626414223 | S44: -3.678886578 | BC44: 979800
A45: 13 | B45: =IF(A45>$A$8,"",OFFSET(InputPriceData!B$15,$A45+$A$11,0,1,1)) -> 2024-06-17 | C45: =IF(A45>$A$8,"",OFFSET(InputPriceData!G$15,CalculationsAndCharts!$A45+$A$11,IF($C$5,8,0),1,1)) -> 884800 | D45: =IF(A45>$A$8,"",OFFSET(InputPriceData!C$15,CalculationsAndCharts!$A45+$A$11,IF($C$5,8,0),1,1)) -> 103.699997 | E45: =IF(A45>$A$8,"",OFFSET(InputPriceData!D$15,CalculationsAndCharts!$A45+$A$11,IF($C$5,8,0),1,1)) -> 103.779999 | F45: =IF(A45>$A$8,"",OFFSET(InputPriceData!E$15,CalculationsAndCharts!$A45+$A$11,IF($C$5,8,0),1,1)) -> 102.690002 | G45: =IF(A45>$A$8,"",OFFSET(InputPriceData!F$15,CalculationsAndCharts!$A45+$A$11,IF($C$5,8,0),1,1)) -> 103.589996 | J45: -2.236883683 | M45: -2.310656238 | N45: 0.07377255488 | O45: -4.023310232 | S45: -3.367869157 | BC45: =IF(G45>=G46,C45,NA()) ->  | BD45: =IF(G45<G46,C45,NA()) -> 884800
A46: 14 | B46: =IF(A46>$A$8,"",OFFSET(InputPriceData!B$15,$A46+$A$11,0,1,1)) -> 2024-06-14 | C46: =IF(A46>$A$8,"",OFFSET(InputPriceData!G$15,CalculationsAndCharts!$A46+$A$11,IF($C$5,8,0),1,1)) -> 597100 | D46: =IF(A46>$A$8,"",OFFSET(InputPriceData!C$15,CalculationsAndCharts!$A46+$A$11,IF($C$5,8,0),1,1)) -> 103.690002 | E46: =IF(A46>$A$8,"",OFFSET(InputPriceData!D$15,CalculationsAndCharts!$A46+$A$11,IF($C$5,8,0),1,1)) -> 104.059998 | F46: =IF(A46>$A$8,"",OFFSET(InputPriceData!E$15,CalculationsAndCharts!$A46+$A$11,IF($C$5,8,0),1,1)) -> 102.440002 | G46: =IF(A46>$A$8,"",OFFSET(InputPriceData!F$15,CalculationsAndCharts!$A46+$A$11,IF($C$5,8,0),1,1)) -> 103.940002 | J46: -1.848770038 | M46: -2.554202299 | N46: 0.7054322613 | O46: -3.994297171 | S46: -2.897127315 | BD46: 597100
A47: 15 | B47: =IF(A47>$A$8,"",OFFSET(InputPriceData!B$15,$A47+$A$11,0,1,1)) -> 2024-06-13 | C47: =IF(A47>$A$8,"",OFFSET(InputPriceData!G$15,CalculationsAndCharts!$A47+$A$11,IF($C$5,8,0),1,1)) -> 537500 | D47: =IF(A47>$A$8,"",OFFSET(InputPriceData!C$15,CalculationsAndCharts!$A47+$A$11,IF($C$5,8,0),1,1)) -> 105.309998 | E47: =IF(A47>$A$8,"",OFFSET(InputPriceData!D$15,CalculationsAndCharts!$A47+$A$11,IF($C$5,8,0),1,1)) -> 105.32 | F47: =IF(A47>$A$8,"",OFFSET(InputPriceData!E$15,CalculationsAndCharts!$A47+$A$11,IF($C$5,8,0),1,1)) -> 104.010002 | G47: =IF(A47>$A$8,"",OFFSET(InputPriceData!F$15,CalculationsAndCharts!$A47+$A$11,IF($C$5,8,0),1,1)) -> 104.389999 | J47: -1.343643753 | M47: -2.67618067 | N47: 1.332536917 | O47: -3.42114203 | S47: -2.35131968 | BD47: 537500
A48: 16 | B48: =IF(A48>$A$8,"",OFFSET(InputPriceData!B$15,$A48+$A$11,0,1,1)) -> 2024-06-12 | C48: =IF(A48>$A$8,"",OFFSET(InputPriceData!G$15,CalculationsAndCharts!$A48+$A$11,IF($C$5,8,0),1,1)) -> 652200 | D48: =IF(A48>$A$8,"",OFFSET(InputPriceData!C$15,CalculationsAndCharts!$A48+$A$11,IF($C$5,8,0),1,1)) -> 106.150002 | E48: =IF(A48>$A$8,"",OFFSET(InputPriceData!D$15,CalculationsAndCharts!$A48+$A$11,IF($C$5,8,0),1,1)) -> 106.690002 | F48: =IF(A48>$A$8,"",OFFSET(InputPriceData!E$15,CalculationsAndCharts!$A48+$A$11,IF($C$5,8,0),1,1)) -> 105.25 | G48: =IF(A48>$A$8,"",OFFSET(InputPriceData!F$15,CalculationsAndCharts!$A48+$A$11,IF($C$5,8,0),1,1)) -> 105.5 | J48: -0.1475436638 | M48: -2.01719988 | N48: 1.869656216 | O48: -3.079098231 | S48: -1.745246497 | BC48: 652200
A49: 17 | B49: =IF(A49>$A$8,"",OFFSET(InputPriceData!B$15,$A49+$A$11,0,1,1)) -> 2024-06-11 | C49: =IF(A49>$A$8,"",OFFSET(InputPriceData!G$15,CalculationsAndCharts!$A49+$A$11,IF($C$5,8,0),1,1)) -> 382800 | D49: =IF(A49>$A$8,"",OFFSET(InputPriceData!C$15,CalculationsAndCharts!$A49+$A$11,IF($C$5,8,0),1,1)) -> 105.599998 | E49: =IF(A49>$A$8,"",OFFSET(InputPriceData!D$15,CalculationsAndCharts!$A49+$A$11,IF($C$5,8,0),1,1)) -> 105.779999 | F49: =IF(A49>$A$8,"",OFFSET(InputPriceData!E$15,CalculationsAndCharts!$A49+$A$11,IF($C$5,8,0),1,1)) -> 105.019997 | G49: =IF(A49>$A$8,"",OFFSET(InputPriceData!F$15,CalculationsAndCharts!$A49+$A$11,IF($C$5,8,0),1,1)) -> 105.379997 | J49: -0.1601328633 | M49: -2.513207501 | N49: 2.353074638 | O49: -2.806389604 | S49: -1.071740092 | BD49: 382800
A50: 18 | B50: =IF(A50>$A$8,"",OFFSET(InputPriceData!B$15,$A50+$A$11,0,1,1)) -> 2024-06-10 | C50: =IF(A50>$A$8,"",OFFSET(InputPriceData!G$15,CalculationsAndCharts!$A50+$A$11,IF($C$5,8,0),1,1)) -> 1807200 | D50: =IF(A50>$A$8,"",OFFSET(InputPriceData!C$15,CalculationsAndCharts!$A50+$A$11,IF($C$5,8,0),1,1)) -> 106.07 | E50: =IF(A50>$A$8,"",OFFSET(InputPriceData!D$15,CalculationsAndCharts!$A50+$A$11,IF($C$5,8,0),1,1)) -> 106.419998 | F50: =IF(A50>$A$8,"",OFFSET(InputPriceData!E$15,CalculationsAndCharts!$A50+$A$11,IF($C$5,8,0),1,1)) -> 105.660004 | G50: =IF(A50>$A$8,"",OFFSET(InputPriceData!F$15,CalculationsAndCharts!$A50+$A$11,IF($C$5,8,0),1,1)) -> 106.230003 | J50: 0.8143244214 | M50: -1.979353384 | N50: 2.793677806 | O50: -2.271848304 | S50: -0.4021550588 | BD50: 1807200
A51: 19 | B51: =IF(A51>$A$8,"",OFFSET(InputPriceData!B$15,$A51+$A$11,0,1,1)) -> 2024-06-07 | C51: =IF(A51>$A$8,"",OFFSET(InputPriceData!G$15,CalculationsAndCharts!$A51+$A$11,IF($C$5,8,0),1,1)) -> 395000 | D51: =IF(A51>$A$8,"",OFFSET(InputPriceData!C$15,CalculationsAndCharts!$A51+$A$11,IF($C$5,8,0),1,1)) -> 107.099998 | E51: =IF(A51>$A$8,"",OFFSET(InputPriceData!D$15,CalculationsAndCharts!$A51+$A$11,IF($C$5,8,0),1,1)) -> 107.230003 | F51: =IF(A51>$A$8,"",OFFSET(InputPriceData!E$15,CalculationsAndCharts!$A51+$A$11,IF($C$5,8,0),1,1)) -> 106.220001 | G51: =IF(A51>$A$8,"",OFFSET(InputPriceData!F$15,CalculationsAndCharts!$A51+$A$11,IF($C$5,8,0),1,1)) -> 106.389999 | J51: 1.121130664 | M51: -2.029227326 | N51: 3.15035799 | O51: -1.382326016 | S51: 0.1536542555 | BD51: 395000
A52: 20 | B52: =IF(A52>$A$8,"",OFFSET(InputPriceData!B$15,$A52+$A$11,0,1,1)) -> 2024-06-06 | C52: =IF(A52>$A$8,"",OFFSET(InputPriceData!G$15,CalculationsAndCharts!$A52+$A$11,IF($C$5,8,0),1,1)) -> 418500 | D52: =IF(A52>$A$8,"",OFFSET(InputPriceData!C$15,CalculationsAndCharts!$A52+$A$11,IF($C$5,8,0),1,1)) -> 107.300003 | E52: =IF(A52>$A$8,"",OFFSET(InputPriceData!D$15,CalculationsAndCharts!$A52+$A$11,IF($C$5,8,0),1,1)) -> 107.669998 | F52: =IF(A52>$A$8,"",OFFSET(InputPriceData!E$15,CalculationsAndCharts!$A52+$A$11,IF($C$5,8,0),1,1)) -> 106.589996 | G52: =IF(A52>$A$8,"",OFFSET(InputPriceData!F$15,CalculationsAndCharts!$A52+$A$11,IF($C$5,8,0),1,1)) -> 107.620003 | J52: 2.527506237 | M52: -0.8398769366 | N52: 3.367383174 | O52: -0.7676375869 | S52: 0.5329105126 | BC52: 418500
A53: 21 | B53: =IF(A53>$A$8,"",OFFSET(InputPriceData!B$15,$A53+$A$11,0,1,1)) -> 2024-06-05 | C53: =IF(A53>$A$8,"",OFFSET(InputPriceData!G$15,CalculationsAndCharts!$A53+$A$11,IF($C$5,8,0),1,1)) -> 605100 | D53: =IF(A53>$A$8,"",OFFSET(InputPriceData!C$15,CalculationsAndCharts!$A53+$A$11,IF($C$5,8,0),1,1)) -> 107.830002 | E53: =IF(A53>$A$8,"",OFFSET(InputPriceData!D$15,CalculationsAndCharts!$A53+$A$11,IF($C$5,8,0),1,1)) -> 108.07 | F53: =IF(A53>$A$8,"",OFFSET(InputPriceData!E$15,CalculationsAndCharts!$A53+$A$11,IF($C$5,8,0),1,1)) -> 106.400002 | G53: =IF(A53>$A$8,"",OFFSET(InputPriceData!F$15,CalculationsAndCharts!$A53+$A$11,IF($C$5,8,0),1,1)) -> 107.110001 | J53: 2.211934975 | M53: -1.275967301 | N53: 3.487902275 | O53: -0.5947646785 | S53: 0.6899624028 | BD53: 605100
A54: 22 | B54: =IF(A54>$A$8,"",OFFSET(InputPriceData!B$15,$A54+$A$11,0,1,1)) -> 2024-06-04 | C54: =IF(A54>$A$8,"",OFFSET(InputPriceData!G$15,CalculationsAndCharts!$A54+$A$11,IF($C$5,8,0),1,1)) -> 568300 | D54: =IF(A54>$A$8,"",OFFSET(InputPriceData!C$15,CalculationsAndCharts!$A54+$A$11,IF($C$5,8,0),1,1)) -> 107.410004 | E54: =IF(A54>$A$8,"",OFFSET(InputPriceData!D$15,CalculationsAndCharts!$A54+$A$11,IF($C$5,8,0),1,1)) -> 108.440002 | F54: =IF(A54>$A$8,"",OFFSET(InputPriceData!E$15,CalculationsAndCharts!$A54+$A$11,IF($C$5,8,0),1,1)) -> 107 | G54: =IF(A54>$A$8,"",OFFSET(InputPriceData!F$15,CalculationsAndCharts!$A54+$A$11,IF($C$5,8,0),1,1)) -> 107.480003 | J54: 2.779305995 | M54: -0.8019743344 | N54: 3.58128033 | O54: 0.6530334097 | S54: 0.4750693175 | BD54: 568300
A55: 23 | B55: =IF(A55>$A$8,"",OFFSET(InputPriceData!B$15,$A55+$A$11,0,1,1)) -> 2024-06-03 | C55: =IF(A55>$A$8,"",OFFSET(InputPriceData!G$15,CalculationsAndCharts!$A55+$A$11,IF($C$5,8,0),1,1)) -> 614600 | D55: =IF(A55>$A$8,"",OFFSET(InputPriceData!C$15,CalculationsAndCharts!$A55+$A$11,IF($C$5,8,0),1,1)) -> 109.5 | E55: =IF(A55>$A$8,"",OFFSET(InputPriceData!D$15,CalculationsAndCharts!$A55+$A$11,IF($C$5,8,0),1,1)) -> 109.510002 | F55: =IF(A55>$A$8,"",OFFSET(InputPriceData!E$15,CalculationsAndCharts!$A55+$A$11,IF($C$5,8,0),1,1)) -> 107.519997 | G55: =IF(A55>$A$8,"",OFFSET(InputPriceData!F$15,CalculationsAndCharts!$A55+$A$11,IF($C$5,8,0),1,1)) -> 108.599998 | J55: 4.128854754 | M55: 0.6501006694 | N55: 3.478754084 | O55: 2.259825969 | S55: -0.1524803827 | BD55: 614600
A56: 24 | B56: =IF(A56>$A$8,"",OFFSET(InputPriceData!B$15,$A56+$A$11,0,1,1)) -> 2024-05-31 | C56: =IF(A56>$A$8,"",OFFSET(InputPriceData!G$15,CalculationsAndCharts!$A56+$A$11,IF($C$5,8,0),1,1)) -> 1654400 | D56: =IF(A56>$A$8,"",OFFSET(InputPriceData!C$15,CalculationsAndCharts!$A56+$A$11,IF($C$5,8,0),1,1)) -> 109.25 | E56: =IF(A56>$A$8,"",OFFSET(InputPriceData!D$15,CalculationsAndCharts!$A56+$A$11,IF($C$5,8,0),1,1)) -> 109.470001 | F56: =IF(A56>$A$8,"",OFFSET(InputPriceData!E$15,CalculationsAndCharts!$A56+$A$11,IF($C$5,8,0),1,1)) -> 107.459999 | G56: =IF(A56>$A$8,"",OFFSET(InputPriceData!F$15,CalculationsAndCharts!$A56+$A$11,IF($C$5,8,0),1,1)) -> 109.269997 | J56: 5.066508404 | M56: 1.942546997 | N56: 3.123961407 | O56: 2.794539626 | S56: -0.8297269602 | BC56: 1654400
A57: 25 | B57: =IF(A57>$A$8,"",OFFSET(InputPriceData!B$15,$A57+$A$11,0,1,1)) -> 2024-05-30 | C57: =IF(A57>$A$8,"",OFFSET(InputPriceData!G$15,CalculationsAndCharts!$A57+$A$11,IF($C$5,8,0),1,1)) -> 1630500 | D57: =IF(A57>$A$8,"",OFFSET(InputPriceData!C$15,CalculationsAndCharts!$A57+$A$11,IF($C$5,8,0),1,1)) -> 105.099998 | E57: =IF(A57>$A$8,"",OFFSET(InputPriceData!D$15,CalculationsAndCharts!$A57+$A$11,IF($C$5,8,0),1,1)) -> 108.660004 | F57: =IF(A57>$A$8,"",OFFSET(InputPriceData!E$15,CalculationsAndCharts!$A57+$A$11,IF($C$5,8,0),1,1)) -> 105 | G57: =IF(A57>$A$8,"",OFFSET(InputPriceData!F$15,CalculationsAndCharts!$A57+$A$11,IF($C$5,8,0),1,1)) -> 108.400002 | J57: 4.467224118 | M57: 1.782005432 | N57: 2.685218686 | O57: -0.5833295577 | S57: -0.9174303935 | BC57: 1630500
A58: 26 | B58: =IF(A58>$A$8,"",OFFSET(InputPriceData!B$15,$A58+$A$11,0,1,1)) -> 2024-05-29 | C58: =IF(A58>$A$8,"",OFFSET(InputPriceData!G$15,CalculationsAndCharts!$A58+$A$11,IF($C$5,8,0),1,1)) -> 668700 | D58: =IF(A58>$A$8,"",OFFSET(InputPriceData!C$15,CalculationsAndCharts!$A58+$A$11,IF($C$5,8,0),1,1)) -> 104.190002 | E58: =IF(A58>$A$8,"",OFFSET(InputPriceData!D$15,CalculationsAndCharts!$A58+$A$11,IF($C$5,8,0),1,1)) -> 104.309998 | F58: =IF(A58>$A$8,"",OFFSET(InputPriceData!E$15,CalculationsAndCharts!$A58+$A$11,IF($C$5,8,0),1,1)) -> 102.800003 | G58: =IF(A58>$A$8,"",OFFSET(InputPriceData!F$15,CalculationsAndCharts!$A58+$A$11,IF($C$5,8,0),1,1)) -> 102.849998 | J58: -0.9205223619 | M58: -3.697323788 | N58: 2.776801427 | O58: -2.469439054 | S58: -0.2984201783 | BD58: 668700
A59: 27 | B59: =IF(A59>$A$8,"",OFFSET(InputPriceData!B$15,$A59+$A$11,0,1,1)) -> 2024-05-28 | C59: =IF(A59>$A$8,"",OFFSET(InputPriceData!G$15,CalculationsAndCharts!$A59+$A$11,IF($C$5,8,0),1,1)) -> 427900 | D59: =IF(A59>$A$8,"",OFFSET(InputPriceData!C$15,CalculationsAndCharts!$A59+$A$11,IF($C$5,8,0),1,1)) -> 105.309998 | E59: =IF(A59>$A$8,"",OFFSET(InputPriceData!D$15,CalculationsAndCharts!$A59+$A$11,IF($C$5,8,0),1,1)) -> 105.489998 | F59: =IF(A59>$A$8,"",OFFSET(InputPriceData!E$15,CalculationsAndCharts!$A59+$A$11,IF($C$5,8,0),1,1)) -> 104.620003 | G59: =IF(A59>$A$8,"",OFFSET(InputPriceData!F$15,CalculationsAndCharts!$A59+$A$11,IF($C$5,8,0),1,1)) -> 105.040001 | J59: 1.376179123 | M59: -1.788324235 | N59: 3.164503358 | O59: -0.8785345674 | S59: 0.5121107346 | BD59: 427900
A60: 28 | B60: =IF(A60>$A$8,"",OFFSET(InputPriceData!B$15,$A60+$A$11,0,1,1)) -> 2024-05-24 | C60: =IF(A60>$A$8,"",OFFSET(InputPriceData!G$15,CalculationsAndCharts!$A60+$A$11,IF($C$5,8,0),1,1)) -> 862400 | D60: =IF(A60>$A$8,"",OFFSET(InputPriceData!C$15,CalculationsAndCharts!$A60+$A$11,IF($C$5,8,0),1,1)) -> 104.290001 | E60: =IF(A60>$A$8,"",OFFSET(InputPriceData!D$15,CalculationsAndCharts!$A60+$A$11,IF($C$5,8,0),1,1)) -> 105.769997 | F60: =IF(A60>$A$8,"",OFFSET(InputPriceData!E$15,CalculationsAndCharts!$A60+$A$11,IF($C$5,8,0),1,1)) -> 104.190002 | G60: =IF(A60>$A$8,"",OFFSET(InputPriceData!F$15,CalculationsAndCharts!$A60+$A$11,IF($C$5,8,0),1,1)) -> 105.300003 | J60: 1.790481722 | M60: -1.511951563 | N60: 3.302433285 | O60: -0.865701815 | S60: 1.343942196 | BC60: 862400
A61: 29 | B61: =IF(A61>$A$8,"",OFFSET(InputPriceData!B$15,$A61+$A$11,0,1,1)) -> 2024-05-23 | C61: =IF(A61>$A$8,"",OFFSET(InputPriceData!G$15,CalculationsAndCharts!$A61+$A$11,IF($C$5,8,0),1,1)) -> 570300 | D61: =IF(A61>$A$8,"",OFFSET(InputPriceData!C$15,CalculationsAndCharts!$A61+$A$11,IF($C$5,8,0),1,1)) -> 106.480003 | E61: =IF(A61>$A$8,"",OFFSET(InputPriceData!D$15,CalculationsAndCharts!$A61+$A$11,IF($C$5,8,0),1,1)) -> 106.650002 | F61: =IF(A61>$A$8,"",OFFSET(InputPriceData!E$15,CalculationsAndCharts!$A61+$A$11,IF($C$5,8,0),1,1)) -> 104.279999 | G61: =IF(A61>$A$8,"",OFFSET(InputPriceData!F$15,CalculationsAndCharts!$A61+$A$11,IF($C$5,8,0),1,1)) -> 104.610001 | J61: 1.251586184 | M61: -2.186762286 | N61: 3.43834847 | O61: -0.128138946 | S61: 2.208543069 | BD61: 570300
A62: 30 | B62: =IF(A62>$A$8,"",OFFSET(InputPriceData!B$15,$A62+$A$11,0,1,1)) -> 2024-05-22 | C62: =IF(A62>$A$8,"",OFFSET(InputPriceData!G$15,CalculationsAndCharts!$A62+$A$11,IF($C$5,8,0),1,1)) -> 933900 | D62: =IF(A62>$A$8,"",OFFSET(InputPriceData!C$15,CalculationsAndCharts!$A62+$A$11,IF($C$5,8,0),1,1)) -> 105.389999 | E62: =IF(A62>$A$8,"",OFFSET(InputPriceData!D$15,CalculationsAndCharts!$A62+$A$11,IF($C$5,8,0),1,1)) -> 106.43 | F62: =IF(A62>$A$8,"",OFFSET(InputPriceData!E$15,CalculationsAndCharts!$A62+$A$11,IF($C$5,8,0),1,1)) -> 105 | G62: =IF(A62>$A$8,"",OFFSET(InputPriceData!F$15,CalculationsAndCharts!$A62+$A$11,IF($C$5,8,0),1,1)) -> 105.959999 | J62: 2.768963102 | M62: -0.6895031831 | N62: 3.458466285 | O62: 1.119869723 | S62: 2.947618402 | BC62: 933900
A63: 31 | B63: =IF(A63>$A$8,"",OFFSET(InputPriceData!B$15,$A63+$A$11,0,1,1)) -> 2024-05-21 | C63: =IF(A63>$A$8,"",OFFSET(InputPriceData!G$15,CalculationsAndCharts!$A63+$A$11,IF($C$5,8,0),1,1)) -> 658600 | D63: =IF(A63>$A$8,"",OFFSET(InputPriceData!C$15,CalculationsAndCharts!$A63+$A$11,IF($C$5,8,0),1,1)) -> 105.480003 | E63: =IF(A63>$A$8,"",OFFSET(InputPriceData!D$15,CalculationsAndCharts!$A63+$A$11,IF($C$5,8,0),1,1)) -> 106.379997 | F63: =IF(A63>$A$8,"",OFFSET(InputPriceData!E$15,CalculationsAndCharts!$A63+$A$11,IF($C$5,8,0),1,1)) -> 105.260002 | G63: =IF(A63>$A$8,"",OFFSET(InputPriceData!F$15,CalculationsAndCharts!$A63+$A$11,IF($C$5,8,0),1,1)) -> 105.879997 | J63: 2.883817322 | M63: -0.3988294159 | N63: 3.282646738 | O63: 1.661059246 | S63: 3.524195586 | BC63: 658600
A64: 32 | B64: =IF(A64>$A$8,"",OFFSET(InputPriceData!B$15,$A64+$A$11,0,1,1)) -> 2024-05-20 | C64: =IF(A64>$A$8,"",OFFSET(InputPriceData!G$15,CalculationsAndCharts!$A64+$A$11,IF($C$5,8,0),1,1)) -> 328000 | D64: =IF(A64>$A$8,"",OFFSET(InputPriceData!C$15,CalculationsAndCharts!$A64+$A$11,IF($C$5,8,0),1,1)) -> 106.790001 | E64: =IF(A64>$A$8,"",OFFSET(InputPriceData!D$15,CalculationsAndCharts!$A64+$A$11,IF($C$5,8,0),1,1)) -> 107.199997 | F64: =IF(A64>$A$8,"",OFFSET(InputPriceData!E$15,CalculationsAndCharts!$A64+$A$11,IF($C$5,8,0),1,1)) -> 105.839996 | G64: =IF(A64>$A$8,"",OFFSET(InputPriceData!F$15,CalculationsAndCharts!$A64+$A$11,IF($C$5,8,0),1,1)) -> 105.839996 | J64: 3.041691041 | M64: 0.0198306047 | N64: 3.021860437 | O64: 2.924519568 | S64: 3.886277713 | BD64: 328000
A65: 33 | B65: =IF(A65>$A$8,"",OFFSET(InputPriceData!B$15,$A65+$A$11,0,1,1)) -> 2024-05-17 | C65: =IF(A65>$A$8,"",OFFSET(InputPriceData!G$15,CalculationsAndCharts!$A65+$A$11,IF($C$5,8,0),1,1)) -> 1492600 | D65: =IF(A65>$A$8,"",OFFSET(InputPriceData!C$15,CalculationsAndCharts!$A65+$A$11,IF($C$5,8,0),1,1)) -> 106.150002 | E65: =IF(A65>$A$8,"",OFFSET(InputPriceData!D$15,CalculationsAndCharts!$A65+$A$11,IF($C$5,8,0),1,1)) -> 106.870003 | F65: =IF(A65>$A$8,"",OFFSET(InputPriceData!E$15,CalculationsAndCharts!$A65+$A$11,IF($C$5,8,0),1,1)) -> 105.769997 | G65: =IF(A65>$A$8,"",OFFSET(InputPriceData!F$15,CalculationsAndCharts!$A65+$A$11,IF($C$5,8,0),1,1)) -> 106.790001 | J65: 4.211075448 | M65: 1.648364583 | N65: 2.562710864 | O65: 3.853245211 | S65: 4.013037119 | BC65: 1492600
A66: 34 | B66: =IF(A66>$A$8,"",OFFSET(InputPriceData!B$15,$A66+$A$11,0,1,1)) -> 2024-05-16 | C66: =IF(A66>$A$8,"",OFFSET(InputPriceData!G$15,CalculationsAndCharts!$A66+$A$11,IF($C$5,8,0),1,1)) -> 812700 | D66: =IF(A66>$A$8,"",OFFSET(InputPriceData!C$15,CalculationsAndCharts!$A66+$A$11,IF($C$5,8,0),1,1)) -> 105.32 | E66: =IF(A66>$A$8,"",OFFSET(InputPriceData!D$15,CalculationsAndCharts!$A66+$A$11,IF($C$5,8,0),1,1)) -> 106.489998 | F66: =IF(A66>$A$8,"",OFFSET(InputPriceData!E$15,CalculationsAndCharts!$A66+$A$11,IF($C$5,8,0),1,1)) -> 105.18 | G66: =IF(A66>$A$8,"",OFFSET(InputPriceData!F$15,CalculationsAndCharts!$A66+$A$11,IF($C$5,8,0),1,1)) -> 105.989998 | J66: 3.638675973 | M66: 1.680924607 | N66: 1.957751366 | O66: 3.946702703 | S66: 4.031101066 | BC66: 812700
A67: 35 | B67: =IF(A67>$A$8,"",OFFSET(InputPriceData!B$15,$A67+$A$11,0,1,1)) -> 2024-05-15 | C67: =IF(A67>$A$8,"",OFFSET(InputPriceData!G$15,CalculationsAndCharts!$A67+$A$11,IF($C$5,8,0),1,1)) -> 606100 | D67: =IF(A67>$A$8,"",OFFSET(InputPriceData!C$15,CalculationsAndCharts!$A67+$A$11,IF($C$5,8,0),1,1)) -> 104.550003 | E67: =IF(A67>$A$8,"",OFFSET(InputPriceData!D$15,CalculationsAndCharts!$A67+$A$11,IF($C$5,8,0),1,1)) -> 105.519997 | F67: =IF(A67>$A$8,"",OFFSET(InputPriceData!E$15,CalculationsAndCharts!$A67+$A$11,IF($C$5,8,0),1,1)) -> 104.220001 | G67: =IF(A67>$A$8,"",OFFSET(InputPriceData!F$15,CalculationsAndCharts!$A67+$A$11,IF($C$5,8,0),1,1)) -> 105.489998 | J67: 3.348611437 | M67: 2.010492395 | N67: 1.338119042 | O67: 3.758908824 | S67: 4.016934382 | BC67: 606100
A68: 36 | B68: =IF(A68>$A$8,"",OFFSET(InputPriceData!B$15,$A68+$A$11,0,1,1)) -> 2024-05-14 | C68: =IF(A68>$A$8,"",OFFSET(InputPriceData!G$15,CalculationsAndCharts!$A68+$A$11,IF($C$5,8,0),1,1)) -> 593200 | D68: =IF(A68>$A$8,"",OFFSET(InputPriceData!C$15,CalculationsAndCharts!$A68+$A$11,IF($C$5,8,0),1,1)) -> 104.989998 | E68: =IF(A68>$A$8,"",OFFSET(InputPriceData!D$15,CalculationsAndCharts!$A68+$A$11,IF($C$5,8,0),1,1)) -> 105 | F68: =IF(A68>$A$8,"",OFFSET(InputPriceData!E$15,CalculationsAndCharts!$A68+$A$11,IF($C$5,8,0),1,1)) -> 103.919998 | G68: =IF(A68>$A$8,"",OFFSET(InputPriceData!F$15,CalculationsAndCharts!$A68+$A$11,IF($C$5,8,0),1,1)) -> 104.300003 | J68: 2.343535891 | M68: 1.595565534 | N68: 0.7479703565 | O68: 4.013648149 | S68: 3.922091929 | BD68: 593200
A69: 37 | B69: =IF(A69>$A$8,"",OFFSET(InputPriceData!B$15,$A69+$A$11,0,1,1)) -> 2024-05-13 | C69: =IF(A69>$A$8,"",OFFSET(InputPriceData!G$15,CalculationsAndCharts!$A69+$A$11,IF($C$5,8,0),1,1)) -> 561500 | D69: =IF(A69>$A$8,"",OFFSET(InputPriceData!C$15,CalculationsAndCharts!$A69+$A$11,IF($C$5,8,0),1,1)) -> 103.5 | E69: =IF(A69>$A$8,"",OFFSET(InputPriceData!D$15,CalculationsAndCharts!$A69+$A$11,IF($C$5,8,0),1,1)) -> 104.709999 | F69: =IF(A69>$A$8,"",OFFSET(InputPriceData!E$15,CalculationsAndCharts!$A69+$A$11,IF($C$5,8,0),1,1)) -> 103.300003 | G69: =IF(A69>$A$8,"",OFFSET(InputPriceData!F$15,CalculationsAndCharts!$A69+$A$11,IF($C$5,8,0),1,1)) -> 104.610001 | J69: 2.827477993 | M69: 2.709650396 | N69: 0.1178275971 | O69: 4.118733443 | S69: 3.709021515 | BC69: 561500
A70: 38 | B70: =IF(A70>$A$8,"",OFFSET(InputPriceData!B$15,$A70+$A$11,0,1,1)) -> 2024-05-10 | C70: =IF(A70>$A$8,"",OFFSET(InputPriceData!G$15,CalculationsAndCharts!$A70+$A$11,IF($C$5,8,0),1,1)) -> 540100 | D70: =IF(A70>$A$8,"",OFFSET(InputPriceData!C$15,CalculationsAndCharts!$A70+$A$11,IF($C$5,8,0),1,1)) -> 103.480003 | E70: =IF(A70>$A$8,"",OFFSET(InputPriceData!D$15,CalculationsAndCharts!$A70+$A$11,IF($C$5,8,0),1,1)) -> 104.080002 | F70: =IF(A70>$A$8,"",OFFSET(InputPriceData!E$15,CalculationsAndCharts!$A70+$A$11,IF($C$5,8,0),1,1)) -> 103.18 | G70: =IF(A70>$A$8,"",OFFSET(InputPriceData!F$15,CalculationsAndCharts!$A70+$A$11,IF($C$5,8,0),1,1)) -> 103.209999 | J70: 1.586453773 | M70: 2.115267327 | N70: -0.5288135535 | O70: 3.909743 | S70: 3.404027971 | BC70: 540100
A71: 39 | B71: =IF(A71>$A$8,"",OFFSET(InputPriceData!B$15,$A71+$A$11,0,1,1)) -> 2024-05-09 | C71: =IF(A71>$A$8,"",OFFSET(InputPriceData!G$15,CalculationsAndCharts!$A71+$A$11,IF($C$5,8,0),1,1)) -> 618600 | D71: =IF(A71>$A$8,"",OFFSET(InputPriceData!C$15,CalculationsAndCharts!$A71+$A$11,IF($C$5,8,0),1,1)) -> 102.099998 | E71: =IF(A71>$A$8,"",OFFSET(InputPriceData!D$15,CalculationsAndCharts!$A71+$A$11,IF($C$5,8,0),1,1)) -> 103.110001 | F71: =IF(A71>$A$8,"",OFFSET(InputPriceData!E$15,CalculationsAndCharts!$A71+$A$11,IF($C$5,8,0),1,1)) -> 101.959999 | G71: =IF(A71>$A$8,"",OFFSET(InputPriceData!F$15,CalculationsAndCharts!$A71+$A$11,IF($C$5,8,0),1,1)) -> 103.089996 | J71: 1.602460019 | M71: 2.745103224 | N71: -1.142643205 | O71: 3.718352146 | S71: 3.00672499 | BC71: 618600
A72: 40 | B72: =IF(A72>$A$8,"",OFFSET(InputPriceData!B$15,$A72+$A$11,0,1,1)) -> 2024-05-08 | C72: =IF(A72>$A$8,"",OFFSET(InputPriceData!G$15,CalculationsAndCharts!$A72+$A$11,IF($C$5,8,0),1,1)) -> 564900 | D72: =IF(A72>$A$8,"",OFFSET(InputPriceData!C$15,CalculationsAndCharts!$A72+$A$11,IF($C$5,8,0),1,1)) -> 100.620003 | E72: =IF(A72>$A$8,"",OFFSET(InputPriceData!D$15,CalculationsAndCharts!$A72+$A$11,IF($C$5,8,0),1,1)) -> 101.980003 | F72: =IF(A72>$A$8,"",OFFSET(InputPriceData!E$15,CalculationsAndCharts!$A72+$A$11,IF($C$5,8,0),1,1)) -> 100.32 | G72: =IF(A72>$A$8,"",OFFSET(InputPriceData!F$15,CalculationsAndCharts!$A72+$A$11,IF($C$5,8,0),1,1)) -> 101.849998 | J72: 0.4779413955 | M72: 2.204365887 | N72: -1.726424492 | O72: 2.995746118 | S72: 2.494105747 | BC72: 564900
A73: 41 | B73: =IF(A73>$A$8,"",OFFSET(InputPriceData!B$15,$A73+$A$11,0,1,1)) -> 2024-05-07 | C73: =IF(A73>$A$8,"",OFFSET(InputPriceData!G$15,CalculationsAndCharts!$A73+$A$11,IF($C$5,8,0),1,1)) -> 634500 | D73: =IF(A73>$A$8,"",OFFSET(InputPriceData!C$15,CalculationsAndCharts!$A73+$A$11,IF($C$5,8,0),1,1)) -> 102 | E73: =IF(A73>$A$8,"",OFFSET(InputPriceData!D$15,CalculationsAndCharts!$A73+$A$11,IF($C$5,8,0),1,1)) -> 102.120003 | F73: =IF(A73>$A$8,"",OFFSET(InputPriceData!E$15,CalculationsAndCharts!$A73+$A$11,IF($C$5,8,0),1,1)) -> 100.889999 | G73: =IF(A73>$A$8,"",OFFSET(InputPriceData!F$15,CalculationsAndCharts!$A73+$A$11,IF($C$5,8,0),1,1)) -> 101.019997 | J73: -0.2702185371 | M73: 1.926538095 | N73: -2.196756632 | O73: 3.422086193 | S73: 1.761776768 | BD73: 634500
A74: 42 | B74: =IF(A74>$A$8,"",OFFSET(InputPriceData!B$15,$A74+$A$11,0,1,1)) -> 2024-05-06 | C74: =IF(A74>$A$8,"",OFFSET(InputPriceData!G$15,CalculationsAndCharts!$A74+$A$11,IF($C$5,8,0),1,1)) -> 1596000 | D74: =IF(A74>$A$8,"",OFFSET(InputPriceData!C$15,CalculationsAndCharts!$A74+$A$11,IF($C$5,8,0),1,1)) -> 101.839996 | E74: =IF(A74>$A$8,"",OFFSET(InputPriceData!D$15,CalculationsAndCharts!$A74+$A$11,IF($C$5,8,0),1,1)) -> 102.040001 | F74: =IF(A74>$A$8,"",OFFSET(InputPriceData!E$15,CalculationsAndCharts!$A74+$A$11,IF($C$5,8,0),1,1)) -> 100.959999 | G74: =IF(A74>$A$8,"",OFFSET(InputPriceData!F$15,CalculationsAndCharts!$A74+$A$11,IF($C$5,8,0),1,1)) -> 101.82 | J74: 0.6139554132 | M74: 3.347979577 | N74: -2.734024164 | O74: 3.965545488 | S74: 0.8006354819 | BC74: 1596000
A75: 43 | B75: =IF(A75>$A$8,"",OFFSET(InputPriceData!B$15,$A75+$A$11,0,1,1)) -> 2024-05-03 | C75: =IF(A75>$A$8,"",OFFSET(InputPriceData!G$15,CalculationsAndCharts!$A75+$A$11,IF($C$5,8,0),1,1)) -> 2470600 | D75: =IF(A75>$A$8,"",OFFSET(InputPriceData!C$15,CalculationsAndCharts!$A75+$A$11,IF($C$5,8,0),1,1)) -> 100.110001 | E75: =IF(A75>$A$8,"",OFFSET(InputPriceData!D$15,CalculationsAndCharts!$A75+$A$11,IF($C$5,8,0),1,1)) -> 101.309998 | F75: =IF(A75>$A$8,"",OFFSET(InputPriceData!E$15,CalculationsAndCharts!$A75+$A$11,IF($C$5,8,0),1,1)) -> 99.989998 | G75: =IF(A75>$A$8,"",OFFSET(InputPriceData!F$15,CalculationsAndCharts!$A75+$A$11,IF($C$5,8,0),1,1)) -> 101.169998 | J75: 0.05372103156 | M75: 3.410335837 | N75: -3.356614806 | O75: 2.770718719 | S75: -0.06635606916 | BC75: 2470600
A76: 44 | B76: =IF(A76>$A$8,"",OFFSET(InputPriceData!B$15,$A76+$A$11,0,1,1)) -> 2024-05-02 | C76: =IF(A76>$A$8,"",OFFSET(InputPriceData!G$15,CalculationsAndCharts!$A76+$A$11,IF($C$5,8,0),1,1)) -> 1936700 | D76: =IF(A76>$A$8,"",OFFSET(InputPriceData!C$15,CalculationsAndCharts!$A76+$A$11,IF($C$5,8,0),1,1)) -> 98.040001 | E76: =IF(A76>$A$8,"",OFFSET(InputPriceData!D$15,CalculationsAndCharts!$A76+$A$11,IF($C$5,8,0),1,1)) -> 99.339996 | F76: =IF(A76>$A$8,"",OFFSET(InputPriceData!E$15,CalculationsAndCharts!$A76+$A$11,IF($C$5,8,0),1,1)) -> 97.720001 | G76: =IF(A76>$A$8,"",OFFSET(InputPriceData!F$15,CalculationsAndCharts!$A76+$A$11,IF($C$5,8,0),1,1)) -> 99.220001 | J76: -1.850116181 | M76: 1.941501463 | N76: -3.791617645 | O76: 0.6038739882 | S76: -0.5211099463 | BC76: 1936700
A77: 45 | B77: =IF(A77>$A$8,"",OFFSET(InputPriceData!B$15,$A77+$A$11,0,1,1)) -> 2024-05-01 | C77: =IF(A77>$A$8,"",OFFSET(InputPriceData!G$15,CalculationsAndCharts!$A77+$A$11,IF($C$5,8,0),1,1)) -> 534600 | D77: =IF(A77>$A$8,"",OFFSET(InputPriceData!C$15,CalculationsAndCharts!$A77+$A$11,IF($C$5,8,0),1,1)) -> 96.980003 | E77: =IF(A77>$A$8,"",OFFSET(InputPriceData!D$15,CalculationsAndCharts!$A77+$A$11,IF($C$5,8,0),1,1)) -> 98.290001 | F77: =IF(A77>$A$8,"",OFFSET(InputPriceData!E$15,CalculationsAndCharts!$A77+$A$11,IF($C$5,8,0),1,1)) -> 96.519997 | G77: =IF(A77>$A$8,"",OFFSET(InputPriceData!F$15,CalculationsAndCharts!$A77+$A$11,IF($C$5,8,0),1,1)) -> 97.379997 | J77: -3.709673813 | M77: 0.1767520481 | N77: -3.886425861 | O77: -0.9916114882 | S77: -0.59812733 | BC77: 534600
A78: 46 | B78: =IF(A78>$A$8,"",OFFSET(InputPriceData!B$15,$A78+$A$11,0,1,1)) -> 2024-04-30 | C78: =IF(A78>$A$8,"",OFFSET(InputPriceData!G$15,CalculationsAndCharts!$A78+$A$11,IF($C$5,8,0),1,1)) -> 799500 | D78: =IF(A78>$A$8,"",OFFSET(InputPriceData!C$15,CalculationsAndCharts!$A78+$A$11,IF($C$5,8,0),1,1)) -> 97.18 | E78: =IF(A78>$A$8,"",OFFSET(InputPriceData!D$15,CalculationsAndCharts!$A78+$A$11,IF($C$5,8,0),1,1)) -> 97.959999 | F78: =IF(A78>$A$8,"",OFFSET(InputPriceData!E$15,CalculationsAndCharts!$A78+$A$11,IF($C$5,8,0),1,1)) -> 96.739998 | G78: =IF(A78>$A$8,"",OFFSET(InputPriceData!F$15,CalculationsAndCharts!$A78+$A$11,IF($C$5,8,0),1,1)) -> 96.830002 | J78: -4.320983755 | M78: -0.5902408982 | N78: -3.730742857 | O78: -0.8957230881 | S78: -0.5991688113 | BD78: 799500
A79: 47 | B79: =IF(A79>$A$8,"",OFFSET(InputPriceData!B$15,$A79+$A$11,0,1,1)) -> 2024-04-29 | C79: =IF(A79>$A$8,"",OFFSET(InputPriceData!G$15,CalculationsAndCharts!$A79+$A$11,IF($C$5,8,0),1,1)) -> 575700 | D79: =IF(A79>$A$8,"",OFFSET(InputPriceData!C$15,CalculationsAndCharts!$A79+$A$11,IF($C$5,8,0),1,1)) -> 98.309998 | E79: =IF(A79>$A$8,"",OFFSET(InputPriceData!D$15,CalculationsAndCharts!$A79+$A$11,IF($C$5,8,0),1,1)) -> 98.669998 | F79: =IF(A79>$A$8,"",OFFSET(InputPriceData!E$15,CalculationsAndCharts!$A79+$A$11,IF($C$5,8,0),1,1)) -> 97.599998 | G79: =IF(A79>$A$8,"",OFFSET(InputPriceData!F$15,CalculationsAndCharts!$A79+$A$11,IF($C$5,8,0),1,1)) -> 97.989998 | J79: -3.210984284 | M79: 0.3791300481 | N79: -3.590114332 | O79: -0.3232288062 | S79: -0.7380764217 | BD79: 575700
A80: 48 | B80: =IF(A80>$A$8,"",OFFSET(InputPriceData!B$15,$A80+$A$11,0,1,1)) -> 2024-04-26 | C80: =IF(A80>$A$8,"",OFFSET(InputPriceData!G$15,CalculationsAndCharts!$A80+$A$11,IF($C$5,8,0),1,1)) -> 502500 | D80: =IF(A80>$A$8,"",OFFSET(InputPriceData!C$15,CalculationsAndCharts!$A80+$A$11,IF($C$5,8,0),1,1)) -> 97.970001 | E80: =IF(A80>$A$8,"",OFFSET(InputPriceData!D$15,CalculationsAndCharts!$A80+$A$11,IF($C$5,8,0),1,1)) -> 98.449997 | F80: =IF(A80>$A$8,"",OFFSET(InputPriceData!E$15,CalculationsAndCharts!$A80+$A$11,IF($C$5,8,0),1,1)) -> 97.599998 | G80: =IF(A80>$A$8,"",OFFSET(InputPriceData!F$15,CalculationsAndCharts!$A80+$A$11,IF($C$5,8,0),1,1)) -> 98.160004 | J80: -3.066502918 | M80: 0.4728644921 | N80: -3.53936741 | O80: -0.7157049008 | S80: -0.9782862654 | BC80: 502500
A81: 49 | B81: =IF(A81>$A$8,"",OFFSET(InputPriceData!B$15,$A81+$A$11,0,1,1)) -> 2024-04-25 | C81: =IF(A81>$A$8,"",OFFSET(InputPriceData!G$15,CalculationsAndCharts!$A81+$A$11,IF($C$5,8,0),1,1)) -> 649100 | D81: =IF(A81>$A$8,"",OFFSET(InputPriceData!C$15,CalculationsAndCharts!$A81+$A$11,IF($C$5,8,0),1,1)) -> 96.440002 | E81: =IF(A81>$A$8,"",OFFSET(InputPriceData!D$15,CalculationsAndCharts!$A81+$A$11,IF($C$5,8,0),1,1)) -> 97.970001 | F81: =IF(A81>$A$8,"",OFFSET(InputPriceData!E$15,CalculationsAndCharts!$A81+$A$11,IF($C$5,8,0),1,1)) -> 95.839996 | G81: =IF(A81>$A$8,"",OFFSET(InputPriceData!F$15,CalculationsAndCharts!$A81+$A$11,IF($C$5,8,0),1,1)) -> 97.68 | J81: -3.576486747 | M81: -0.1494850064 | N81: -3.42700174 | O81: -1.528097176 | S81: -1.299840524 | BC81: 649100
A82: 50 | B82: =IF(A82>$A$8,"",OFFSET(InputPriceData!B$15,$A82+$A$11,0,1,1)) -> 2024-04-24 | C82: =IF(A82>$A$8,"",OFFSET(InputPriceData!G$15,CalculationsAndCharts!$A82+$A$11,IF($C$5,8,0),1,1)) -> 3537100 | D82: =IF(A82>$A$8,"",OFFSET(InputPriceData!C$15,CalculationsAndCharts!$A82+$A$11,IF($C$5,8,0),1,1)) -> 98.790001 | E82: =IF(A82>$A$8,"",OFFSET(InputPriceData!D$15,CalculationsAndCharts!$A82+$A$11,IF($C$5,8,0),1,1)) -> 98.809998 | F82: =IF(A82>$A$8,"",OFFSET(InputPriceData!E$15,CalculationsAndCharts!$A82+$A$11,IF($C$5,8,0),1,1)) -> 96.82 | G82: =IF(A82>$A$8,"",OFFSET(InputPriceData!F$15,CalculationsAndCharts!$A82+$A$11,IF($C$5,8,0),1,1)) -> 97.269997 | J82: -4.031365247 | M82: -0.8442747633 | N82: -3.187090484 | O82: -0.4965763878 | S82: -1.903425307 | BD82: 3537100
A83: 51 | B83: =IF(A83>$A$8,"",OFFSET(InputPriceData!B$15,$A83+$A$11,0,1,1)) -> 2024-04-23 | C83: =IF(A83>$A$8,"",OFFSET(InputPriceData!G$15,CalculationsAndCharts!$A83+$A$11,IF($C$5,8,0),1,1)) -> 1954000 | D83: =IF(A83>$A$8,"",OFFSET(InputPriceData!C$15,CalculationsAndCharts!$A83+$A$11,IF($C$5,8,0),1,1)) -> 99.489998 | E83: =IF(A83>$A$8,"",OFFSET(InputPriceData!D$15,CalculationsAndCharts!$A83+$A$11,IF($C$5,8,0),1,1)) -> 100.25 | F83: =IF(A83>$A$8,"",OFFSET(InputPriceData!E$15,CalculationsAndCharts!$A83+$A$11,IF($C$5,8,0),1,1)) -> 99.260002 | G83: =IF(A83>$A$8,"",OFFSET(InputPriceData!F$15,CalculationsAndCharts!$A83+$A$11,IF($C$5,8,0),1,1)) -> 99.849998 | J83: -1.456500687 | M83: 1.652627304 | N83: -3.109127991 | O83: 0.5216545676 | S83: -2.815312184 | BC83: 1954000
A84: 52 | B84: =IF(A84>$A$8,"",OFFSET(InputPriceData!B$15,$A84+$A$11,0,1,1)) -> 2024-04-22 | C84: =IF(A84>$A$8,"",OFFSET(InputPriceData!G$15,CalculationsAndCharts!$A84+$A$11,IF($C$5,8,0),1,1)) -> 3192900 | D84: =IF(A84>$A$8,"",OFFSET(InputPriceData!C$15,CalculationsAndCharts!$A84+$A$11,IF($C$5,8,0),1,1)) -> 98.379997 | E84: =IF(A84>$A$8,"",OFFSET(InputPriceData!D$15,CalculationsAndCharts!$A84+$A$11,IF($C$5,8,0),1,1)) -> 99.32 | F84: =IF(A84>$A$8,"",OFFSET(InputPriceData!E$15,CalculationsAndCharts!$A84+$A$11,IF($C$5,8,0),1,1)) -> 98.07 | G84: =IF(A84>$A$8,"",OFFSET(InputPriceData!F$15,CalculationsAndCharts!$A84+$A$11,IF($C$5,8,0),1,1)) -> 99.199997 | J84: -2.075458158 | M84: 1.1155696 | N84: -3.191027758 | O84: -0.8282967936 | S84: -3.604959356 | BC84: 3192900
A85: 53 | B85: =IF(A85>$A$8,"",OFFSET(InputPriceData!B$15,$A85+$A$11,0,1,1)) -> 2024-04-19 | C85: =IF(A85>$A$8,"",OFFSET(InputPriceData!G$15,CalculationsAndCharts!$A85+$A$11,IF($C$5,8,0),1,1)) -> 882500 | D85: =IF(A85>$A$8,"",OFFSET(InputPriceData!C$15,CalculationsAndCharts!$A85+$A$11,IF($C$5,8,0),1,1)) -> 97 | E85: =IF(A85>$A$8,"",OFFSET(InputPriceData!D$15,CalculationsAndCharts!$A85+$A$11,IF($C$5,8,0),1,1)) -> 98.120003 | F85: =IF(A85>$A$8,"",OFFSET(InputPriceData!E$15,CalculationsAndCharts!$A85+$A$11,IF($C$5,8,0),1,1)) -> 96.730003 | G85: =IF(A85>$A$8,"",OFFSET(InputPriceData!F$15,CalculationsAndCharts!$A85+$A$11,IF($C$5,8,0),1,1)) -> 97.860001 | J85: -3.417838394 | M85: -0.3568532331 | N85: -3.060985161 | O85: -2.56192662 | S85: -3.89073824 | BC85: 882500
A86: 54 | B86: =IF(A86>$A$8,"",OFFSET(InputPriceData!B$15,$A86+$A$11,0,1,1)) -> 2024-04-18 | C86: =IF(A86>$A$8,"",OFFSET(InputPriceData!G$15,CalculationsAndCharts!$A86+$A$11,IF($C$5,8,0),1,1)) -> 675600 | D86: =IF(A86>$A$8,"",OFFSET(InputPriceData!C$15,CalculationsAndCharts!$A86+$A$11,IF($C$5,8,0),1,1)) -> 96.730003 | E86: =IF(A86>$A$8,"",OFFSET(InputPriceData!D$15,CalculationsAndCharts!$A86+$A$11,IF($C$5,8,0),1,1)) -> 97.699997 | F86: =IF(A86>$A$8,"",OFFSET(InputPriceData!E$15,CalculationsAndCharts!$A86+$A$11,IF($C$5,8,0),1,1)) -> 96.43 | G86: =IF(A86>$A$8,"",OFFSET(InputPriceData!F$15,CalculationsAndCharts!$A86+$A$11,IF($C$5,8,0),1,1)) -> 96.900002 | J86: -4.419775138 | M86: -1.761012456 | N86: -2.658762682 | O86: -3.731810151 | S86: -3.618536575 | BC86: 675600
A87: 55 | B87: =IF(A87>$A$8,"",OFFSET(InputPriceData!B$15,$A87+$A$11,0,1,1)) -> 2024-04-17 | C87: =IF(A87>$A$8,"",OFFSET(InputPriceData!G$15,CalculationsAndCharts!$A87+$A$11,IF($C$5,8,0),1,1)) -> 821000 | D87: =IF(A87>$A$8,"",OFFSET(InputPriceData!C$15,CalculationsAndCharts!$A87+$A$11,IF($C$5,8,0),1,1)) -> 96.559998 | E87: =IF(A87>$A$8,"",OFFSET(InputPriceData!D$15,CalculationsAndCharts!$A87+$A$11,IF($C$5,8,0),1,1)) -> 97.93 | F87: =IF(A87>$A$8,"",OFFSET(InputPriceData!E$15,CalculationsAndCharts!$A87+$A$11,IF($C$5,8,0),1,1)) -> 96.129997 | G87: =IF(A87>$A$8,"",OFFSET(InputPriceData!F$15,CalculationsAndCharts!$A87+$A$11,IF($C$5,8,0),1,1)) -> 96.779999 | J87: -4.600062529 | M87: -2.527194041 | N87: -2.072868488 | O87: -4.64398169 | S87: -2.86061461 | BC87: 821000
A88: 56 | B88: =IF(A88>$A$8,"",OFFSET(InputPriceData!B$15,$A88+$A$11,0,1,1)) -> 2024-04-16 | C88: =IF(A88>$A$8,"",OFFSET(InputPriceData!G$15,CalculationsAndCharts!$A88+$A$11,IF($C$5,8,0),1,1)) -> 911300 | D88: =IF(A88>$A$8,"",OFFSET(InputPriceData!C$15,CalculationsAndCharts!$A88+$A$11,IF($C$5,8,0),1,1)) -> 97.330002 | E88: =IF(A88>$A$8,"",OFFSET(InputPriceData!D$15,CalculationsAndCharts!$A88+$A$11,IF($C$5,8,0),1,1)) -> 97.419998 | F88: =IF(A88>$A$8,"",OFFSET(InputPriceData!E$15,CalculationsAndCharts!$A88+$A$11,IF($C$5,8,0),1,1)) -> 96.199997 | G88: =IF(A88>$A$8,"",OFFSET(InputPriceData!F$15,CalculationsAndCharts!$A88+$A$11,IF($C$5,8,0),1,1)) -> 96.400002 | J88: -5.048570359 | M88: -3.704806996 | N88: -1.343763363 | O88: -4.571793926 | S88: -1.798243276 | BD88: 911300
A89: 57 | B89: =IF(A89>$A$8,"",OFFSET(InputPriceData!B$15,$A89+$A$11,0,1,1)) -> 2024-04-15 | C89: =IF(A89>$A$8,"",OFFSET(InputPriceData!G$15,CalculationsAndCharts!$A89+$A$11,IF($C$5,8,0),1,1)) -> 583600 | D89: =IF(A89>$A$8,"",OFFSET(InputPriceData!C$15,CalculationsAndCharts!$A89+$A$11,IF($C$5,8,0),1,1)) -> 99.290001 | E89: =IF(A89>$A$8,"",OFFSET(InputPriceData!D$15,CalculationsAndCharts!$A89+$A$11,IF($C$5,8,0),1,1)) -> 99.720001 | F89: =IF(A89>$A$8,"",OFFSET(InputPriceData!E$15,CalculationsAndCharts!$A89+$A$11,IF($C$5,8,0),1,1)) -> 97.5 | G89: =IF(A89>$A$8,"",OFFSET(InputPriceData!F$15,CalculationsAndCharts!$A89+$A$11,IF($C$5,8,0),1,1)) -> 97.919998 | J89: -3.576003158 | M89: -2.950011441 | N89: -0.6259917165 | O89: -3.789056377 | S89: -0.6858484213 | BD89: 583600
A90: 58 | B90: =IF(A90>$A$8,"",OFFSET(InputPriceData!B$15,$A90+$A$11,0,1,1)) -> 2024-04-12 | C90: =IF(A90>$A$8,"",OFFSET(InputPriceData!G$15,CalculationsAndCharts!$A90+$A$11,IF($C$5,8,0),1,1)) -> 826500 | D90: =IF(A90>$A$8,"",OFFSET(InputPriceData!C$15,CalculationsAndCharts!$A90+$A$11,IF($C$5,8,0),1,1)) -> 99.459999 | E90: =IF(A90>$A$8,"",OFFSET(InputPriceData!D$15,CalculationsAndCharts!$A90+$A$11,IF($C$5,8,0),1,1)) -> 99.879997 | F90: =IF(A90>$A$8,"",OFFSET(InputPriceData!E$15,CalculationsAndCharts!$A90+$A$11,IF($C$5,8,0),1,1)) -> 98.139999 | G90: =IF(A90>$A$8,"",OFFSET(InputPriceData!F$15,CalculationsAndCharts!$A90+$A$11,IF($C$5,8,0),1,1)) -> 98.529999 | J90: -2.974173804 | M90: -2.943063938 | N90: -0.03110986529 | O90: -2.638736497 | S90: 0.2595964553 | BD90: 826500
A91: 59 | B91: =IF(A91>$A$8,"",OFFSET(InputPriceData!B$15,$A91+$A$11,0,1,1)) -> 2024-04-11 | C91: =IF(A91>$A$8,"",OFFSET(InputPriceData!G$15,CalculationsAndCharts!$A91+$A$11,IF($C$5,8,0),1,1)) -> 822500 | D91: =IF(A91>$A$8,"",OFFSET(InputPriceData!C$15,CalculationsAndCharts!$A91+$A$11,IF($C$5,8,0),1,1)) -> 100.879997 | E91: =IF(A91>$A$8,"",OFFSET(InputPriceData!D$15,CalculationsAndCharts!$A91+$A$11,IF($C$5,8,0),1,1)) -> 100.949997 | F91: =IF(A91>$A$8,"",OFFSET(InputPriceData!E$15,CalculationsAndCharts!$A91+$A$11,IF($C$5,8,0),1,1)) -> 99.559998 | G91: =IF(A91>$A$8,"",OFFSET(InputPriceData!F$15,CalculationsAndCharts!$A91+$A$11,IF($C$5,8,0),1,1)) -> 100.360001 | J91: -1.106787732 | M91: -1.489959497 | N91: 0.3831717648 | O91: -1.302543716 | S91: 0.8633638512 | BD91: 822500
A92: 60 | B92: =IF(A92>$A$8,"",OFFSET(InputPriceData!B$15,$A92+$A$11,0,1,1)) -> 2024-04-10 | C92: =IF(A92>$A$8,"",OFFSET(InputPriceData!G$15,CalculationsAndCharts!$A92+$A$11,IF($C$5,8,0),1,1)) -> 1374100 | D92: =IF(A92>$A$8,"",OFFSET(InputPriceData!C$15,CalculationsAndCharts!$A92+$A$11,IF($C$5,8,0),1,1)) -> 101.489998 | E92: =IF(A92>$A$8,"",OFFSET(InputPriceData!D$15,CalculationsAndCharts!$A92+$A$11,IF($C$5,8,0),1,1)) -> 101.489998 | F92: =IF(A92>$A$8,"",OFFSET(InputPriceData!E$15,CalculationsAndCharts!$A92+$A$11,IF($C$5,8,0),1,1)) -> 100.199997 | G92: =IF(A92>$A$8,"",OFFSET(InputPriceData!F$15,CalculationsAndCharts!$A92+$A$11,IF($C$5,8,0),1,1)) -> 100.940002 | J92: -0.4435449446 | M92: -1.031216073 | N92: 0.5876711283 | O92: 0.2493936849 | S92: 1.004532869 | BD92: 1374100
A93: 61 | B93: =IF(A93>$A$8,"",OFFSET(InputPriceData!B$15,$A93+$A$11,0,1,1)) -> 2024-04-09 | C93: =IF(A93>$A$8,"",OFFSET(InputPriceData!G$15,CalculationsAndCharts!$A93+$A$11,IF($C$5,8,0),1,1)) -> 831800 | D93: =IF(A93>$A$8,"",OFFSET(InputPriceData!C$15,CalculationsAndCharts!$A93+$A$11,IF($C$5,8,0),1,1)) -> 103.300003 | E93: =IF(A93>$A$8,"",OFFSET(InputPriceData!D$15,CalculationsAndCharts!$A93+$A$11,IF($C$5,8,0),1,1)) -> 103.879997 | F93: =IF(A93>$A$8,"",OFFSET(InputPriceData!E$15,CalculationsAndCharts!$A93+$A$11,IF($C$5,8,0),1,1)) -> 101.839996 | G93: =IF(A93>$A$8,"",OFFSET(InputPriceData!F$15,CalculationsAndCharts!$A93+$A$11,IF($C$5,8,0),1,1)) -> 102.779999 | J93: 1.526561663 | M93: 0.9780453436 | N93: 0.5485163197 | O93: 1.817558964 | S93: 0.6928596311 | BD93: 831800
A94: 62 | B94: =IF(A94>$A$8,"",OFFSET(InputPriceData!B$15,$A94+$A$11,0,1,1)) -> 2024-04-08 | C94: =IF(A94>$A$8,"",OFFSET(InputPriceData!G$15,CalculationsAndCharts!$A94+$A$11,IF($C$5,8,0),1,1)) -> 771900 | D94: =IF(A94>$A$8,"",OFFSET(InputPriceData!C$15,CalculationsAndCharts!$A94+$A$11,IF($C$5,8,0),1,1)) -> 102.349998 | E94: =IF(A94>$A$8,"",OFFSET(InputPriceData!D$15,CalculationsAndCharts!$A94+$A$11,IF($C$5,8,0),1,1)) -> 103.080002 | F94: =IF(A94>$A$8,"",OFFSET(InputPriceData!E$15,CalculationsAndCharts!$A94+$A$11,IF($C$5,8,0),1,1)) -> 102.209999 | G94: =IF(A94>$A$8,"",OFFSET(InputPriceData!F$15,CalculationsAndCharts!$A94+$A$11,IF($C$5,8,0),1,1)) -> 103.050003 | J94: 1.968819694 | M94: 1.705660132 | N94: 0.2631595624 | O94: 1.955582968 | S94: 0.1745554891 | BC94: 771900
A95: 63 | B95: =IF(A95>$A$8,"",OFFSET(InputPriceData!B$15,$A95+$A$11,0,1,1)) -> 2024-04-05 | C95: =IF(A95>$A$8,"",OFFSET(InputPriceData!G$15,CalculationsAndCharts!$A95+$A$11,IF($C$5,8,0),1,1)) -> 784700 | D95: =IF(A95>$A$8,"",OFFSET(InputPriceData!C$15,CalculationsAndCharts!$A95+$A$11,IF($C$5,8,0),1,1)) -> 101 | E95: =IF(A95>$A$8,"",OFFSET(InputPriceData!D$15,CalculationsAndCharts!$A95+$A$11,IF($C$5,8,0),1,1)) -> 102.540001 | F95: =IF(A95>$A$8,"",OFFSET(InputPriceData!E$15,CalculationsAndCharts!$A95+$A$11,IF($C$5,8,0),1,1)) -> 100.699997 | G95: =IF(A95>$A$8,"",OFFSET(InputPriceData!F$15,CalculationsAndCharts!$A95+$A$11,IF($C$5,8,0),1,1)) -> 102.339996 | J95: 1.428231336 | M95: 1.472098299 | N95: -0.04386696351 | O95: 1.045468089 | S95: -0.2327148708 | BC95: 784700
A96: 64 | B96: =IF(A96>$A$8,"",OFFSET(InputPriceData!B$15,$A96+$A$11,0,1,1)) -> 2024-04-04 | C96: =IF(A96>$A$8,"",OFFSET(InputPriceData!G$15,CalculationsAndCharts!$A96+$A$11,IF($C$5,8,0),1,1)) -> 2542800 | D96: =IF(A96>$A$8,"",OFFSET(InputPriceData!C$15,CalculationsAndCharts!$A96+$A$11,IF($C$5,8,0),1,1)) -> 101.110001 | E96: =IF(A96>$A$8,"",OFFSET(InputPriceData!D$15,CalculationsAndCharts!$A96+$A$11,IF($C$5,8,0),1,1)) -> 102.32 | F96: =IF(A96>$A$8,"",OFFSET(InputPriceData!E$15,CalculationsAndCharts!$A96+$A$11,IF($C$5,8,0),1,1)) -> 100.510002 | G96: =IF(A96>$A$8,"",OFFSET(InputPriceData!F$15,CalculationsAndCharts!$A96+$A$11,IF($C$5,8,0),1,1)) -> 100.980003 | J96: 0.2055294993 | M96: 0.4135349527 | N96: -0.2080054534 | O96: -0.01571395257 | S96: -0.3987562078 | BC96: 2542800
A97: 65 | B97: =IF(A97>$A$8,"",OFFSET(InputPriceData!B$15,$A97+$A$11,0,1,1)) -> 2024-04-03 | C97: =IF(A97>$A$8,"",OFFSET(InputPriceData!G$15,CalculationsAndCharts!$A97+$A$11,IF($C$5,8,0),1,1)) -> 1741500 | D97: =IF(A97>$A$8,"",OFFSET(InputPriceData!C$15,CalculationsAndCharts!$A97+$A$11,IF($C$5,8,0),1,1)) -> 99.489998 | E97: =IF(A97>$A$8,"",OFFSET(InputPriceData!D$15,CalculationsAndCharts!$A97+$A$11,IF($C$5,8,0),1,1)) -> 100.720001 | F97: =IF(A97>$A$8,"",OFFSET(InputPriceData!E$15,CalculationsAndCharts!$A97+$A$11,IF($C$5,8,0),1,1)) -> 99.360001 | G97: =IF(A97>$A$8,"",OFFSET(InputPriceData!F$15,CalculationsAndCharts!$A97+$A$11,IF($C$5,8,0),1,1)) -> 100.260002 | J97: -0.4100722175 | M97: -0.2045338546 | N97: -0.2055383629 | O97: -0.7743601417 | S97: -0.3842951366 | BC97: 1741500
A98: 66 | B98: =IF(A98>$A$8,"",OFFSET(InputPriceData!B$15,$A98+$A$11,0,1,1)) -> 2024-04-02 | C98: =IF(A98>$A$8,"",OFFSET(InputPriceData!G$15,CalculationsAndCharts!$A98+$A$11,IF($C$5,8,0),1,1)) -> 1757100 | D98: =IF(A98>$A$8,"",OFFSET(InputPriceData!C$15,CalculationsAndCharts!$A98+$A$11,IF($C$5,8,0),1,1)) -> 99.900002 | E98: =IF(A98>$A$8,"",OFFSET(InputPriceData!D$15,CalculationsAndCharts!$A98+$A$11,IF($C$5,8,0),1,1)) -> 100 | F98: =IF(A98>$A$8,"",OFFSET(InputPriceData!E$15,CalculationsAndCharts!$A98+$A$11,IF($C$5,8,0),1,1)) -> 99.239998 | G98: =IF(A98>$A$8,"",OFFSET(InputPriceData!F$15,CalculationsAndCharts!$A98+$A$11,IF($C$5,8,0),1,1)) -> 99.610001 | J98: =$I$35*($G98-2*$G99+$G100)+$I$36*J99+$I$37*J100 -> -0.9764258532 | M98: =L$35*($G98-2*$G99+$G100)+L$36*M99+L$37*M100 -> -0.8924620325 | N98: =J98-M98 -> -0.08396382064 | O98: =$L$39*(N98-N99) -> -0.7313964905 | S98: =R$35*($O98+$O99)/2+R$36*S99+R$37*S100 -> -0.3582377366 | BD98: 1757100
A99: 67 | B99: =IF(A99>$A$8,"",OFFSET(InputPriceData!B$15,$A99+$A$11,0,1,1)) -> 2024-04-01 | C99: =IF(A99>$A$8,"",OFFSET(InputPriceData!G$15,CalculationsAndCharts!$A99+$A$11,IF($C$5,8,0),1,1)) -> 566300 | D99: =IF(A99>$A$8,"",OFFSET(InputPriceData!C$15,CalculationsAndCharts!$A99+$A$11,IF($C$5,8,0),1,1)) -> 100.879997 | E99: =IF(A99>$A$8,"",OFFSET(InputPriceData!D$15,CalculationsAndCharts!$A99+$A$11,IF($C$5,8,0),1,1)) -> 101 | F99: =IF(A99>$A$8,"",OFFSET(InputPriceData!E$15,CalculationsAndCharts!$A99+$A$11,IF($C$5,8,0),1,1)) -> 99.830002 | G99: =IF(A99>$A$8,"",OFFSET(InputPriceData!F$15,CalculationsAndCharts!$A99+$A$11,IF($C$5,8,0),1,1)) -> 100.300003 | J99: -0.1986145522 | M99: -0.2294799806 | N99: 0.03086542837 | O99: 0.1093626036 | S99: -0.4602272379 | BD99: 566300
A100: 68 | B100: =IF(A100>$A$8,"",OFFSET(InputPriceData!B$15,$A100+$A$11,0,1,1)) -> 2024-03-28 | C100: =IF(A100>$A$8,"",OFFSET(InputPriceData!G$15,CalculationsAndCharts!$A100+$A$11,IF($C$5,8,0),1,1)) -> 594600 | D100: =IF(A100>$A$8,"",OFFSET(InputPriceData!C$15,CalculationsAndCharts!$A100+$A$11,IF($C$5,8,0),1,1)) -> 100.400002 | E100: =IF(A100>$A$8,"",OFFSET(InputPriceData!D$15,CalculationsAndCharts!$A100+$A$11,IF($C$5,8,0),1,1)) -> 101.260002 | F100: =IF(A100>$A$8,"",OFFSET(InputPriceData!E$15,CalculationsAndCharts!$A100+$A$11,IF($C$5,8,0),1,1)) -> 100.199997 | G100: =IF(A100>$A$8,"",OFFSET(InputPriceData!F$15,CalculationsAndCharts!$A100+$A$11,IF($C$5,8,0),1,1)) -> 100.879997 | J100: 0.495482881 | M100: 0.4817873814 | N100: 0.0136954996 | O100: 0.3215929399 | S100: -0.6148510342 | BC100: 594600
A101: 69 | B101: =IF(A101>$A$8,"",OFFSET(InputPriceData!B$15,$A101+$A$11,0,1,1)) -> 2024-03-27 | C101: =IF(A101>$A$8,"",OFFSET(InputPriceData!G$15,CalculationsAndCharts!$A101+$A$11,IF($C$5,8,0),1,1)) -> 591900 | D101: =IF(A101>$A$8,"",OFFSET(InputPriceData!C$15,CalculationsAndCharts!$A101+$A$11,IF($C$5,8,0),1,1)) -> 99.110001 | E101: =IF(A101>$A$8,"",OFFSET(InputPriceData!D$15,CalculationsAndCharts!$A101+$A$11,IF($C$5,8,0),1,1)) -> 100.400002 | F101: =IF(A101>$A$8,"",OFFSET(InputPriceData!E$15,CalculationsAndCharts!$A101+$A$11,IF($C$5,8,0),1,1)) -> 99.110001 | G101: =IF(A101>$A$8,"",OFFSET(InputPriceData!F$15,CalculationsAndCharts!$A101+$A$11,IF($C$5,8,0),1,1)) -> 100.400002 | J101: 0.1353798654 | M101: 0.1721744574 | N101: -0.03679459197 | O101: -0.6037472399 | S101: -0.6095124512 | BC101: 591900
A102: 70 | B102: =IF(A102>$A$8,"",OFFSET(InputPriceData!B$15,$A102+$A$11,0,1,1)) -> 2024-03-26 | C102: =IF(A102>$A$8,"",OFFSET(InputPriceData!G$15,CalculationsAndCharts!$A102+$A$11,IF($C$5,8,0),1,1)) -> 529400 | D102: =IF(A102>$A$8,"",OFFSET(InputPriceData!C$15,CalculationsAndCharts!$A102+$A$11,IF($C$5,8,0),1,1)) -> 99.43 | E102: =IF(A102>$A$8,"",OFFSET(InputPriceData!D$15,CalculationsAndCharts!$A102+$A$11,IF($C$5,8,0),1,1)) -> 99.75 | F102: =IF(A102>$A$8,"",OFFSET(InputPriceData!E$15,CalculationsAndCharts!$A102+$A$11,IF($C$5,8,0),1,1)) -> 99.040001 | G102: =IF(A102>$A$8,"",OFFSET(InputPriceData!F$15,CalculationsAndCharts!$A102+$A$11,IF($C$5,8,0),1,1)) -> 99.150002 | J102: -1.021646897 | M102: -1.079640622 | N102: 0.0579937247 | O102: -1.171161373 | S102: -0.412407256 | BD102: 529400
A103: 71 | B103: =IF(A103>$A$8,"",OFFSET(InputPriceData!B$15,$A103+$A$11,0,1,1)) -> 2024-03-25 | C103: =IF(A103>$A$8,"",OFFSET(InputPriceData!G$15,CalculationsAndCharts!$A103+$A$11,IF($C$5,8,0),1,1)) -> 7056000 | D103: =IF(A103>$A$8,"",OFFSET(InputPriceData!C$15,CalculationsAndCharts!$A103+$A$11,IF($C$5,8,0),1,1)) -> 99.550003 | E103: =IF(A103>$A$8,"",OFFSET(InputPriceData!D$15,CalculationsAndCharts!$A103+$A$11,IF($C$5,8,0),1,1)) -> 100.110001 | F103: =IF(A103>$A$8,"",OFFSET(InputPriceData!E$15,CalculationsAndCharts!$A103+$A$11,IF($C$5,8,0),1,1)) -> 99.389999 | G103: =IF(A103>$A$8,"",OFFSET(InputPriceData!F$15,CalculationsAndCharts!$A103+$A$11,IF($C$5,8,0),1,1)) -> 99.419998 | J103: -0.6726284123 | M103: -0.9144944726 | N103: 0.2418660603 | O103: -1.028704162 | S103: -0.1876712131 | BC103: 7056000
A104: 72 | B104: =IF(A104>$A$8,"",OFFSET(InputPriceData!B$15,$A104+$A$11,0,1,1)) -> 2024-03-22 | C104: =IF(A104>$A$8,"",OFFSET(InputPriceData!G$15,CalculationsAndCharts!$A104+$A$11,IF($C$5,8,0),1,1)) -> 458300 | D104: =IF(A104>$A$8,"",OFFSET(InputPriceData!C$15,CalculationsAndCharts!$A104+$A$11,IF($C$5,8,0),1,1)) -> 100.879997 | E104: =IF(A104>$A$8,"",OFFSET(InputPriceData!D$15,CalculationsAndCharts!$A104+$A$11,IF($C$5,8,0),1,1)) -> 101.059998 | F104: =IF(A104>$A$8,"",OFFSET(InputPriceData!E$15,CalculationsAndCharts!$A104+$A$11,IF($C$5,8,0),1,1)) -> 99.309998 | G104: =IF(A104>$A$8,"",OFFSET(InputPriceData!F$15,CalculationsAndCharts!$A104+$A$11,IF($C$5,8,0),1,1)) -> 99.379997 | J104: -0.6261057525 | M104: -1.029478366 | N104: 0.4033726138 | O104: -0.06705434417 | S104: -0.0785222743 | BD104: 458300
A105: 73 | B105: =IF(A105>$A$8,"",OFFSET(InputPriceData!B$15,$A105+$A$11,0,1,1)) -> 2024-03-21 | C105: =IF(A105>$A$8,"",OFFSET(InputPriceData!G$15,CalculationsAndCharts!$A105+$A$11,IF($C$5,8,0),1,1)) -> 670600 | D105: =IF(A105>$A$8,"",OFFSET(InputPriceData!C$15,CalculationsAndCharts!$A105+$A$11,IF($C$5,8,0),1,1)) -> 100.510002 | E105: =IF(A105>$A$8,"",OFFSET(InputPriceData!D$15,CalculationsAndCharts!$A105+$A$11,IF($C$5,8,0),1,1)) -> 101.5 | F105: =IF(A105>$A$8,"",OFFSET(InputPriceData!E$15,CalculationsAndCharts!$A105+$A$11,IF($C$5,8,0),1,1)) -> 100.349998 | G105: =IF(A105>$A$8,"",OFFSET(InputPriceData!F$15,CalculationsAndCharts!$A105+$A$11,IF($C$5,8,0),1,1)) -> 100.879997 | J105: 0.9901120056 | M105: 0.5762118597 | N105: 0.4139001458 | O105: 0.7517592676 | S105: -0.03594646919 | BC105: 670600
A106: 74 | B106: =IF(A106>$A$8,"",OFFSET(InputPriceData!B$15,$A106+$A$11,0,1,1)) -> 2024-03-20 | C106: =IF(A106>$A$8,"",OFFSET(InputPriceData!G$15,CalculationsAndCharts!$A106+$A$11,IF($C$5,8,0),1,1)) -> 608100 | D106: =IF(A106>$A$8,"",OFFSET(InputPriceData!C$15,CalculationsAndCharts!$A106+$A$11,IF($C$5,8,0),1,1)) -> 98.43 | E106: =IF(A106>$A$8,"",OFFSET(InputPriceData!D$15,CalculationsAndCharts!$A106+$A$11,IF($C$5,8,0),1,1)) -> 100.470001 | F106: =IF(A106>$A$8,"",OFFSET(InputPriceData!E$15,CalculationsAndCharts!$A106+$A$11,IF($C$5,8,0),1,1)) -> 98.230003 | G106: =IF(A106>$A$8,"",OFFSET(InputPriceData!F$15,CalculationsAndCharts!$A106+$A$11,IF($C$5,8,0),1,1)) -> 100.400002 | J106: 0.6486710994 | M106: 0.3527971586 | N106: 0.2958739408 | O106: -0.2864994864 | S106: 0.2034611135 | BC106: 608100
A107: 75 | B107: =IF(A107>$A$8,"",OFFSET(InputPriceData!B$15,$A107+$A$11,0,1,1)) -> 2024-03-19 | C107: =IF(A107>$A$8,"",OFFSET(InputPriceData!G$15,CalculationsAndCharts!$A107+$A$11,IF($C$5,8,0),1,1)) -> 687600 | D107: =IF(A107>$A$8,"",OFFSET(InputPriceData!C$15,CalculationsAndCharts!$A107+$A$11,IF($C$5,8,0),1,1)) -> 99.169998 | E107: =IF(A107>$A$8,"",OFFSET(InputPriceData!D$15,CalculationsAndCharts!$A107+$A$11,IF($C$5,8,0),1,1)) -> 99.449997 | F107: =IF(A107>$A$8,"",OFFSET(InputPriceData!E$15,CalculationsAndCharts!$A107+$A$11,IF($C$5,8,0),1,1)) -> 98.769997 | G107: =IF(A107>$A$8,"",OFFSET(InputPriceData!F$15,CalculationsAndCharts!$A107+$A$11,IF($C$5,8,0),1,1)) -> 98.809998 | J107: -0.8354478314 | M107: -1.176302192 | N107: 0.3408543602 | O107: -0.8640487595 | S107: 0.7170051316 | BD107: 687600
A108: 76 | B108: =IF(A108>$A$8,"",OFFSET(InputPriceData!B$15,$A108+$A$11,0,1,1)) -> 2024-03-18 | C108: =IF(A108>$A$8,"",OFFSET(InputPriceData!G$15,CalculationsAndCharts!$A108+$A$11,IF($C$5,8,0),1,1)) -> 483700 | D108: =IF(A108>$A$8,"",OFFSET(InputPriceData!C$15,CalculationsAndCharts!$A108+$A$11,IF($C$5,8,0),1,1)) -> 99.400002 | E108: =IF(A108>$A$8,"",OFFSET(InputPriceData!D$15,CalculationsAndCharts!$A108+$A$11,IF($C$5,8,0),1,1)) -> 99.559998 | F108: =IF(A108>$A$8,"",OFFSET(InputPriceData!E$15,CalculationsAndCharts!$A108+$A$11,IF($C$5,8,0),1,1)) -> 98.559998 | G108: =IF(A108>$A$8,"",OFFSET(InputPriceData!F$15,CalculationsAndCharts!$A108+$A$11,IF($C$5,8,0),1,1)) -> 99.269997 | J108: -0.2859655337 | M108: -0.7624755491 | N108: 0.4765100154 | O108: -0.4496666795 | S108: 1.280879055 | BD108: 483700
A109: 77 | B109: =IF(A109>$A$8,"",OFFSET(InputPriceData!B$15,$A109+$A$11,0,1,1)) -> 2024-03-15 | C109: =IF(A109>$A$8,"",OFFSET(InputPriceData!G$15,CalculationsAndCharts!$A109+$A$11,IF($C$5,8,0),1,1)) -> 672700 | D109: =IF(A109>$A$8,"",OFFSET(InputPriceData!C$15,CalculationsAndCharts!$A109+$A$11,IF($C$5,8,0),1,1)) -> 99.68 | E109: =IF(A109>$A$8,"",OFFSET(InputPriceData!D$15,CalculationsAndCharts!$A109+$A$11,IF($C$5,8,0),1,1)) -> 99.940002 | F109: =IF(A109>$A$8,"",OFFSET(InputPriceData!E$15,CalculationsAndCharts!$A109+$A$11,IF($C$5,8,0),1,1)) -> 98.760002 | G109: =IF(A109>$A$8,"",OFFSET(InputPriceData!F$15,CalculationsAndCharts!$A109+$A$11,IF($C$5,8,0),1,1)) -> 99.339996 | J109: -0.113412748 | M109: -0.6605204321 | N109: 0.5471076841 | O109: 0.009484415698 | S109: 1.694112037 | BC109: =IF(G109>=G110,C109,NA()) ->  | BD109: =IF(G109<G110,C109,NA()) -> 672700
A110: 78 | B110: =IF(A110>$A$8,"",OFFSET(InputPriceData!B$15,$A110+$A$11,0,1,1)) -> 2024-03-14 | C110: =IF(A110>$A$8,"",OFFSET(InputPriceData!G$15,CalculationsAndCharts!$A110+$A$11,IF($C$5,8,0),1,1)) -> 1030700 | D110: =IF(A110>$A$8,"",OFFSET(InputPriceData!C$15,CalculationsAndCharts!$A110+$A$11,IF($C$5,8,0),1,1)) -> 100.940002 | E110: =IF(A110>$A$8,"",OFFSET(InputPriceData!D$15,CalculationsAndCharts!$A110+$A$11,IF($C$5,8,0),1,1)) -> 101.18 | F110: =IF(A110>$A$8,"",OFFSET(InputPriceData!E$15,CalculationsAndCharts!$A110+$A$11,IF($C$5,8,0),1,1)) -> 99.190002 | G110: =IF(A110>$A$8,"",OFFSET(InputPriceData!F$15,CalculationsAndCharts!$A110+$A$11,IF($C$5,8,0),1,1)) -> 99.760002 | J110: 0.421737135 | M110: -0.1238814959 | N110: 0.5456186308 | O110: 1.330343518 | S110: 1.800835072 | BD110: 1030700
A111: 79 | B111: =IF(A111>$A$8,"",OFFSET(InputPriceData!B$15,$A111+$A$11,0,1,1)) -> 2024-03-13 | C111: =IF(A111>$A$8,"",OFFSET(InputPriceData!G$15,CalculationsAndCharts!$A111+$A$11,IF($C$5,8,0),1,1)) -> 610800 | D111: =IF(A111>$A$8,"",OFFSET(InputPriceData!C$15,CalculationsAndCharts!$A111+$A$11,IF($C$5,8,0),1,1)) -> 100.699997 | E111: =IF(A111>$A$8,"",OFFSET(InputPriceData!D$15,CalculationsAndCharts!$A111+$A$11,IF($C$5,8,0),1,1)) -> 101.440002 | F111: =IF(A111>$A$8,"",OFFSET(InputPriceData!E$15,CalculationsAndCharts!$A111+$A$11,IF($C$5,8,0),1,1)) -> 100.639999 | G111: =IF(A111>$A$8,"",OFFSET(InputPriceData!F$15,CalculationsAndCharts!$A111+$A$11,IF($C$5,8,0),1,1)) -> 101.080002 | J111: 1.892104677 | M111: 1.555349978 | N111: 0.3367546986 | O111: 2.245165978 | S111: 1.575764101 | BC111: 610800
A112: 80 | B112: =IF(A112>$A$8,"",OFFSET(InputPriceData!B$15,$A112+$A$11,0,1,1)) -> 2024-03-12 | C112: =IF(A112>$A$8,"",OFFSET(InputPriceData!G$15,CalculationsAndCharts!$A112+$A$11,IF($C$5,8,0),1,1)) -> 714700 | D112: =IF(A112>$A$8,"",OFFSET(InputPriceData!C$15,CalculationsAndCharts!$A112+$A$11,IF($C$5,8,0),1,1)) -> 100 | E112: =IF(A112>$A$8,"",OFFSET(InputPriceData!D$15,CalculationsAndCharts!$A112+$A$11,IF($C$5,8,0),1,1)) -> 100.790001 | F112: =IF(A112>$A$8,"",OFFSET(InputPriceData!E$15,CalculationsAndCharts!$A112+$A$11,IF($C$5,8,0),1,1)) -> 99.339996 | G112: =IF(A112>$A$8,"",OFFSET(InputPriceData!F$15,CalculationsAndCharts!$A112+$A$11,IF($C$5,8,0),1,1)) -> 100.599998 | J112: 1.582175203 | M112: 1.597911563 | N112: -0.0157363599 | O112: 2.0528882 | S112: 1.187990669 | BC112: 714700
A113: 81 | B113: =IF(A113>$A$8,"",OFFSET(InputPriceData!B$15,$A113+$A$11,0,1,1)) -> 2024-03-11 | C113: =IF(A113>$A$8,"",OFFSET(InputPriceData!G$15,CalculationsAndCharts!$A113+$A$11,IF($C$5,8,0),1,1)) -> 549100 | D113: =IF(A113>$A$8,"",OFFSET(InputPriceData!C$15,CalculationsAndCharts!$A113+$A$11,IF($C$5,8,0),1,1)) -> 98.989998 | E113: =IF(A113>$A$8,"",OFFSET(InputPriceData!D$15,CalculationsAndCharts!$A113+$A$11,IF($C$5,8,0),1,1)) -> 100.120003 | F113: =IF(A113>$A$8,"",OFFSET(InputPriceData!E$15,CalculationsAndCharts!$A113+$A$11,IF($C$5,8,0),1,1)) -> 98.690002 | G113: =IF(A113>$A$8,"",OFFSET(InputPriceData!F$15,CalculationsAndCharts!$A113+$A$11,IF($C$5,8,0),1,1)) -> 100.029999 | J113: 1.168408105 | M113: 1.506447912 | N113: -0.3380398073 | O113: 1.661225314 | S113: 0.7563577685 | BC113: 549100
A114: 82 | B114: =IF(A114>$A$8,"",OFFSET(InputPriceData!B$15,$A114+$A$11,0,1,1)) -> 2024-03-08 | C114: =IF(A114>$A$8,"",OFFSET(InputPriceData!G$15,CalculationsAndCharts!$A114+$A$11,IF($C$5,8,0),1,1)) -> 382500 | D114: =IF(A114>$A$8,"",OFFSET(InputPriceData!C$15,CalculationsAndCharts!$A114+$A$11,IF($C$5,8,0),1,1)) -> 99.699997 | E114: =IF(A114>$A$8,"",OFFSET(InputPriceData!D$15,CalculationsAndCharts!$A114+$A$11,IF($C$5,8,0),1,1)) -> 99.809998 | F114: =IF(A114>$A$8,"",OFFSET(InputPriceData!E$15,CalculationsAndCharts!$A114+$A$11,IF($C$5,8,0),1,1)) -> 99.029999 | G114: =IF(A114>$A$8,"",OFFSET(InputPriceData!F$15,CalculationsAndCharts!$A114+$A$11,IF($C$5,8,0),1,1)) -> 99.330002 | J114: 0.606592681 | M114: 1.205444863 | N114: -0.5988521816 | O114: 1.59286912 | S114: 0.2881934351 | BD114: 382500
A115: 83 | B115: =IF(A115>$A$8,"",OFFSET(InputPriceData!B$15,$A115+$A$11,0,1,1)) -> 2024-03-07 | C115: =IF(A115>$A$8,"",OFFSET(InputPriceData!G$15,CalculationsAndCharts!$A115+$A$11,IF($C$5,8,0),1,1)) -> 656900 | D115: =IF(A115>$A$8,"",OFFSET(InputPriceData!C$15,CalculationsAndCharts!$A115+$A$11,IF($C$5,8,0),1,1)) -> 98.769997 | E115: =IF(A115>$A$8,"",OFFSET(InputPriceData!D$15,CalculationsAndCharts!$A115+$A$11,IF($C$5,8,0),1,1)) -> 99.400002 | F115: =IF(A115>$A$8,"",OFFSET(InputPriceData!E$15,CalculationsAndCharts!$A115+$A$11,IF($C$5,8,0),1,1)) -> 98.620003 | G115: =IF(A115>$A$8,"",OFFSET(InputPriceData!F$15,CalculationsAndCharts!$A115+$A$11,IF($C$5,8,0),1,1)) -> 99.400002 | J115: 0.807863959 | M115: 1.656796592 | N115: -0.8489326334 | O115: 1.187780317 | S115: -0.1620481694 | BC115: 656900
A116: 84 | B116: =IF(A116>$A$8,"",OFFSET(InputPriceData!B$15,$A116+$A$11,0,1,1)) -> 2024-03-06 | C116: =IF(A116>$A$8,"",OFFSET(InputPriceData!G$15,CalculationsAndCharts!$A116+$A$11,IF($C$5,8,0),1,1)) -> 835900 | D116: =IF(A116>$A$8,"",OFFSET(InputPriceData!C$15,CalculationsAndCharts!$A116+$A$11,IF($C$5,8,0),1,1)) -> 98.620003 | E116: =IF(A116>$A$8,"",OFFSET(InputPriceData!D$15,CalculationsAndCharts!$A116+$A$11,IF($C$5,8,0),1,1)) -> 99.139999 | F116: =IF(A116>$A$8,"",OFFSET(InputPriceData!E$15,CalculationsAndCharts!$A116+$A$11,IF($C$5,8,0),1,1)) -> 97.879997 | G116: =IF(A116>$A$8,"",OFFSET(InputPriceData!F$15,CalculationsAndCharts!$A116+$A$11,IF($C$5,8,0),1,1)) -> 98.230003 | J116: -0.2463319908 | M116: 0.7890821524 | N116: -1.035414143 | O116: 0.4871566752 | S116: -0.4899699869 | BC116: 835900
A117: 85 | B117: =IF(A117>$A$8,"",OFFSET(InputPriceData!B$15,$A117+$A$11,0,1,1)) -> 2024-03-05 | C117: =IF(A117>$A$8,"",OFFSET(InputPriceData!G$15,CalculationsAndCharts!$A117+$A$11,IF($C$5,8,0),1,1)) -> 1459400 | D117: =IF(A117>$A$8,"",OFFSET(InputPriceData!C$15,CalculationsAndCharts!$A117+$A$11,IF($C$5,8,0),1,1)) -> 97.110001 | E117: =IF(A117>$A$8,"",OFFSET(InputPriceData!D$15,CalculationsAndCharts!$A117+$A$11,IF($C$5,8,0),1,1)) -> 98.25 | F117: =IF(A117>$A$8,"",OFFSET(InputPriceData!E$15,CalculationsAndCharts!$A117+$A$11,IF($C$5,8,0),1,1)) -> 97.040001 | G117: =IF(A117>$A$8,"",OFFSET(InputPriceData!F$15,CalculationsAndCharts!$A117+$A$11,IF($C$5,8,0),1,1)) -> 97.959999 | J117: -0.4223771382 | M117: 0.689520603 | N117: -1.111897741 | O117: -0.07611348802 | S117: -0.6506946026 | BC117: 1459400
A118: 86 | B118: =IF(A118>$A$8,"",OFFSET(InputPriceData!B$15,$A118+$A$11,0,1,1)) -> 2024-03-04 | C118: =IF(A118>$A$8,"",OFFSET(InputPriceData!G$15,CalculationsAndCharts!$A118+$A$11,IF($C$5,8,0),1,1)) -> 2146300 | D118: =IF(A118>$A$8,"",OFFSET(InputPriceData!C$15,CalculationsAndCharts!$A118+$A$11,IF($C$5,8,0),1,1)) -> 97 | E118: =IF(A118>$A$8,"",OFFSET(InputPriceData!D$15,CalculationsAndCharts!$A118+$A$11,IF($C$5,8,0),1,1)) -> 97.68 | F118: =IF(A118>$A$8,"",OFFSET(InputPriceData!E$15,CalculationsAndCharts!$A118+$A$11,IF($C$5,8,0),1,1)) -> 96.769997 | G118: =IF(A118>$A$8,"",OFFSET(InputPriceData!F$15,CalculationsAndCharts!$A118+$A$11,IF($C$5,8,0),1,1)) -> 97.18 | J118: -1.123657538 | M118: -0.02370961399 | N118: -1.099947924 | O118: -0.4552035844 | S118: -0.6478735103 | BD118: 2146300
A119: 87 | B119: =IF(A119>$A$8,"",OFFSET(InputPriceData!B$15,$A119+$A$11,0,1,1)) -> 2024-03-01 | C119: =IF(A119>$A$8,"",OFFSET(InputPriceData!G$15,CalculationsAndCharts!$A119+$A$11,IF($C$5,8,0),1,1)) -> 754800 | D119: =IF(A119>$A$8,"",OFFSET(InputPriceData!C$15,CalculationsAndCharts!$A119+$A$11,IF($C$5,8,0),1,1)) -> 97.160004 | E119: =IF(A119>$A$8,"",OFFSET(InputPriceData!D$15,CalculationsAndCharts!$A119+$A$11,IF($C$5,8,0),1,1)) -> 97.93 | F119: =IF(A119>$A$8,"",OFFSET(InputPriceData!E$15,CalculationsAndCharts!$A119+$A$11,IF($C$5,8,0),1,1)) -> 96.559998 | G119: =IF(A119>$A$8,"",OFFSET(InputPriceData!F$15,CalculationsAndCharts!$A119+$A$11,IF($C$5,8,0),1,1)) -> 97.330002 | J119: -0.9029119435 | M119: 0.1255690173 | N119: -1.028480961 | O119: -0.5489298756 | S119: -0.4902657222 | BC119: 754800
A120: 88 | B120: =IF(A120>$A$8,"",OFFSET(InputPriceData!B$15,$A120+$A$11,0,1,1)) -> 2024-02-29 | C120: =IF(A120>$A$8,"",OFFSET(InputPriceData!G$15,CalculationsAndCharts!$A120+$A$11,IF($C$5,8,0),1,1)) -> 1474900 | D120: =IF(A120>$A$8,"",OFFSET(InputPriceData!C$15,CalculationsAndCharts!$A120+$A$11,IF($C$5,8,0),1,1)) -> 96.830002 | E120: =IF(A120>$A$8,"",OFFSET(InputPriceData!D$15,CalculationsAndCharts!$A120+$A$11,IF($C$5,8,0),1,1)) -> 97.25 | F120: =IF(A120>$A$8,"",OFFSET(InputPriceData!E$15,CalculationsAndCharts!$A120+$A$11,IF($C$5,8,0),1,1)) -> 96.080002 | G120: =IF(A120>$A$8,"",OFFSET(InputPriceData!F$15,CalculationsAndCharts!$A120+$A$11,IF($C$5,8,0),1,1)) -> 97.080002 | J120: -1.080773222 | M120: -0.1384742513 | N120: -0.9422989704 | O120: -1.140917887 | S120: -0.1644919241 | BC120: 1474900
A121: 89 | B121: =IF(A121>$A$8,"",OFFSET(InputPriceData!B$15,$A121+$A$11,0,1,1)) -> 2024-02-28 | C121: =IF(A121>$A$8,"",OFFSET(InputPriceData!G$15,CalculationsAndCharts!$A121+$A$11,IF($C$5,8,0),1,1)) -> 898100 | D121: =IF(A121>$A$8,"",OFFSET(InputPriceData!C$15,CalculationsAndCharts!$A121+$A$11,IF($C$5,8,0),1,1)) -> 96.919998 | E121: =IF(A121>$A$8,"",OFFSET(InputPriceData!D$15,CalculationsAndCharts!$A121+$A$11,IF($C$5,8,0),1,1)) -> 98.18 | F121: =IF(A121>$A$8,"",OFFSET(InputPriceData!E$15,CalculationsAndCharts!$A121+$A$11,IF($C$5,8,0),1,1)) -> 96.389999 | G121: =IF(A121>$A$8,"",OFFSET(InputPriceData!F$15,CalculationsAndCharts!$A121+$A$11,IF($C$5,8,0),1,1)) -> 96.459999 | J121: -1.641010518 | M121: -0.8778356558 | N121: -0.7631748621 | O121: -1.350967203 | S121: 0.2485116975 | BD121: 898100
A122: 90 | B122: =IF(A122>$A$8,"",OFFSET(InputPriceData!B$15,$A122+$A$11,0,1,1)) -> 2024-02-27 | C122: =IF(A122>$A$8,"",OFFSET(InputPriceData!G$15,CalculationsAndCharts!$A122+$A$11,IF($C$5,8,0),1,1)) -> 1602800 | D122: =IF(A122>$A$8,"",OFFSET(InputPriceData!C$15,CalculationsAndCharts!$A122+$A$11,IF($C$5,8,0),1,1)) -> 97.389999 | E122: =IF(A122>$A$8,"",OFFSET(InputPriceData!D$15,CalculationsAndCharts!$A122+$A$11,IF($C$5,8,0),1,1)) -> 97.900002 | F122: =IF(A122>$A$8,"",OFFSET(InputPriceData!E$15,CalculationsAndCharts!$A122+$A$11,IF($C$5,8,0),1,1)) -> 96.459999 | G122: =IF(A122>$A$8,"",OFFSET(InputPriceData!F$15,CalculationsAndCharts!$A122+$A$11,IF($C$5,8,0),1,1)) -> 96.919998 | J122: -1.121096633 | M122: -0.5700236214 | N122: -0.5510730111 | O122: -0.5136097675 | S122: 0.5213430205 | BD122: 1602800
A123: 91 | B123: =IF(A123>$A$8,"",OFFSET(InputPriceData!B$15,$A123+$A$11,0,1,1)) -> 2024-02-26 | C123: =IF(A123>$A$8,"",OFFSET(InputPriceData!G$15,CalculationsAndCharts!$A123+$A$11,IF($C$5,8,0),1,1)) -> 1036600 | D123: =IF(A123>$A$8,"",OFFSET(InputPriceData!C$15,CalculationsAndCharts!$A123+$A$11,IF($C$5,8,0),1,1)) -> 98.480003 | E123: =IF(A123>$A$8,"",OFFSET(InputPriceData!D$15,CalculationsAndCharts!$A123+$A$11,IF($C$5,8,0),1,1)) -> 99.059998 | F123: =IF(A123>$A$8,"",OFFSET(InputPriceData!E$15,CalculationsAndCharts!$A123+$A$11,IF($C$5,8,0),1,1)) -> 97.779999 | G123: =IF(A123>$A$8,"",OFFSET(InputPriceData!F$15,CalculationsAndCharts!$A123+$A$11,IF($C$5,8,0),1,1)) -> 97.970001 | J123: 0.01892803843 | M123: 0.4893643161 | N123: -0.4704362777 | O123: 0.5878417745 | S123: 0.5164757502 | BD123: 1036600
A124: 92 | B124: =IF(A124>$A$8,"",OFFSET(InputPriceData!B$15,$A124+$A$11,0,1,1)) -> 2024-02-23 | C124: =IF(A124>$A$8,"",OFFSET(InputPriceData!G$15,CalculationsAndCharts!$A124+$A$11,IF($C$5,8,0),1,1)) -> 434100 | D124: =IF(A124>$A$8,"",OFFSET(InputPriceData!C$15,CalculationsAndCharts!$A124+$A$11,IF($C$5,8,0),1,1)) -> 98.459999 | E124: =IF(A124>$A$8,"",OFFSET(InputPriceData!D$15,CalculationsAndCharts!$A124+$A$11,IF($C$5,8,0),1,1)) -> 98.970001 | F124: =IF(A124>$A$8,"",OFFSET(InputPriceData!E$15,CalculationsAndCharts!$A124+$A$11,IF($C$5,8,0),1,1)) -> 98.309998 | G124: =IF(A124>$A$8,"",OFFSET(InputPriceData!F$15,CalculationsAndCharts!$A124+$A$11,IF($C$5,8,0),1,1)) -> 98.660004 | J124: 0.8337289248 | M124: 1.396456361 | N124: -0.5627274362 | O124: 0.8281621487 | S124: 0.3160230854 | BC124: 434100
A125: 93 | B125: =IF(A125>$A$8,"",OFFSET(InputPriceData!B$15,$A125+$A$11,0,1,1)) -> 2024-02-22 | C125: =IF(A125>$A$8,"",OFFSET(InputPriceData!G$15,CalculationsAndCharts!$A125+$A$11,IF($C$5,8,0),1,1)) -> 1061700 | D125: =IF(A125>$A$8,"",OFFSET(InputPriceData!C$15,CalculationsAndCharts!$A125+$A$11,IF($C$5,8,0),1,1)) -> 98.07 | E125: =IF(A125>$A$8,"",OFFSET(InputPriceData!D$15,CalculationsAndCharts!$A125+$A$11,IF($C$5,8,0),1,1)) -> 98.739998 | F125: =IF(A125>$A$8,"",OFFSET(InputPriceData!E$15,CalculationsAndCharts!$A125+$A$11,IF($C$5,8,0),1,1)) -> 97.889999 | G125: =IF(A125>$A$8,"",OFFSET(InputPriceData!F$15,CalculationsAndCharts!$A125+$A$11,IF($C$5,8,0),1,1)) -> 98.139999 | J125: 0.4457701072 | M125: 1.138519001 | N125: -0.6927488936 | O125: 0.3489326459 | S125: 0.0513004333 | BC125: 1061700
A126: 94 | B126: =IF(A126>$A$8,"",OFFSET(InputPriceData!B$15,$A126+$A$11,0,1,1)) -> 2024-02-21 | C126: =IF(A126>$A$8,"",OFFSET(InputPriceData!G$15,CalculationsAndCharts!$A126+$A$11,IF($C$5,8,0),1,1)) -> 1232900 | D126: =IF(A126>$A$8,"",OFFSET(InputPriceData!C$15,CalculationsAndCharts!$A126+$A$11,IF($C$5,8,0),1,1)) -> 98.120003 | E126: =IF(A126>$A$8,"",OFFSET(InputPriceData!D$15,CalculationsAndCharts!$A126+$A$11,IF($C$5,8,0),1,1)) -> 98.18 | F126: =IF(A126>$A$8,"",OFFSET(InputPriceData!E$15,CalculationsAndCharts!$A126+$A$11,IF($C$5,8,0),1,1)) -> 97.349998 | G126: =IF(A126>$A$8,"",OFFSET(InputPriceData!F$15,CalculationsAndCharts!$A126+$A$11,IF($C$5,8,0),1,1)) -> 97.68 | J126: 0.10457145 | M126: 0.852102769 | N126: -0.747531319 | O126: 0.3318467931 | S126: -0.2905238197 | BD126: 1232900
A127: 95 | B127: =IF(A127>$A$8,"",OFFSET(InputPriceData!B$15,$A127+$A$11,0,1,1)) -> 2024-02-20 | C127: =IF(A127>$A$8,"",OFFSET(InputPriceData!G$15,CalculationsAndCharts!$A127+$A$11,IF($C$5,8,0),1,1)) -> 1365300 | D127: =IF(A127>$A$8,"",OFFSET(InputPriceData!C$15,CalculationsAndCharts!$A127+$A$11,IF($C$5,8,0),1,1)) -> 97.300003 | E127: =IF(A127>$A$8,"",OFFSET(InputPriceData!D$15,CalculationsAndCharts!$A127+$A$11,IF($C$5,8,0),1,1)) -> 98.660004 | F127: =IF(A127>$A$8,"",OFFSET(InputPriceData!E$15,CalculationsAndCharts!$A127+$A$11,IF($C$5,8,0),1,1)) -> 97.129997 | G127: =IF(A127>$A$8,"",OFFSET(InputPriceData!F$15,CalculationsAndCharts!$A127+$A$11,IF($C$5,8,0),1,1)) -> 98.019997 | J127: 0.5653001861 | M127: 1.364931452 | N127: -0.7996312655 | O127: 0.4647448274 | S127: -0.756833323 | BC127: 1365300
A128: 96 | B128: =IF(A128>$A$8,"",OFFSET(InputPriceData!B$15,$A128+$A$11,0,1,1)) -> 2024-02-16 | C128: =IF(A128>$A$8,"",OFFSET(InputPriceData!G$15,CalculationsAndCharts!$A128+$A$11,IF($C$5,8,0),1,1)) -> 1103900 | D128: =IF(A128>$A$8,"",OFFSET(InputPriceData!C$15,CalculationsAndCharts!$A128+$A$11,IF($C$5,8,0),1,1)) -> 97.68 | E128: =IF(A128>$A$8,"",OFFSET(InputPriceData!D$15,CalculationsAndCharts!$A128+$A$11,IF($C$5,8,0),1,1)) -> 98.720001 | F128: =IF(A128>$A$8,"",OFFSET(InputPriceData!E$15,CalculationsAndCharts!$A128+$A$11,IF($C$5,8,0),1,1)) -> 97.580002 | G128: =IF(A128>$A$8,"",OFFSET(InputPriceData!F$15,CalculationsAndCharts!$A128+$A$11,IF($C$5,8,0),1,1)) -> 97.830002 | J128: 0.5028396896 | M128: 1.375435893 | N128: -0.8725962034 | O128: 0.4655692765 | S128: -1.276102197 | BD128: 1103900
A129: 97 | B129: =IF(A129>$A$8,"",OFFSET(InputPriceData!B$15,$A129+$A$11,0,1,1)) -> 2024-02-15 | C129: =IF(A129>$A$8,"",OFFSET(InputPriceData!G$15,CalculationsAndCharts!$A129+$A$11,IF($C$5,8,0),1,1)) -> 1057700 | D129: =IF(A129>$A$8,"",OFFSET(InputPriceData!C$15,CalculationsAndCharts!$A129+$A$11,IF($C$5,8,0),1,1)) -> 97.160004 | E129: =IF(A129>$A$8,"",OFFSET(InputPriceData!D$15,CalculationsAndCharts!$A129+$A$11,IF($C$5,8,0),1,1)) -> 98.550003 | F129: =IF(A129>$A$8,"",OFFSET(InputPriceData!E$15,CalculationsAndCharts!$A129+$A$11,IF($C$5,8,0),1,1)) -> 96.919998 | G129: =IF(A129>$A$8,"",OFFSET(InputPriceData!F$15,CalculationsAndCharts!$A129+$A$11,IF($C$5,8,0),1,1)) -> 97.970001 | J129: 0.7737063798 | M129: 1.71939696 | N129: -0.9456905798 | O129: -0.2002092133 | S129: -1.673789101 | BC129: 1057700
A130: 98 | B130: =IF(A130>$A$8,"",OFFSET(InputPriceData!B$15,$A130+$A$11,0,1,1)) -> 2024-02-14 | C130: =IF(A130>$A$8,"",OFFSET(InputPriceData!G$15,CalculationsAndCharts!$A130+$A$11,IF($C$5,8,0),1,1)) -> 581700 | D130: =IF(A130>$A$8,"",OFFSET(InputPriceData!C$15,CalculationsAndCharts!$A130+$A$11,IF($C$5,8,0),1,1)) -> 95.190002 | E130: =IF(A130>$A$8,"",OFFSET(InputPriceData!D$15,CalculationsAndCharts!$A130+$A$11,IF($C$5,8,0),1,1)) -> 96.790001 | F130: =IF(A130>$A$8,"",OFFSET(InputPriceData!E$15,CalculationsAndCharts!$A130+$A$11,IF($C$5,8,0),1,1)) -> 95.190002 | G130: =IF(A130>$A$8,"",OFFSET(InputPriceData!F$15,CalculationsAndCharts!$A130+$A$11,IF($C$5,8,0),1,1)) -> 96.769997 | J130: -0.3101513065 | M130: 0.6041064269 | N130: -0.9142577334 | O130: -2.376131501 | S130: -1.790673852 | BC130: 581700
A131: 99 | B131: =IF(A131>$A$8,"",OFFSET(InputPriceData!B$15,$A131+$A$11,0,1,1)) -> 2024-02-13 | C131: =IF(A131>$A$8,"",OFFSET(InputPriceData!G$15,CalculationsAndCharts!$A131+$A$11,IF($C$5,8,0),1,1)) -> 1260700 | D131: =IF(A131>$A$8,"",OFFSET(InputPriceData!C$15,CalculationsAndCharts!$A131+$A$11,IF($C$5,8,0),1,1)) -> 96.779999 | E131: =IF(A131>$A$8,"",OFFSET(InputPriceData!D$15,CalculationsAndCharts!$A131+$A$11,IF($C$5,8,0),1,1)) -> 96.970001 | F131: =IF(A131>$A$8,"",OFFSET(InputPriceData!E$15,CalculationsAndCharts!$A131+$A$11,IF($C$5,8,0),1,1)) -> 93.970001 | G131: =IF(A131>$A$8,"",OFFSET(InputPriceData!F$15,CalculationsAndCharts!$A131+$A$11,IF($C$5,8,0),1,1)) -> 94.699997 | J131: -2.318613025 | M131: -1.777407937 | N131: -0.5412050877 | O131: -2.131055388 | S131: -1.836314261 | BD131: 1260700
A132: 100 | B132: =IF(A132>$A$8,"",OFFSET(InputPriceData!B$15,$A132+$A$11,0,1,1)) -> 2024-02-12 | C132: =IF(A132>$A$8,"",OFFSET(InputPriceData!G$15,CalculationsAndCharts!$A132+$A$11,IF($C$5,8,0),1,1)) -> 1673600 | D132: =IF(A132>$A$8,"",OFFSET(InputPriceData!C$15,CalculationsAndCharts!$A132+$A$11,IF($C$5,8,0),1,1)) -> 97.480003 | E132: =IF(A132>$A$8,"",OFFSET(InputPriceData!D$15,CalculationsAndCharts!$A132+$A$11,IF($C$5,8,0),1,1)) -> 97.940002 | F132: =IF(A132>$A$8,"",OFFSET(InputPriceData!E$15,CalculationsAndCharts!$A132+$A$11,IF($C$5,8,0),1,1)) -> 97.040001 | G132: =IF(A132>$A$8,"",OFFSET(InputPriceData!F$15,CalculationsAndCharts!$A132+$A$11,IF($C$5,8,0),1,1)) -> 97.760002 | J132: 0.8237300668 | M132: 1.030359459 | N132: -0.2066293919 | O132: -0.7910505466 | S132: -2.097617832 | BC132: 1673600
A133: 101 | B133: =IF(A133>$A$8,"",OFFSET(InputPriceData!B$15,$A133+$A$11,0,1,1)) -> 2024-02-09 | C133: =IF(A133>$A$8,"",OFFSET(InputPriceData!G$15,CalculationsAndCharts!$A133+$A$11,IF($C$5,8,0),1,1)) -> 1163500 | D133: =IF(A133>$A$8,"",OFFSET(InputPriceData!C$15,CalculationsAndCharts!$A133+$A$11,IF($C$5,8,0),1,1)) -> 96.800003 | E133: =IF(A133>$A$8,"",OFFSET(InputPriceData!D$15,CalculationsAndCharts!$A133+$A$11,IF($C$5,8,0),1,1)) -> 97.5 | F133: =IF(A133>$A$8,"",OFFSET(InputPriceData!E$15,CalculationsAndCharts!$A133+$A$11,IF($C$5,8,0),1,1)) -> 96.519997 | G133: =IF(A133>$A$8,"",OFFSET(InputPriceData!F$15,CalculationsAndCharts!$A133+$A$11,IF($C$5,8,0),1,1)) -> 97.339996 | J133: 0.536823858 | M133: 0.6192583141 | N133: -0.08243445605 | O133: -1.584133858 | S133: -2.392856165 | BC133: 1163500
A134: 102 | B134: =IF(A134>$A$8,"",OFFSET(InputPriceData!B$15,$A134+$A$11,0,1,1)) -> 2024-02-08 | C134: =IF(A134>$A$8,"",OFFSET(InputPriceData!G$15,CalculationsAndCharts!$A134+$A$11,IF($C$5,8,0),1,1)) -> 1208500 | D134: =IF(A134>$A$8,"",OFFSET(InputPriceData!C$15,CalculationsAndCharts!$A134+$A$11,IF($C$5,8,0),1,1)) -> 96.940002 | E134: =IF(A134>$A$8,"",OFFSET(InputPriceData!D$15,CalculationsAndCharts!$A134+$A$11,IF($C$5,8,0),1,1)) -> 97.029999 | F134: =IF(A134>$A$8,"",OFFSET(InputPriceData!E$15,CalculationsAndCharts!$A134+$A$11,IF($C$5,8,0),1,1)) -> 95.639999 | G134: =IF(A134>$A$8,"",OFFSET(InputPriceData!F$15,CalculationsAndCharts!$A134+$A$11,IF($C$5,8,0),1,1)) -> 96.760002 | J134: 0.07633705518 | M134: -0.08993750449 | N134: 0.1662745597 | O134: -2.046502807 | S134: -2.53354149 | BD134: 1208500
A135: 103 | B135: =IF(A135>$A$8,"",OFFSET(InputPriceData!B$15,$A135+$A$11,0,1,1)) -> 2024-02-07 | C135: =IF(A135>$A$8,"",OFFSET(InputPriceData!G$15,CalculationsAndCharts!$A135+$A$11,IF($C$5,8,0),1,1)) -> 815100 | D135: =IF(A135>$A$8,"",OFFSET(InputPriceData!C$15,CalculationsAndCharts!$A135+$A$11,IF($C$5,8,0),1,1)) -> 97.010002 | E135: =IF(A135>$A$8,"",OFFSET(InputPriceData!D$15,CalculationsAndCharts!$A135+$A$11,IF($C$5,8,0),1,1)) -> 97.309998 | F135: =IF(A135>$A$8,"",OFFSET(InputPriceData!E$15,CalculationsAndCharts!$A135+$A$11,IF($C$5,8,0),1,1)) -> 96.400002 | G135: =IF(A135>$A$8,"",OFFSET(InputPriceData!F$15,CalculationsAndCharts!$A135+$A$11,IF($C$5,8,0),1,1)) -> 97.029999 | J135: 0.4643716353 | M135: -0.023203865 | N135: 0.4875755003 | O135: -2.252457295 | S135: -2.543470302 | BC135: 815100
A136: 104 | B136: =IF(A136>$A$8,"",OFFSET(InputPriceData!B$15,$A136+$A$11,0,1,1)) -> 2024-02-06 | C136: =IF(A136>$A$8,"",OFFSET(InputPriceData!G$15,CalculationsAndCharts!$A136+$A$11,IF($C$5,8,0),1,1)) -> 371800 | D136: =IF(A136>$A$8,"",OFFSET(InputPriceData!C$15,CalculationsAndCharts!$A136+$A$11,IF($C$5,8,0),1,1)) -> 96.480003 | E136: =IF(A136>$A$8,"",OFFSET(InputPriceData!D$15,CalculationsAndCharts!$A136+$A$11,IF($C$5,8,0),1,1)) -> 97.160004 | F136: =IF(A136>$A$8,"",OFFSET(InputPriceData!E$15,CalculationsAndCharts!$A136+$A$11,IF($C$5,8,0),1,1)) -> 96.260002 | G136: =IF(A136>$A$8,"",OFFSET(InputPriceData!F$15,CalculationsAndCharts!$A136+$A$11,IF($C$5,8,0),1,1)) -> 96.940002 | J136: 0.4996976888 | M136: -0.3415136068 | N136: 0.8412112956 | O136: -2.962776539 | S136: -2.407921977 | BC136: 371800
A137: 105 | B137: =IF(A137>$A$8,"",OFFSET(InputPriceData!B$15,$A137+$A$11,0,1,1)) -> 2024-02-05 | C137: =IF(A137>$A$8,"",OFFSET(InputPriceData!G$15,CalculationsAndCharts!$A137+$A$11,IF($C$5,8,0),1,1)) -> 2146000 | D137: =IF(A137>$A$8,"",OFFSET(InputPriceData!C$15,CalculationsAndCharts!$A137+$A$11,IF($C$5,8,0),1,1)) -> 97.029999 | E137: =IF(A137>$A$8,"",OFFSET(InputPriceData!D$15,CalculationsAndCharts!$A137+$A$11,IF($C$5,8,0),1,1)) -> 97.190002 | F137: =IF(A137>$A$8,"",OFFSET(InputPriceData!E$15,CalculationsAndCharts!$A137+$A$11,IF($C$5,8,0),1,1)) -> 96 | G137: =IF(A137>$A$8,"",OFFSET(InputPriceData!F$15,CalculationsAndCharts!$A137+$A$11,IF($C$5,8,0),1,1)) -> 96.440002 | J137: 0.1186271312 | M137: -1.187740081 | N137: 1.306367212 | O137: -3.055512643 | S137: -2.202971414 | BD137: 2146000
A138: 106 | B138: =IF(A138>$A$8,"",OFFSET(InputPriceData!B$15,$A138+$A$11,0,1,1)) -> 2024-02-02 | C138: =IF(A138>$A$8,"",OFFSET(InputPriceData!G$15,CalculationsAndCharts!$A138+$A$11,IF($C$5,8,0),1,1)) -> 523200 | D138: =IF(A138>$A$8,"",OFFSET(InputPriceData!C$15,CalculationsAndCharts!$A138+$A$11,IF($C$5,8,0),1,1)) -> 97.650002 | E138: =IF(A138>$A$8,"",OFFSET(InputPriceData!D$15,CalculationsAndCharts!$A138+$A$11,IF($C$5,8,0),1,1)) -> 97.790001 | F138: =IF(A138>$A$8,"",OFFSET(InputPriceData!E$15,CalculationsAndCharts!$A138+$A$11,IF($C$5,8,0),1,1)) -> 96.790001 | G138: =IF(A138>$A$8,"",OFFSET(InputPriceData!F$15,CalculationsAndCharts!$A138+$A$11,IF($C$5,8,0),1,1)) -> 97.440002 | J138: 1.25058593 | M138: -0.5354967669 | N138: 1.786082697 | O138: -2.336126781 | S138: -2.093202666 | BD138: 523200
A139: 107 | B139: =IF(A139>$A$8,"",OFFSET(InputPriceData!B$15,$A139+$A$11,0,1,1)) -> 2024-02-01 | C139: =IF(A139>$A$8,"",OFFSET(InputPriceData!G$15,CalculationsAndCharts!$A139+$A$11,IF($C$5,8,0),1,1)) -> 900500 | D139: =IF(A139>$A$8,"",OFFSET(InputPriceData!C$15,CalculationsAndCharts!$A139+$A$11,IF($C$5,8,0),1,1)) -> 97.610001 | E139: =IF(A139>$A$8,"",OFFSET(InputPriceData!D$15,CalculationsAndCharts!$A139+$A$11,IF($C$5,8,0),1,1)) -> 98.25 | F139: =IF(A139>$A$8,"",OFFSET(InputPriceData!E$15,CalculationsAndCharts!$A139+$A$11,IF($C$5,8,0),1,1)) -> 97.150002 | G139: =IF(A139>$A$8,"",OFFSET(InputPriceData!F$15,CalculationsAndCharts!$A139+$A$11,IF($C$5,8,0),1,1)) -> 98.199997 | J139: 2.178383686 | M139: 0.02552908464 | N139: 2.152854602 | O139: -2.512614313 | S139: -2.102215317 | BC139: 900500
A140: 108 | B140: =IF(A140>$A$8,"",OFFSET(InputPriceData!B$15,$A140+$A$11,0,1,1)) -> 2024-01-31 | C140: =IF(A140>$A$8,"",OFFSET(InputPriceData!G$15,CalculationsAndCharts!$A140+$A$11,IF($C$5,8,0),1,1)) -> 825500 | D140: =IF(A140>$A$8,"",OFFSET(InputPriceData!C$15,CalculationsAndCharts!$A140+$A$11,IF($C$5,8,0),1,1)) -> 99.199997 | E140: =IF(A140>$A$8,"",OFFSET(InputPriceData!D$15,CalculationsAndCharts!$A140+$A$11,IF($C$5,8,0),1,1)) -> 99.779999 | F140: =IF(A140>$A$8,"",OFFSET(InputPriceData!E$15,CalculationsAndCharts!$A140+$A$11,IF($C$5,8,0),1,1)) -> 97.260002 | G140: =IF(A140>$A$8,"",OFFSET(InputPriceData!F$15,CalculationsAndCharts!$A140+$A$11,IF($C$5,8,0),1,1)) -> 97.610001 | J140: 1.764152703 | M140: -0.7831823463 | N140: 2.547335049 | O140: -2.12074277 | S140: -2.248968588 | BD140: 825500
A141: 109 | B141: =IF(A141>$A$8,"",OFFSET(InputPriceData!B$15,$A141+$A$11,0,1,1)) -> 2024-01-30 | C141: =IF(A141>$A$8,"",OFFSET(InputPriceData!G$15,CalculationsAndCharts!$A141+$A$11,IF($C$5,8,0),1,1)) -> 727300 | D141: =IF(A141>$A$8,"",OFFSET(InputPriceData!C$15,CalculationsAndCharts!$A141+$A$11,IF($C$5,8,0),1,1)) -> 98.959999 | E141: =IF(A141>$A$8,"",OFFSET(InputPriceData!D$15,CalculationsAndCharts!$A141+$A$11,IF($C$5,8,0),1,1)) -> 99.419998 | F141: =IF(A141>$A$8,"",OFFSET(InputPriceData!E$15,CalculationsAndCharts!$A141+$A$11,IF($C$5,8,0),1,1)) -> 98.269997 | G141: =IF(A141>$A$8,"",OFFSET(InputPriceData!F$15,CalculationsAndCharts!$A141+$A$11,IF($C$5,8,0),1,1)) -> 99.279999 | J141: 3.634312634 | M141: 0.7540209702 | N141: 2.880291664 | O141: -1.47665055 | S141: -2.58353981 | BC141: 727300
A142: 110 | B142: =IF(A142>$A$8,"",OFFSET(InputPriceData!B$15,$A142+$A$11,0,1,1)) -> 2024-01-29 | C142: =IF(A142>$A$8,"",OFFSET(InputPriceData!G$15,CalculationsAndCharts!$A142+$A$11,IF($C$5,8,0),1,1)) -> 488300 | D142: =IF(A142>$A$8,"",OFFSET(InputPriceData!C$15,CalculationsAndCharts!$A142+$A$11,IF($C$5,8,0),1,1)) -> 98.68 | E142: =IF(A142>$A$8,"",OFFSET(InputPriceData!D$15,CalculationsAndCharts!$A142+$A$11,IF($C$5,8,0),1,1)) -> 99.010002 | F142: =IF(A142>$A$8,"",OFFSET(InputPriceData!E$15,CalculationsAndCharts!$A142+$A$11,IF($C$5,8,0),1,1)) -> 97.959999 | G142: =IF(A142>$A$8,"",OFFSET(InputPriceData!F$15,CalculationsAndCharts!$A142+$A$11,IF($C$5,8,0),1,1)) -> 98.989998 | J142: 3.574655523 | M142: 0.4625297227 | N142: 3.1121258 | O142: -1.896136372 | S142: -2.973550527 | BC142: 488300
A143: 111 | B143: =IF(A143>$A$8,"",OFFSET(InputPriceData!B$15,$A143+$A$11,0,1,1)) -> 2024-01-26 | C143: =IF(A143>$A$8,"",OFFSET(InputPriceData!G$15,CalculationsAndCharts!$A143+$A$11,IF($C$5,8,0),1,1)) -> 481800 | D143: =IF(A143>$A$8,"",OFFSET(InputPriceData!C$15,CalculationsAndCharts!$A143+$A$11,IF($C$5,8,0),1,1)) -> 98.239998 | E143: =IF(A143>$A$8,"",OFFSET(InputPriceData!D$15,CalculationsAndCharts!$A143+$A$11,IF($C$5,8,0),1,1)) -> 99.010002 | F143: =IF(A143>$A$8,"",OFFSET(InputPriceData!E$15,CalculationsAndCharts!$A143+$A$11,IF($C$5,8,0),1,1)) -> 98.209999 | G143: =IF(A143>$A$8,"",OFFSET(InputPriceData!F$15,CalculationsAndCharts!$A143+$A$11,IF($C$5,8,0),1,1)) -> 98.849998 | J143: 3.663232647 | M143: 0.2534134364 | N143: 3.409819211 | O143: -2.594301775 | S143: -3.280444191 | BC143: 481800
A144: 112 | B144: =IF(A144>$A$8,"",OFFSET(InputPriceData!B$15,$A144+$A$11,0,1,1)) -> 2024-01-25 | C144: =IF(A144>$A$8,"",OFFSET(InputPriceData!G$15,CalculationsAndCharts!$A144+$A$11,IF($C$5,8,0),1,1)) -> 7576900 | D144: =IF(A144>$A$8,"",OFFSET(InputPriceData!C$15,CalculationsAndCharts!$A144+$A$11,IF($C$5,8,0),1,1)) -> 98.269997 | E144: =IF(A144>$A$8,"",OFFSET(InputPriceData!D$15,CalculationsAndCharts!$A144+$A$11,IF($C$5,8,0),1,1)) -> 98.419998 | F144: =IF(A144>$A$8,"",OFFSET(InputPriceData!E$15,CalculationsAndCharts!$A144+$A$11,IF($C$5,8,0),1,1)) -> 97.440002 | G144: =IF(A144>$A$8,"",OFFSET(InputPriceData!F$15,CalculationsAndCharts!$A144+$A$11,IF($C$5,8,0),1,1)) -> 98.209999 | J144: 3.24369672 | M144: -0.5734278699 | N144: 3.817124589 | O144: -3.528667296 | S144: -3.513052039 | BC144: 7576900
A145: 113 | B145: =IF(A145>$A$8,"",OFFSET(InputPriceData!B$15,$A145+$A$11,0,1,1)) -> 2024-01-24 | C145: =IF(A145>$A$8,"",OFFSET(InputPriceData!G$15,CalculationsAndCharts!$A145+$A$11,IF($C$5,8,0),1,1)) -> 2970300 | D145: =IF(A145>$A$8,"",OFFSET(InputPriceData!C$15,CalculationsAndCharts!$A145+$A$11,IF($C$5,8,0),1,1)) -> 98.889999 | E145: =IF(A145>$A$8,"",OFFSET(InputPriceData!D$15,CalculationsAndCharts!$A145+$A$11,IF($C$5,8,0),1,1)) -> 99.25 | F145: =IF(A145>$A$8,"",OFFSET(InputPriceData!E$15,CalculationsAndCharts!$A145+$A$11,IF($C$5,8,0),1,1)) -> 97.599998 | G145: =IF(A145>$A$8,"",OFFSET(InputPriceData!F$15,CalculationsAndCharts!$A145+$A$11,IF($C$5,8,0),1,1)) -> 97.830002 | J145: 3.071561592 | M145: -1.299563763 | N145: 4.371125355 | O145: -3.244714082 | S145: -3.821545263 | BD145: 2970300
A146: 114 | B146: =IF(A146>$A$8,"",OFFSET(InputPriceData!B$15,$A146+$A$11,0,1,1)) -> 2024-01-23 | C146: =IF(A146>$A$8,"",OFFSET(InputPriceData!G$15,CalculationsAndCharts!$A146+$A$11,IF($C$5,8,0),1,1)) -> 2198100 | D146: =IF(A146>$A$8,"",OFFSET(InputPriceData!C$15,CalculationsAndCharts!$A146+$A$11,IF($C$5,8,0),1,1)) -> 98.949997 | E146: =IF(A146>$A$8,"",OFFSET(InputPriceData!D$15,CalculationsAndCharts!$A146+$A$11,IF($C$5,8,0),1,1)) -> 99.510002 | F146: =IF(A146>$A$8,"",OFFSET(InputPriceData!E$15,CalculationsAndCharts!$A146+$A$11,IF($C$5,8,0),1,1)) -> 98.809998 | G146: =IF(A146>$A$8,"",OFFSET(InputPriceData!F$15,CalculationsAndCharts!$A146+$A$11,IF($C$5,8,0),1,1)) -> 99.269997 | J146: 4.743845023 | M146: -0.1367004424 | N146: 4.880545466 | O146: -2.860309015 | S146: -4.29578089 | BC146: 2198100
A147: 115 | B147: =IF(A147>$A$8,"",OFFSET(InputPriceData!B$15,$A147+$A$11,0,1,1)) -> 2024-01-22 | C147: =IF(A147>$A$8,"",OFFSET(InputPriceData!G$15,CalculationsAndCharts!$A147+$A$11,IF($C$5,8,0),1,1)) -> 2630300 | D147: =IF(A147>$A$8,"",OFFSET(InputPriceData!C$15,CalculationsAndCharts!$A147+$A$11,IF($C$5,8,0),1,1)) -> 99.620003 | E147: =IF(A147>$A$8,"",OFFSET(InputPriceData!D$15,CalculationsAndCharts!$A147+$A$11,IF($C$5,8,0),1,1)) -> 99.849998 | F147: =IF(A147>$A$8,"",OFFSET(InputPriceData!E$15,CalculationsAndCharts!$A147+$A$11,IF($C$5,8,0),1,1)) -> 98.580002 | G147: =IF(A147>$A$8,"",OFFSET(InputPriceData!F$15,CalculationsAndCharts!$A147+$A$11,IF($C$5,8,0),1,1)) -> 98.949997 | J147: 4.682029305 | M147: -0.6475846766 | N147: 5.329613981 | O147: -2.894860954 | S147: -4.796687597 | BD147: 2630300
A148: 116 | B148: =IF(A148>$A$8,"",OFFSET(InputPriceData!B$15,$A148+$A$11,0,1,1)) -> 2024-01-19 | C148: =IF(A148>$A$8,"",OFFSET(InputPriceData!G$15,CalculationsAndCharts!$A148+$A$11,IF($C$5,8,0),1,1)) -> 691200 | D148: =IF(A148>$A$8,"",OFFSET(InputPriceData!C$15,CalculationsAndCharts!$A148+$A$11,IF($C$5,8,0),1,1)) -> 98.480003 | E148: =IF(A148>$A$8,"",OFFSET(InputPriceData!D$15,CalculationsAndCharts!$A148+$A$11,IF($C$5,8,0),1,1)) -> 99.82 | F148: =IF(A148>$A$8,"",OFFSET(InputPriceData!E$15,CalculationsAndCharts!$A148+$A$11,IF($C$5,8,0),1,1)) -> 97.650002 | G148: =IF(A148>$A$8,"",OFFSET(InputPriceData!F$15,CalculationsAndCharts!$A148+$A$11,IF($C$5,8,0),1,1)) -> 99.620003 | J148: 5.622722249 | M148: -0.161384902 | N148: 5.784107151 | O148: -3.634120687 | S148: -5.085292266 | BC148: 691200
A149: 117 | B149: =IF(A149>$A$8,"",OFFSET(InputPriceData!B$15,$A149+$A$11,0,1,1)) -> 2024-01-18 | C149: =IF(A149>$A$8,"",OFFSET(InputPriceData!G$15,CalculationsAndCharts!$A149+$A$11,IF($C$5,8,0),1,1)) -> 555900 | D149: =IF(A149>$A$8,"",OFFSET(InputPriceData!C$15,CalculationsAndCharts!$A149+$A$11,IF($C$5,8,0),1,1)) -> 98.099998 | E149: =IF(A149>$A$8,"",OFFSET(InputPriceData!D$15,CalculationsAndCharts!$A149+$A$11,IF($C$5,8,0),1,1)) -> 98.519997 | F149: =IF(A149>$A$8,"",OFFSET(InputPriceData!E$15,CalculationsAndCharts!$A149+$A$11,IF($C$5,8,0),1,1)) -> 97.75 | G149: =IF(A149>$A$8,"",OFFSET(InputPriceData!F$15,CalculationsAndCharts!$A149+$A$11,IF($C$5,8,0),1,1)) -> 98.169998 | J149: 4.435814336 | M149: -1.918849763 | N149: 6.354664099 | O149: -5.307809781 | S149: -4.967775344 | BC149: 555900
A150: 118 | B150: =IF(A150>$A$8,"",OFFSET(InputPriceData!B$15,$A150+$A$11,0,1,1)) -> 2024-01-17 | C150: =IF(A150>$A$8,"",OFFSET(InputPriceData!G$15,CalculationsAndCharts!$A150+$A$11,IF($C$5,8,0),1,1)) -> 585000 | D150: =IF(A150>$A$8,"",OFFSET(InputPriceData!C$15,CalculationsAndCharts!$A150+$A$11,IF($C$5,8,0),1,1)) -> 97.510002 | E150: =IF(A150>$A$8,"",OFFSET(InputPriceData!D$15,CalculationsAndCharts!$A150+$A$11,IF($C$5,8,0),1,1)) -> 97.959999 | F150: =IF(A150>$A$8,"",OFFSET(InputPriceData!E$15,CalculationsAndCharts!$A150+$A$11,IF($C$5,8,0),1,1)) -> 96.690002 | G150: =IF(A150>$A$8,"",OFFSET(InputPriceData!F$15,CalculationsAndCharts!$A150+$A$11,IF($C$5,8,0),1,1)) -> 97.480003 | J150: 3.976751929 | M150: -3.211238305 | N150: 7.187990234 | O150: -5.680270618 | S150: -4.52420369 | BD150: 585000
A151: 119 | B151: =IF(A151>$A$8,"",OFFSET(InputPriceData!B$15,$A151+$A$11,0,1,1)) -> 2024-01-16 | C151: =IF(A151>$A$8,"",OFFSET(InputPriceData!G$15,CalculationsAndCharts!$A151+$A$11,IF($C$5,8,0),1,1)) -> 703100 | D151: =IF(A151>$A$8,"",OFFSET(InputPriceData!C$15,CalculationsAndCharts!$A151+$A$11,IF($C$5,8,0),1,1)) -> 97.809998 | E151: =IF(A151>$A$8,"",OFFSET(InputPriceData!D$15,CalculationsAndCharts!$A151+$A$11,IF($C$5,8,0),1,1)) -> 98.400002 | F151: =IF(A151>$A$8,"",OFFSET(InputPriceData!E$15,CalculationsAndCharts!$A151+$A$11,IF($C$5,8,0),1,1)) -> 97.43 | G151: =IF(A151>$A$8,"",OFFSET(InputPriceData!F$15,CalculationsAndCharts!$A151+$A$11,IF($C$5,8,0),1,1)) -> 98.349998 | J151: 5.086482928 | M151: -2.993309794 | N151: 8.079792721 | O151: -5.462833012 | S151: -3.979070827 | BD151: 703100
A152: 120 | B152: =IF(A152>$A$8,"",OFFSET(InputPriceData!B$15,$A152+$A$11,0,1,1)) -> 2024-01-12 | C152: =IF(A152>$A$8,"",OFFSET(InputPriceData!G$15,CalculationsAndCharts!$A152+$A$11,IF($C$5,8,0),1,1)) -> 705700 | D152: =IF(A152>$A$8,"",OFFSET(InputPriceData!C$15,CalculationsAndCharts!$A152+$A$11,IF($C$5,8,0),1,1)) -> 100.07 | E152: =IF(A152>$A$8,"",OFFSET(InputPriceData!D$15,CalculationsAndCharts!$A152+$A$11,IF($C$5,8,0),1,1)) -> 100.400002 | F152: =IF(A152>$A$8,"",OFFSET(InputPriceData!E$15,CalculationsAndCharts!$A152+$A$11,IF($C$5,8,0),1,1)) -> 98.550003 | G152: =IF(A152>$A$8,"",OFFSET(InputPriceData!F$15,CalculationsAndCharts!$A152+$A$11,IF($C$5,8,0),1,1)) -> 98.559998 | J152: 5.561263662 | M152: -3.376193842 | N152: 8.937457504 | O152: -5.068748382 | S152: -3.468107868 | BD152: 705700
A153: 121 | B153: =IF(A153>$A$8,"",OFFSET(InputPriceData!B$15,$A153+$A$11,0,1,1)) -> 2024-01-11 | C153: =IF(A153>$A$8,"",OFFSET(InputPriceData!G$15,CalculationsAndCharts!$A153+$A$11,IF($C$5,8,0),1,1)) -> 841000 | D153: =IF(A153>$A$8,"",OFFSET(InputPriceData!C$15,CalculationsAndCharts!$A153+$A$11,IF($C$5,8,0),1,1)) -> 100.239998 | E153: =IF(A153>$A$8,"",OFFSET(InputPriceData!D$15,CalculationsAndCharts!$A153+$A$11,IF($C$5,8,0),1,1)) -> 100.620003 | F153: =IF(A153>$A$8,"",OFFSET(InputPriceData!E$15,CalculationsAndCharts!$A153+$A$11,IF($C$5,8,0),1,1)) -> 98.809998 | G153: =IF(A153>$A$8,"",OFFSET(InputPriceData!F$15,CalculationsAndCharts!$A153+$A$11,IF($C$5,8,0),1,1)) -> 99.550003 | J153: 6.843634368 | M153: -2.889616632 | N153: 9.733251 | O153: -3.988362028 | S153: -3.110229321 | BD153: 841000
A154: 122 | B154: =IF(A154>$A$8,"",OFFSET(InputPriceData!B$15,$A154+$A$11,0,1,1)) -> 2024-01-10 | C154: =IF(A154>$A$8,"",OFFSET(InputPriceData!G$15,CalculationsAndCharts!$A154+$A$11,IF($C$5,8,0),1,1)) -> 1410800 | D154: =IF(A154>$A$8,"",OFFSET(InputPriceData!C$15,CalculationsAndCharts!$A154+$A$11,IF($C$5,8,0),1,1)) -> 101.029999 | E154: =IF(A154>$A$8,"",OFFSET(InputPriceData!D$15,CalculationsAndCharts!$A154+$A$11,IF($C$5,8,0),1,1)) -> 101.309998 | F154: =IF(A154>$A$8,"",OFFSET(InputPriceData!E$15,CalculationsAndCharts!$A154+$A$11,IF($C$5,8,0),1,1)) -> 100.010002 | G154: =IF(A154>$A$8,"",OFFSET(InputPriceData!F$15,CalculationsAndCharts!$A154+$A$11,IF($C$5,8,0),1,1)) -> 100.650002 | J154: 8.279963976 | M154: -2.079459863 | N154: 10.35942384 | O154: -3.11878027 | S154: -2.922765447 | BD154: 1410800
A155: 123 | B155: =IF(A155>$A$8,"",OFFSET(InputPriceData!B$15,$A155+$A$11,0,1,1)) -> 2024-01-09 | C155: =IF(A155>$A$8,"",OFFSET(InputPriceData!G$15,CalculationsAndCharts!$A155+$A$11,IF($C$5,8,0),1,1)) -> 1757200 | D155: =IF(A155>$A$8,"",OFFSET(InputPriceData!C$15,CalculationsAndCharts!$A155+$A$11,IF($C$5,8,0),1,1)) -> 100.519997 | E155: =IF(A155>$A$8,"",OFFSET(InputPriceData!D$15,CalculationsAndCharts!$A155+$A$11,IF($C$5,8,0),1,1)) -> 101.330002 | F155: =IF(A155>$A$8,"",OFFSET(InputPriceData!E$15,CalculationsAndCharts!$A155+$A$11,IF($C$5,8,0),1,1)) -> 100.089996 | G155: =IF(A155>$A$8,"",OFFSET(InputPriceData!F$15,CalculationsAndCharts!$A155+$A$11,IF($C$5,8,0),1,1)) -> 100.989998 | J155: 8.989304953 | M155: -1.859767388 | N155: 10.84907234 | O155: -2.58356917 | S155: -2.780061641 | BD155: 1757200
A156: 124 | B156: =IF(A156>$A$8,"",OFFSET(InputPriceData!B$15,$A156+$A$11,0,1,1)) -> 2024-01-08 | C156: =IF(A156>$A$8,"",OFFSET(InputPriceData!G$15,CalculationsAndCharts!$A156+$A$11,IF($C$5,8,0),1,1)) -> 1105000 | D156: =IF(A156>$A$8,"",OFFSET(InputPriceData!C$15,CalculationsAndCharts!$A156+$A$11,IF($C$5,8,0),1,1)) -> 100.580002 | E156: =IF(A156>$A$8,"",OFFSET(InputPriceData!D$15,CalculationsAndCharts!$A156+$A$11,IF($C$5,8,0),1,1)) -> 101.400002 | F156: =IF(A156>$A$8,"",OFFSET(InputPriceData!E$15,CalculationsAndCharts!$A156+$A$11,IF($C$5,8,0),1,1)) -> 100.190002 | G156: =IF(A156>$A$8,"",OFFSET(InputPriceData!F$15,CalculationsAndCharts!$A156+$A$11,IF($C$5,8,0),1,1)) -> 101.309998 | J156: 9.698174882 | M156: -1.556517818 | N156: 11.2546927 | O156: -2.511452666 | S156: -2.509076793 | BC156: 1105000
A157: 125 | B157: =IF(A157>$A$8,"",OFFSET(InputPriceData!B$15,$A157+$A$11,0,1,1)) -> 2024-01-05 | C157: =IF(A157>$A$8,"",OFFSET(InputPriceData!G$15,CalculationsAndCharts!$A157+$A$11,IF($C$5,8,0),1,1)) -> 1213200 | D157: =IF(A157>$A$8,"",OFFSET(InputPriceData!C$15,CalculationsAndCharts!$A157+$A$11,IF($C$5,8,0),1,1)) -> 100.260002 | E157: =IF(A157>$A$8,"",OFFSET(InputPriceData!D$15,CalculationsAndCharts!$A157+$A$11,IF($C$5,8,0),1,1)) -> 101.360001 | F157: =IF(A157>$A$8,"",OFFSET(InputPriceData!E$15,CalculationsAndCharts!$A157+$A$11,IF($C$5,8,0),1,1)) -> 100.029999 | G157: =IF(A157>$A$8,"",OFFSET(InputPriceData!F$15,CalculationsAndCharts!$A157+$A$11,IF($C$5,8,0),1,1)) -> 100.75 | J157: 9.530681252 | M157: -2.118309518 | N157: 11.64899077 | O157: -2.964572333 | S157: -1.956154617 | BC157: 1213200
A158: 126 | B158: =IF(A158>$A$8,"",OFFSET(InputPriceData!B$15,$A158+$A$11,0,1,1)) -> 2024-01-04 | C158: =IF(A158>$A$8,"",OFFSET(InputPriceData!G$15,CalculationsAndCharts!$A158+$A$11,IF($C$5,8,0),1,1)) -> 1614100 | D158: =IF(A158>$A$8,"",OFFSET(InputPriceData!C$15,CalculationsAndCharts!$A158+$A$11,IF($C$5,8,0),1,1)) -> 100 | E158: =IF(A158>$A$8,"",OFFSET(InputPriceData!D$15,CalculationsAndCharts!$A158+$A$11,IF($C$5,8,0),1,1)) -> 101.07 | F158: =IF(A158>$A$8,"",OFFSET(InputPriceData!E$15,CalculationsAndCharts!$A158+$A$11,IF($C$5,8,0),1,1)) -> 99.959999 | G158: =IF(A158>$A$8,"",OFFSET(InputPriceData!F$15,CalculationsAndCharts!$A158+$A$11,IF($C$5,8,0),1,1)) -> 100.169998 | J158: 9.330639453 | M158: -2.783789173 | N158: 12.11442863 | O158: -3.179470478 | S158: -1.107141127 | BC158: 1614100
A159: 127 | B159: =IF(A159>$A$8,"",OFFSET(InputPriceData!B$15,$A159+$A$11,0,1,1)) -> 2024-01-03 | C159: =IF(A159>$A$8,"",OFFSET(InputPriceData!G$15,CalculationsAndCharts!$A159+$A$11,IF($C$5,8,0),1,1)) -> 682500 | D159: =IF(A159>$A$8,"",OFFSET(InputPriceData!C$15,CalculationsAndCharts!$A159+$A$11,IF($C$5,8,0),1,1)) -> 100 | E159: =IF(A159>$A$8,"",OFFSET(InputPriceData!D$15,CalculationsAndCharts!$A159+$A$11,IF($C$5,8,0),1,1)) -> 100.300003 | F159: =IF(A159>$A$8,"",OFFSET(InputPriceData!E$15,CalculationsAndCharts!$A159+$A$11,IF($C$5,8,0),1,1)) -> 99.360001 | G159: =IF(A159>$A$8,"",OFFSET(InputPriceData!F$15,CalculationsAndCharts!$A159+$A$11,IF($C$5,8,0),1,1)) -> 100.010002 | J159: 9.544898933 | M159: -3.068706557 | N159: 12.61360549 | O159: -2.696603801 | S159: -0.1068266686 | BD159: 682500
A160: 128 | B160: =IF(A160>$A$8,"",OFFSET(InputPriceData!B$15,$A160+$A$11,0,1,1)) -> 2024-01-02 | C160: =IF(A160>$A$8,"",OFFSET(InputPriceData!G$15,CalculationsAndCharts!$A160+$A$11,IF($C$5,8,0),1,1)) -> 703400 | D160: =IF(A160>$A$8,"",OFFSET(InputPriceData!C$15,CalculationsAndCharts!$A160+$A$11,IF($C$5,8,0),1,1)) -> 100.050003 | E160: =IF(A160>$A$8,"",OFFSET(InputPriceData!D$15,CalculationsAndCharts!$A160+$A$11,IF($C$5,8,0),1,1)) -> 100.800003 | F160: =IF(A160>$A$8,"",OFFSET(InputPriceData!E$15,CalculationsAndCharts!$A160+$A$11,IF($C$5,8,0),1,1)) -> 99.860001 | G160: =IF(A160>$A$8,"",OFFSET(InputPriceData!F$15,CalculationsAndCharts!$A160+$A$11,IF($C$5,8,0),1,1)) -> 100.489998 | J160: 10.41223986 | M160: -2.624732428 | N160: 13.03697229 | O160: -1.588262377 | S160: 0.8668940467 | BD160: 703400
A161: 129 | B161: =IF(A161>$A$8,"",OFFSET(InputPriceData!B$15,$A161+$A$11,0,1,1)) -> 2023-12-29 | C161: =IF(A161>$A$8,"",OFFSET(InputPriceData!G$15,CalculationsAndCharts!$A161+$A$11,IF($C$5,8,0),1,1)) -> 428400 | D161: =IF(A161>$A$8,"",OFFSET(InputPriceData!C$15,CalculationsAndCharts!$A161+$A$11,IF($C$5,8,0),1,1)) -> 101.190002 | E161: =IF(A161>$A$8,"",OFFSET(InputPriceData!D$15,CalculationsAndCharts!$A161+$A$11,IF($C$5,8,0),1,1)) -> 101.790001 | F161: =IF(A161>$A$8,"",OFFSET(InputPriceData!E$15,CalculationsAndCharts!$A161+$A$11,IF($C$5,8,0),1,1)) -> 100.970001 | G161: =IF(A161>$A$8,"",OFFSET(InputPriceData!F$15,CalculationsAndCharts!$A161+$A$11,IF($C$5,8,0),1,1)) -> 101.129997 | J161: 11.46713698 | M161: -1.819192505 | N161: 13.28632948 | O161: -0.4678661194 | S161: 1.714164855 | BD161: 428400
A162: 130 | B162: =IF(A162>$A$8,"",OFFSET(InputPriceData!B$15,$A162+$A$11,0,1,1)) -> 2023-12-28 | C162: =IF(A162>$A$8,"",OFFSET(InputPriceData!G$15,CalculationsAndCharts!$A162+$A$11,IF($C$5,8,0),1,1)) -> 609800 | D162: =IF(A162>$A$8,"",OFFSET(InputPriceData!C$15,CalculationsAndCharts!$A162+$A$11,IF($C$5,8,0),1,1)) -> 101.43 | E162: =IF(A162>$A$8,"",OFFSET(InputPriceData!D$15,CalculationsAndCharts!$A162+$A$11,IF($C$5,8,0),1,1)) -> 101.809998 | F162: =IF(A162>$A$8,"",OFFSET(InputPriceData!E$15,CalculationsAndCharts!$A162+$A$11,IF($C$5,8,0),1,1)) -> 101.110001 | G162: =IF(A162>$A$8,"",OFFSET(InputPriceData!F$15,CalculationsAndCharts!$A162+$A$11,IF($C$5,8,0),1,1)) -> 101.330002 | J162: =$I$35*($G162-2*$G163+$G164)+$I$36*J163+$I$37*J164 -> 12.10494384 | M162: =L$35*($G162-2*$G163+$G164)+L$36*M163+L$37*M164 -> -1.254840625 | N162: =J162-M162 -> 13.35978446 | O162: =$L$39*(N162-N163) -> 0.5934180819 | S162: =R$35*($O162+$O163)/2+R$36*S163+R$37*S164 -> 2.402312632 | BD162: 609800
A163: 131 | B163: =IF(A163>$A$8,"",OFFSET(InputPriceData!B$15,$A163+$A$11,0,1,1)) -> 2023-12-27 | C163: =IF(A163>$A$8,"",OFFSET(InputPriceData!G$15,CalculationsAndCharts!$A163+$A$11,IF($C$5,8,0),1,1)) -> 739400 | D163: =IF(A163>$A$8,"",OFFSET(InputPriceData!C$15,CalculationsAndCharts!$A163+$A$11,IF($C$5,8,0),1,1)) -> 101.440002 | E163: =IF(A163>$A$8,"",OFFSET(InputPriceData!D$15,CalculationsAndCharts!$A163+$A$11,IF($C$5,8,0),1,1)) -> 102.07 | F163: =IF(A163>$A$8,"",OFFSET(InputPriceData!E$15,CalculationsAndCharts!$A163+$A$11,IF($C$5,8,0),1,1)) -> 101.32 | G163: =IF(A163>$A$8,"",OFFSET(InputPriceData!F$15,CalculationsAndCharts!$A163+$A$11,IF($C$5,8,0),1,1)) -> 101.599998 | J163: 12.82928935 | M163: -0.4373284711 | N163: 13.26661782 | O163: 1.901588074 | S163: 2.916645876 | BD163: 739400
A164: 132 | B164: =IF(A164>$A$8,"",OFFSET(InputPriceData!B$15,$A164+$A$11,0,1,1)) -> 2023-12-26 | C164: =IF(A164>$A$8,"",OFFSET(InputPriceData!G$15,CalculationsAndCharts!$A164+$A$11,IF($C$5,8,0),1,1)) -> 414200 | D164: =IF(A164>$A$8,"",OFFSET(InputPriceData!C$15,CalculationsAndCharts!$A164+$A$11,IF($C$5,8,0),1,1)) -> 100.980003 | E164: =IF(A164>$A$8,"",OFFSET(InputPriceData!D$15,CalculationsAndCharts!$A164+$A$11,IF($C$5,8,0),1,1)) -> 101.949997 | F164: =IF(A164>$A$8,"",OFFSET(InputPriceData!E$15,CalculationsAndCharts!$A164+$A$11,IF($C$5,8,0),1,1)) -> 100.910004 | G164: =IF(A164>$A$8,"",OFFSET(InputPriceData!F$15,CalculationsAndCharts!$A164+$A$11,IF($C$5,8,0),1,1)) -> 101.949997 | J164: 13.6530301 | M164: 0.6849616044 | N164: 12.96806849 | O164: 2.461620782 | S164: 3.332605657 | BC164: 414200
A165: 133 | B165: =IF(A165>$A$8,"",OFFSET(InputPriceData!B$15,$A165+$A$11,0,1,1)) -> 2023-12-22 | C165: =IF(A165>$A$8,"",OFFSET(InputPriceData!G$15,CalculationsAndCharts!$A165+$A$11,IF($C$5,8,0),1,1)) -> 779600 | D165: =IF(A165>$A$8,"",OFFSET(InputPriceData!C$15,CalculationsAndCharts!$A165+$A$11,IF($C$5,8,0),1,1)) -> 100.629997 | E165: =IF(A165>$A$8,"",OFFSET(InputPriceData!D$15,CalculationsAndCharts!$A165+$A$11,IF($C$5,8,0),1,1)) -> 101.220001 | F165: =IF(A165>$A$8,"",OFFSET(InputPriceData!E$15,CalculationsAndCharts!$A165+$A$11,IF($C$5,8,0),1,1)) -> 100.459999 | G165: =IF(A165>$A$8,"",OFFSET(InputPriceData!F$15,CalculationsAndCharts!$A165+$A$11,IF($C$5,8,0),1,1)) -> 100.779999 | J165: 12.95054813 | M165: 0.3689541001 | N165: 12.58159403 | O165: 2.472509585 | S165: 3.747944188 | BC165: 779600
A166: 134 | B166: =IF(A166>$A$8,"",OFFSET(InputPriceData!B$15,$A166+$A$11,0,1,1)) -> 2023-12-21 | C166: =IF(A166>$A$8,"",OFFSET(InputPriceData!G$15,CalculationsAndCharts!$A166+$A$11,IF($C$5,8,0),1,1)) -> 1015200 | D166: =IF(A166>$A$8,"",OFFSET(InputPriceData!C$15,CalculationsAndCharts!$A166+$A$11,IF($C$5,8,0),1,1)) -> 99.68 | E166: =IF(A166>$A$8,"",OFFSET(InputPriceData!D$15,CalculationsAndCharts!$A166+$A$11,IF($C$5,8,0),1,1)) -> 100.5 | F166: =IF(A166>$A$8,"",OFFSET(InputPriceData!E$15,CalculationsAndCharts!$A166+$A$11,IF($C$5,8,0),1,1)) -> 99.68 | G166: =IF(A166>$A$8,"",OFFSET(InputPriceData!F$15,CalculationsAndCharts!$A166+$A$11,IF($C$5,8,0),1,1)) -> 100.18 | J166: 12.79454601 | M166: 0.6011359874 | N166: 12.19341003 | O166: 2.436375654 | S166: 4.110434485 | BC166: 1015200
A167: 135 | B167: =IF(A167>$A$8,"",OFFSET(InputPriceData!B$15,$A167+$A$11,0,1,1)) -> 2023-12-20 | C167: =IF(A167>$A$8,"",OFFSET(InputPriceData!G$15,CalculationsAndCharts!$A167+$A$11,IF($C$5,8,0),1,1)) -> 971900 | D167: =IF(A167>$A$8,"",OFFSET(InputPriceData!C$15,CalculationsAndCharts!$A167+$A$11,IF($C$5,8,0),1,1)) -> 99.970001 | E167: =IF(A167>$A$8,"",OFFSET(InputPriceData!D$15,CalculationsAndCharts!$A167+$A$11,IF($C$5,8,0),1,1)) -> 100.839996 | F167: =IF(A167>$A$8,"",OFFSET(InputPriceData!E$15,CalculationsAndCharts!$A167+$A$11,IF($C$5,8,0),1,1)) -> 98.970001 | G167: =IF(A167>$A$8,"",OFFSET(InputPriceData!F$15,CalculationsAndCharts!$A167+$A$11,IF($C$5,8,0),1,1)) -> 98.970001 | J167: 12.00374025 | M167: 0.1928411966 | N167: 11.81089905 | O167: 3.426242212 | S167: 4.213243405 | BD167: 971900
A168: 136 | B168: =IF(A168>$A$8,"",OFFSET(InputPriceData!B$15,$A168+$A$11,0,1,1)) -> 2023-12-19 | C168: =IF(A168>$A$8,"",OFFSET(InputPriceData!G$15,CalculationsAndCharts!$A168+$A$11,IF($C$5,8,0),1,1)) -> 1194400 | D168: =IF(A168>$A$8,"",OFFSET(InputPriceData!C$15,CalculationsAndCharts!$A168+$A$11,IF($C$5,8,0),1,1)) -> 99.309998 | E168: =IF(A168>$A$8,"",OFFSET(InputPriceData!D$15,CalculationsAndCharts!$A168+$A$11,IF($C$5,8,0),1,1)) -> 100.190002 | F168: =IF(A168>$A$8,"",OFFSET(InputPriceData!E$15,CalculationsAndCharts!$A168+$A$11,IF($C$5,8,0),1,1)) -> 99.230003 | G168: =IF(A168>$A$8,"",OFFSET(InputPriceData!F$15,CalculationsAndCharts!$A168+$A$11,IF($C$5,8,0),1,1)) -> 100.029999 | J168: 13.48730264 | M168: 2.214323616 | N168: 11.27297902 | O168: 4.539366273 | S168: 3.920031771 | BC168: 1194400
A169: 137 | B169: =IF(A169>$A$8,"",OFFSET(InputPriceData!B$15,$A169+$A$11,0,1,1)) -> 2023-12-18 | C169: =IF(A169>$A$8,"",OFFSET(InputPriceData!G$15,CalculationsAndCharts!$A169+$A$11,IF($C$5,8,0),1,1)) -> 1299800 | D169: =IF(A169>$A$8,"",OFFSET(InputPriceData!C$15,CalculationsAndCharts!$A169+$A$11,IF($C$5,8,0),1,1)) -> 98.730003 | E169: =IF(A169>$A$8,"",OFFSET(InputPriceData!D$15,CalculationsAndCharts!$A169+$A$11,IF($C$5,8,0),1,1)) -> 99.360001 | F169: =IF(A169>$A$8,"",OFFSET(InputPriceData!E$15,CalculationsAndCharts!$A169+$A$11,IF($C$5,8,0),1,1)) -> 98.43 | G169: =IF(A169>$A$8,"",OFFSET(InputPriceData!F$15,CalculationsAndCharts!$A169+$A$11,IF($C$5,8,0),1,1)) -> 98.860001 | J169: 12.7458914 | M169: 2.185592881 | N169: 10.56029852 | O169: 4.631136052 | S169: 3.330165894 | BC169: 1299800
A170: 138 | B170: =IF(A170>$A$8,"",OFFSET(InputPriceData!B$15,$A170+$A$11,0,1,1)) -> 2023-12-15 | C170: =IF(A170>$A$8,"",OFFSET(InputPriceData!G$15,CalculationsAndCharts!$A170+$A$11,IF($C$5,8,0),1,1)) -> 1802300 | D170: =IF(A170>$A$8,"",OFFSET(InputPriceData!C$15,CalculationsAndCharts!$A170+$A$11,IF($C$5,8,0),1,1)) -> 97.849998 | E170: =IF(A170>$A$8,"",OFFSET(InputPriceData!D$15,CalculationsAndCharts!$A170+$A$11,IF($C$5,8,0),1,1)) -> 98.610001 | F170: =IF(A170>$A$8,"",OFFSET(InputPriceData!E$15,CalculationsAndCharts!$A170+$A$11,IF($C$5,8,0),1,1)) -> 97.540001 | G170: =IF(A170>$A$8,"",OFFSET(InputPriceData!F$15,CalculationsAndCharts!$A170+$A$11,IF($C$5,8,0),1,1)) -> 98.160004 | J170: 12.44789249 | M170: 2.614682338 | N170: 9.833210157 | O170: 5.066548319 | S170: 2.591505911 | BC170: 1802300
A171: 139 | B171: =IF(A171>$A$8,"",OFFSET(InputPriceData!B$15,$A171+$A$11,0,1,1)) -> 2023-12-14 | C171: =IF(A171>$A$8,"",OFFSET(InputPriceData!G$15,CalculationsAndCharts!$A171+$A$11,IF($C$5,8,0),1,1)) -> 1416100 | D171: =IF(A171>$A$8,"",OFFSET(InputPriceData!C$15,CalculationsAndCharts!$A171+$A$11,IF($C$5,8,0),1,1)) -> 95.949997 | E171: =IF(A171>$A$8,"",OFFSET(InputPriceData!D$15,CalculationsAndCharts!$A171+$A$11,IF($C$5,8,0),1,1)) -> 97.790001 | F171: =IF(A171>$A$8,"",OFFSET(InputPriceData!E$15,CalculationsAndCharts!$A171+$A$11,IF($C$5,8,0),1,1)) -> 95.879997 | G171: =IF(A171>$A$8,"",OFFSET(InputPriceData!F$15,CalculationsAndCharts!$A171+$A$11,IF($C$5,8,0),1,1)) -> 97.610001 | J171: 12.2837947 | M171: 3.246032629 | N171: 9.037762071 | O171: 4.462748562 | S171: 1.938639832 | BC171: 1416100
A172: 140 | B172: =IF(A172>$A$8,"",OFFSET(InputPriceData!B$15,$A172+$A$11,0,1,1)) -> 2023-12-13 | C172: =IF(A172>$A$8,"",OFFSET(InputPriceData!G$15,CalculationsAndCharts!$A172+$A$11,IF($C$5,8,0),1,1)) -> 1077700 | D172: =IF(A172>$A$8,"",OFFSET(InputPriceData!C$15,CalculationsAndCharts!$A172+$A$11,IF($C$5,8,0),1,1)) -> 92.709999 | E172: =IF(A172>$A$8,"",OFFSET(InputPriceData!D$15,CalculationsAndCharts!$A172+$A$11,IF($C$5,8,0),1,1)) -> 95.339996 | F172: =IF(A172>$A$8,"",OFFSET(InputPriceData!E$15,CalculationsAndCharts!$A172+$A$11,IF($C$5,8,0),1,1)) -> 91.989998 | G172: =IF(A172>$A$8,"",OFFSET(InputPriceData!F$15,CalculationsAndCharts!$A172+$A$11,IF($C$5,8,0),1,1)) -> 95.290001 | J172: 10.30413565 | M172: 1.967025107 | N172: 8.337110547 | O172: 2.196558509 | S172: 1.691352078 | BC172: 1077700
A173: 141 | B173: =IF(A173>$A$8,"",OFFSET(InputPriceData!B$15,$A173+$A$11,0,1,1)) -> 2023-12-12 | C173: =IF(A173>$A$8,"",OFFSET(InputPriceData!G$15,CalculationsAndCharts!$A173+$A$11,IF($C$5,8,0),1,1)) -> 595200 | D173: =IF(A173>$A$8,"",OFFSET(InputPriceData!C$15,CalculationsAndCharts!$A173+$A$11,IF($C$5,8,0),1,1)) -> 92.470001 | E173: =IF(A173>$A$8,"",OFFSET(InputPriceData!D$15,CalculationsAndCharts!$A173+$A$11,IF($C$5,8,0),1,1)) -> 92.470001 | F173: =IF(A173>$A$8,"",OFFSET(InputPriceData!E$15,CalculationsAndCharts!$A173+$A$11,IF($C$5,8,0),1,1)) -> 91.779999 | G173: =IF(A173>$A$8,"",OFFSET(InputPriceData!F$15,CalculationsAndCharts!$A173+$A$11,IF($C$5,8,0),1,1)) -> 92.349998 | J173: 7.615117521 | M173: -0.3771333401 | N173: 7.992250861 | O173: 1.133762942 | S173: 1.823068205 | BC173: =IF(G173>=G174,C173,NA()) ->  | BD173: =IF(G173<G174,C173,NA()) -> 595200
A174: 142 | B174: =IF(A174>$A$8,"",OFFSET(InputPriceData!B$15,$A174+$A$11,0,1,1)) -> 2023-12-11 | C174: =IF(A174>$A$8,"",OFFSET(InputPriceData!G$15,CalculationsAndCharts!$A174+$A$11,IF($C$5,8,0),1,1)) -> 514600 | D174: =IF(A174>$A$8,"",OFFSET(InputPriceData!C$15,CalculationsAndCharts!$A174+$A$11,IF($C$5,8,0),1,1)) -> 92.110001 | E174: =IF(A174>$A$8,"",OFFSET(InputPriceData!D$15,CalculationsAndCharts!$A174+$A$11,IF($C$5,8,0),1,1)) -> 92.540001 | F174: =IF(A174>$A$8,"",OFFSET(InputPriceData!E$15,CalculationsAndCharts!$A174+$A$11,IF($C$5,8,0),1,1)) -> 91.769997 | G174: =IF(A174>$A$8,"",OFFSET(InputPriceData!F$15,CalculationsAndCharts!$A174+$A$11,IF($C$5,8,0),1,1)) -> 92.459999 | J174: 7.928608113 | M174: 0.114358034 | N174: 7.814250079 | O174: 1.605244848 | S174: 2.036568305 | BC174: 514600
A175: 143 | B175: =IF(A175>$A$8,"",OFFSET(InputPriceData!B$15,$A175+$A$11,0,1,1)) -> 2023-12-08 | C175: =IF(A175>$A$8,"",OFFSET(InputPriceData!G$15,CalculationsAndCharts!$A175+$A$11,IF($C$5,8,0),1,1)) -> 560600 | D175: =IF(A175>$A$8,"",OFFSET(InputPriceData!C$15,CalculationsAndCharts!$A175+$A$11,IF($C$5,8,0),1,1)) -> 91.550003 | E175: =IF(A175>$A$8,"",OFFSET(InputPriceData!D$15,CalculationsAndCharts!$A175+$A$11,IF($C$5,8,0),1,1)) -> 92.470001 | F175: =IF(A175>$A$8,"",OFFSET(InputPriceData!E$15,CalculationsAndCharts!$A175+$A$11,IF($C$5,8,0),1,1)) -> 91.43 | G175: =IF(A175>$A$8,"",OFFSET(InputPriceData!F$15,CalculationsAndCharts!$A175+$A$11,IF($C$5,8,0),1,1)) -> 92.18 | J175: 7.851351589 | M175: 0.289124951 | N175: 7.562226638 | O175: 1.57696953 | S175: 2.219472158 | BC175: 560600
A176: 144 | B176: =IF(A176>$A$8,"",OFFSET(InputPriceData!B$15,$A176+$A$11,0,1,1)) -> 2023-12-07 | C176: =IF(A176>$A$8,"",OFFSET(InputPriceData!G$15,CalculationsAndCharts!$A176+$A$11,IF($C$5,8,0),1,1)) -> 609800 | D176: =IF(A176>$A$8,"",OFFSET(InputPriceData!C$15,CalculationsAndCharts!$A176+$A$11,IF($C$5,8,0),1,1)) -> 91.239998 | E176: =IF(A176>$A$8,"",OFFSET(InputPriceData!D$15,CalculationsAndCharts!$A176+$A$11,IF($C$5,8,0),1,1)) -> 91.540001 | F176: =IF(A176>$A$8,"",OFFSET(InputPriceData!E$15,CalculationsAndCharts!$A176+$A$11,IF($C$5,8,0),1,1)) -> 90.709999 | G176: =IF(A176>$A$8,"",OFFSET(InputPriceData!F$15,CalculationsAndCharts!$A176+$A$11,IF($C$5,8,0),1,1)) -> 91.419998 | J176: 7.277645121 | M176: -0.03699730064 | N176: 7.314642422 | O176: 1.501449754 | S176: 2.353583612 | BC176: 609800
A177: 145 | B177: =IF(A177>$A$8,"",OFFSET(InputPriceData!B$15,$A177+$A$11,0,1,1)) -> 2023-12-06 | C177: =IF(A177>$A$8,"",OFFSET(InputPriceData!G$15,CalculationsAndCharts!$A177+$A$11,IF($C$5,8,0),1,1)) -> 825200 | D177: =IF(A177>$A$8,"",OFFSET(InputPriceData!C$15,CalculationsAndCharts!$A177+$A$11,IF($C$5,8,0),1,1)) -> 91.779999 | E177: =IF(A177>$A$8,"",OFFSET(InputPriceData!D$15,CalculationsAndCharts!$A177+$A$11,IF($C$5,8,0),1,1)) -> 92.550003 | F177: =IF(A177>$A$8,"",OFFSET(InputPriceData!E$15,CalculationsAndCharts!$A177+$A$11,IF($C$5,8,0),1,1)) -> 91.050003 | G177: =IF(A177>$A$8,"",OFFSET(InputPriceData!F$15,CalculationsAndCharts!$A177+$A$11,IF($C$5,8,0),1,1)) -> 91.089996 | J177: 7.116214777 | M177: 0.03729996645 | N177: 7.07891481 | O177: 1.976910844 | S177: 2.311568782 | BD177: 825200
A178: 146 | B178: =IF(A178>$A$8,"",OFFSET(InputPriceData!B$15,$A178+$A$11,0,1,1)) -> 2023-12-05 | C178: =IF(A178>$A$8,"",OFFSET(InputPriceData!G$15,CalculationsAndCharts!$A178+$A$11,IF($C$5,8,0),1,1)) -> 1134300 | D178: =IF(A178>$A$8,"",OFFSET(InputPriceData!C$15,CalculationsAndCharts!$A178+$A$11,IF($C$5,8,0),1,1)) -> 90.739998 | E178: =IF(A178>$A$8,"",OFFSET(InputPriceData!D$15,CalculationsAndCharts!$A178+$A$11,IF($C$5,8,0),1,1)) -> 91.769997 | F178: =IF(A178>$A$8,"",OFFSET(InputPriceData!E$15,CalculationsAndCharts!$A178+$A$11,IF($C$5,8,0),1,1)) -> 90.739998 | G178: =IF(A178>$A$8,"",OFFSET(InputPriceData!F$15,CalculationsAndCharts!$A178+$A$11,IF($C$5,8,0),1,1)) -> 91.230003 | J178: 7.422805381 | M178: 0.6542655736 | N178: 6.768539808 | O178: 2.570905482 | S178: 1.996307491 | BC178: 1134300
A179: 147 | B179: =IF(A179>$A$8,"",OFFSET(InputPriceData!B$15,$A179+$A$11,0,1,1)) -> 2023-12-04 | C179: =IF(A179>$A$8,"",OFFSET(InputPriceData!G$15,CalculationsAndCharts!$A179+$A$11,IF($C$5,8,0),1,1)) -> 3120100 | D179: =IF(A179>$A$8,"",OFFSET(InputPriceData!C$15,CalculationsAndCharts!$A179+$A$11,IF($C$5,8,0),1,1)) -> 90.260002 | E179: =IF(A179>$A$8,"",OFFSET(InputPriceData!D$15,CalculationsAndCharts!$A179+$A$11,IF($C$5,8,0),1,1)) -> 91.230003 | F179: =IF(A179>$A$8,"",OFFSET(InputPriceData!E$15,CalculationsAndCharts!$A179+$A$11,IF($C$5,8,0),1,1)) -> 90.209999 | G179: =IF(A179>$A$8,"",OFFSET(InputPriceData!F$15,CalculationsAndCharts!$A179+$A$11,IF($C$5,8,0),1,1)) -> 91.010002 | J179: 7.369254059 | M179: 1.004346412 | N179: 6.364907647 | O179: 3.181856365 | S179: 1.445470569 | BD179: 3120100
A180: 148 | B180: =IF(A180>$A$8,"",OFFSET(InputPriceData!B$15,$A180+$A$11,0,1,1)) -> 2023-12-01 | C180: =IF(A180>$A$8,"",OFFSET(InputPriceData!G$15,CalculationsAndCharts!$A180+$A$11,IF($C$5,8,0),1,1)) -> 1660300 | D180: =IF(A180>$A$8,"",OFFSET(InputPriceData!C$15,CalculationsAndCharts!$A180+$A$11,IF($C$5,8,0),1,1)) -> 90.269997 | E180: =IF(A180>$A$8,"",OFFSET(InputPriceData!D$15,CalculationsAndCharts!$A180+$A$11,IF($C$5,8,0),1,1)) -> 91.209999 | F180: =IF(A180>$A$8,"",OFFSET(InputPriceData!E$15,CalculationsAndCharts!$A180+$A$11,IF($C$5,8,0),1,1)) -> 89.849998 | G180: =IF(A180>$A$8,"",OFFSET(InputPriceData!F$15,CalculationsAndCharts!$A180+$A$11,IF($C$5,8,0),1,1)) -> 91.089996 | J180: 7.614401792 | M180: 1.749045594 | N180: 5.865356198 | O180: 3.541012546 | S180: 0.8584240111 | BC180: 1660300
A181: 149 | B181: =IF(A181>$A$8,"",OFFSET(InputPriceData!B$15,$A181+$A$11,0,1,1)) -> 2023-11-30 | C181: =IF(A181>$A$8,"",OFFSET(InputPriceData!G$15,CalculationsAndCharts!$A181+$A$11,IF($C$5,8,0),1,1)) -> 1946000 | D181: =IF(A181>$A$8,"",OFFSET(InputPriceData!C$15,CalculationsAndCharts!$A181+$A$11,IF($C$5,8,0),1,1)) -> 88.599998 | E181: =IF(A181>$A$8,"",OFFSET(InputPriceData!D$15,CalculationsAndCharts!$A181+$A$11,IF($C$5,8,0),1,1)) -> 90.540001 | F181: =IF(A181>$A$8,"",OFFSET(InputPriceData!E$15,CalculationsAndCharts!$A181+$A$11,IF($C$5,8,0),1,1)) -> 88.489998 | G181: =IF(A181>$A$8,"",OFFSET(InputPriceData!F$15,CalculationsAndCharts!$A181+$A$11,IF($C$5,8,0),1,1)) -> 90.400002 | J181: 7.079731661 | M181: 1.770314433 | N181: 5.309417228 | O181: 1.907190237 | S181: 0.6209495876 | BC181: 1946000
A182: 150 | B182: =IF(A182>$A$8,"",OFFSET(InputPriceData!B$15,$A182+$A$11,0,1,1)) -> 2023-11-29 | C182: =IF(A182>$A$8,"",OFFSET(InputPriceData!G$15,CalculationsAndCharts!$A182+$A$11,IF($C$5,8,0),1,1)) -> 1294500 | D182: =IF(A182>$A$8,"",OFFSET(InputPriceData!C$15,CalculationsAndCharts!$A182+$A$11,IF($C$5,8,0),1,1)) -> 86.620003 | E182: =IF(A182>$A$8,"",OFFSET(InputPriceData!D$15,CalculationsAndCharts!$A182+$A$11,IF($C$5,8,0),1,1)) -> 87.720001 | F182: =IF(A182>$A$8,"",OFFSET(InputPriceData!E$15,CalculationsAndCharts!$A182+$A$11,IF($C$5,8,0),1,1)) -> 86.360001 | G182: =IF(A182>$A$8,"",OFFSET(InputPriceData!F$15,CalculationsAndCharts!$A182+$A$11,IF($C$5,8,0),1,1)) -> 87.330002 | J182: 4.09849425 | M182: -0.9114941108 | N182: 5.009988361 | O182: -0.1079913256 | S182: 0.9577303533 | BC182: 1294500
A183: 151 | B183: =IF(A183>$A$8,"",OFFSET(InputPriceData!B$15,$A183+$A$11,0,1,1)) -> 2023-11-28 | C183: =IF(A183>$A$8,"",OFFSET(InputPriceData!G$15,CalculationsAndCharts!$A183+$A$11,IF($C$5,8,0),1,1)) -> 1485400 | D183: =IF(A183>$A$8,"",OFFSET(InputPriceData!C$15,CalculationsAndCharts!$A183+$A$11,IF($C$5,8,0),1,1)) -> 86.099998 | E183: =IF(A183>$A$8,"",OFFSET(InputPriceData!D$15,CalculationsAndCharts!$A183+$A$11,IF($C$5,8,0),1,1)) -> 86.550003 | F183: =IF(A183>$A$8,"",OFFSET(InputPriceData!E$15,CalculationsAndCharts!$A183+$A$11,IF($C$5,8,0),1,1)) -> 85.019997 | G183: =IF(A183>$A$8,"",OFFSET(InputPriceData!F$15,CalculationsAndCharts!$A183+$A$11,IF($C$5,8,0),1,1)) -> 86.419998 | J183: 3.205490706 | M183: -1.821452293 | N183: 5.026942999 | O183: -0.2183207108 | S183: 1.640790075 | BD183: 1485400
A184: 152 | B184: =IF(A184>$A$8,"",OFFSET(InputPriceData!B$15,$A184+$A$11,0,1,1)) -> 2023-11-27 | C184: =IF(A184>$A$8,"",OFFSET(InputPriceData!G$15,CalculationsAndCharts!$A184+$A$11,IF($C$5,8,0),1,1)) -> 730600 | D184: =IF(A184>$A$8,"",OFFSET(InputPriceData!C$15,CalculationsAndCharts!$A184+$A$11,IF($C$5,8,0),1,1)) -> 87.150002 | E184: =IF(A184>$A$8,"",OFFSET(InputPriceData!D$15,CalculationsAndCharts!$A184+$A$11,IF($C$5,8,0),1,1)) -> 87.150002 | F184: =IF(A184>$A$8,"",OFFSET(InputPriceData!E$15,CalculationsAndCharts!$A184+$A$11,IF($C$5,8,0),1,1)) -> 86.480003 | G184: =IF(A184>$A$8,"",OFFSET(InputPriceData!F$15,CalculationsAndCharts!$A184+$A$11,IF($C$5,8,0),1,1)) -> 86.760002 | J184: 3.550538509 | M184: -1.510680841 | N184: 5.06121935 | O184: 0.8102444804 | S184: 2.357019364 | BD184: 730600
A185: 153 | B185: =IF(A185>$A$8,"",OFFSET(InputPriceData!B$15,$A185+$A$11,0,1,1)) -> 2023-11-24 | C185: =IF(A185>$A$8,"",OFFSET(InputPriceData!G$15,CalculationsAndCharts!$A185+$A$11,IF($C$5,8,0),1,1)) -> 400100 | D185: =IF(A185>$A$8,"",OFFSET(InputPriceData!C$15,CalculationsAndCharts!$A185+$A$11,IF($C$5,8,0),1,1)) -> 86.989998 | E185: =IF(A185>$A$8,"",OFFSET(InputPriceData!D$15,CalculationsAndCharts!$A185+$A$11,IF($C$5,8,0),1,1)) -> 87.739998 | F185: =IF(A185>$A$8,"",OFFSET(InputPriceData!E$15,CalculationsAndCharts!$A185+$A$11,IF($C$5,8,0),1,1)) -> 86.629997 | G185: =IF(A185>$A$8,"",OFFSET(InputPriceData!F$15,CalculationsAndCharts!$A185+$A$11,IF($C$5,8,0),1,1)) -> 87.629997 | J185: 4.445279271 | M185: -0.4887316956 | N185: 4.934010967 | O185: 1.30626913 | S185: 3.040753619 | BC185: 400100
A186: 154 | B186: =IF(A186>$A$8,"",OFFSET(InputPriceData!B$15,$A186+$A$11,0,1,1)) -> 2023-11-22 | C186: =IF(A186>$A$8,"",OFFSET(InputPriceData!G$15,CalculationsAndCharts!$A186+$A$11,IF($C$5,8,0),1,1)) -> 1407600 | D186: =IF(A186>$A$8,"",OFFSET(InputPriceData!C$15,CalculationsAndCharts!$A186+$A$11,IF($C$5,8,0),1,1)) -> 87.419998 | E186: =IF(A186>$A$8,"",OFFSET(InputPriceData!D$15,CalculationsAndCharts!$A186+$A$11,IF($C$5,8,0),1,1)) -> 87.470001 | F186: =IF(A186>$A$8,"",OFFSET(InputPriceData!E$15,CalculationsAndCharts!$A186+$A$11,IF($C$5,8,0),1,1)) -> 86.529999 | G186: =IF(A186>$A$8,"",OFFSET(InputPriceData!F$15,CalculationsAndCharts!$A186+$A$11,IF($C$5,8,0),1,1)) -> 86.889999 | J186: 3.730675048 | M186: -0.9982516653 | N186: 4.728926714 | O186: 1.672160449 | S186: 3.687534323 | BD186: 1407600
A187: 155 | B187: =IF(A187>$A$8,"",OFFSET(InputPriceData!B$15,$A187+$A$11,0,1,1)) -> 2023-11-21 | C187: =IF(A187>$A$8,"",OFFSET(InputPriceData!G$15,CalculationsAndCharts!$A187+$A$11,IF($C$5,8,0),1,1)) -> 946800 | D187: =IF(A187>$A$8,"",OFFSET(InputPriceData!C$15,CalculationsAndCharts!$A187+$A$11,IF($C$5,8,0),1,1)) -> 87.779999 | E187: =IF(A187>$A$8,"",OFFSET(InputPriceData!D$15,CalculationsAndCharts!$A187+$A$11,IF($C$5,8,0),1,1)) -> 88.360001 | F187: =IF(A187>$A$8,"",OFFSET(InputPriceData!E$15,CalculationsAndCharts!$A187+$A$11,IF($C$5,8,0),1,1)) -> 87.309998 | G187: =IF(A187>$A$8,"",OFFSET(InputPriceData!F$15,CalculationsAndCharts!$A187+$A$11,IF($C$5,8,0),1,1)) -> 87.440002 | J187: 4.300948473 | M187: -0.1654490501 | N187: 4.466397523 | O187: 2.80524454 | S187: 4.171178926 | BD187: 946800
A188: 156 | B188: =IF(A188>$A$8,"",OFFSET(InputPriceData!B$15,$A188+$A$11,0,1,1)) -> 2023-11-20 | C188: =IF(A188>$A$8,"",OFFSET(InputPriceData!G$15,CalculationsAndCharts!$A188+$A$11,IF($C$5,8,0),1,1)) -> 809500 | D188: =IF(A188>$A$8,"",OFFSET(InputPriceData!C$15,CalculationsAndCharts!$A188+$A$11,IF($C$5,8,0),1,1)) -> 87.699997 | E188: =IF(A188>$A$8,"",OFFSET(InputPriceData!D$15,CalculationsAndCharts!$A188+$A$11,IF($C$5,8,0),1,1)) -> 88.25 | F188: =IF(A188>$A$8,"",OFFSET(InputPriceData!E$15,CalculationsAndCharts!$A188+$A$11,IF($C$5,8,0),1,1)) -> 87.379997 | G188: =IF(A188>$A$8,"",OFFSET(InputPriceData!F$15,CalculationsAndCharts!$A188+$A$11,IF($C$5,8,0),1,1)) -> 87.830002 | J188: 4.72621645 | M188: 0.7002423198 | N188: 4.02597413 | O188: 3.835558491 | S188: 4.418282243 | BD188: 809500
A189: 157 | B189: =IF(A189>$A$8,"",OFFSET(InputPriceData!B$15,$A189+$A$11,0,1,1)) -> 2023-11-17 | C189: =IF(A189>$A$8,"",OFFSET(InputPriceData!G$15,CalculationsAndCharts!$A189+$A$11,IF($C$5,8,0),1,1)) -> 884600 | D189: =IF(A189>$A$8,"",OFFSET(InputPriceData!C$15,CalculationsAndCharts!$A189+$A$11,IF($C$5,8,0),1,1)) -> 87.589996 | E189: =IF(A189>$A$8,"",OFFSET(InputPriceData!D$15,CalculationsAndCharts!$A189+$A$11,IF($C$5,8,0),1,1)) -> 88.269997 | F189: =IF(A189>$A$8,"",OFFSET(InputPriceData!E$15,CalculationsAndCharts!$A189+$A$11,IF($C$5,8,0),1,1)) -> 87.5 | G189: =IF(A189>$A$8,"",OFFSET(InputPriceData!F$15,CalculationsAndCharts!$A189+$A$11,IF($C$5,8,0),1,1)) -> 88 | J189: 4.939885163 | M189: 1.516093715 | N189: 3.423791447 | O189: 4.097371095 | S189: 4.500660603 | BC189: 884600
A190: 158 | B190: =IF(A190>$A$8,"",OFFSET(InputPriceData!B$15,$A190+$A$11,0,1,1)) -> 2023-11-16 | C190: =IF(A190>$A$8,"",OFFSET(InputPriceData!G$15,CalculationsAndCharts!$A190+$A$11,IF($C$5,8,0),1,1)) -> 1006300 | D190: =IF(A190>$A$8,"",OFFSET(InputPriceData!C$15,CalculationsAndCharts!$A190+$A$11,IF($C$5,8,0),1,1)) -> 87.279999 | E190: =IF(A190>$A$8,"",OFFSET(InputPriceData!D$15,CalculationsAndCharts!$A190+$A$11,IF($C$5,8,0),1,1)) -> 87.510002 | F190: =IF(A190>$A$8,"",OFFSET(InputPriceData!E$15,CalculationsAndCharts!$A190+$A$11,IF($C$5,8,0),1,1)) -> 86.75 | G190: =IF(A190>$A$8,"",OFFSET(InputPriceData!F$15,CalculationsAndCharts!$A190+$A$11,IF($C$5,8,0),1,1)) -> 87.010002 | J190: 3.977316413 | M190: 1.196812227 | N190: 2.780504185 | O190: 4.627589013 | S190: 4.461373229 | BD190: 1006300
A191: 159 | B191: =IF(A191>$A$8,"",OFFSET(InputPriceData!B$15,$A191+$A$11,0,1,1)) -> 2023-11-15 | C191: =IF(A191>$A$8,"",OFFSET(InputPriceData!G$15,CalculationsAndCharts!$A191+$A$11,IF($C$5,8,0),1,1)) -> 1047400 | D191: =IF(A191>$A$8,"",OFFSET(InputPriceData!C$15,CalculationsAndCharts!$A191+$A$11,IF($C$5,8,0),1,1)) -> 87.459999 | E191: =IF(A191>$A$8,"",OFFSET(InputPriceData!D$15,CalculationsAndCharts!$A191+$A$11,IF($C$5,8,0),1,1)) -> 88.120003 | F191: =IF(A191>$A$8,"",OFFSET(InputPriceData!E$15,CalculationsAndCharts!$A191+$A$11,IF($C$5,8,0),1,1)) -> 87.110001 | G191: =IF(A191>$A$8,"",OFFSET(InputPriceData!F$15,CalculationsAndCharts!$A191+$A$11,IF($C$5,8,0),1,1)) -> 87.610001 | J191: 4.595870459 | M191: 2.541897749 | N191: 2.05397271 | O191: 5.433956621 | S191: 4.339750571 | BC191: 1047400
A192: 160 | B192: =IF(A192>$A$8,"",OFFSET(InputPriceData!B$15,$A192+$A$11,0,1,1)) -> 2023-11-14 | C192: =IF(A192>$A$8,"",OFFSET(InputPriceData!G$15,CalculationsAndCharts!$A192+$A$11,IF($C$5,8,0),1,1)) -> 1175800 | D192: =IF(A192>$A$8,"",OFFSET(InputPriceData!C$15,CalculationsAndCharts!$A192+$A$11,IF($C$5,8,0),1,1)) -> 85.82 | E192: =IF(A192>$A$8,"",OFFSET(InputPriceData!D$15,CalculationsAndCharts!$A192+$A$11,IF($C$5,8,0),1,1)) -> 87.230003 | F192: =IF(A192>$A$8,"",OFFSET(InputPriceData!E$15,CalculationsAndCharts!$A192+$A$11,IF($C$5,8,0),1,1)) -> 85.669998 | G192: =IF(A192>$A$8,"",OFFSET(InputPriceData!F$15,CalculationsAndCharts!$A192+$A$11,IF($C$5,8,0),1,1)) -> 87.019997 | J192: 4.022510633 | M192: 2.821669112 | N192: 1.200841521 | O192: 4.420874804 | S192: 4.358995139 | BC192: 1175800
A193: 161 | B193: =IF(A193>$A$8,"",OFFSET(InputPriceData!B$15,$A193+$A$11,0,1,1)) -> 2023-11-13 | C193: =IF(A193>$A$8,"",OFFSET(InputPriceData!G$15,CalculationsAndCharts!$A193+$A$11,IF($C$5,8,0),1,1)) -> 761900 | D193: =IF(A193>$A$8,"",OFFSET(InputPriceData!C$15,CalculationsAndCharts!$A193+$A$11,IF($C$5,8,0),1,1)) -> 84.480003 | E193: =IF(A193>$A$8,"",OFFSET(InputPriceData!D$15,CalculationsAndCharts!$A193+$A$11,IF($C$5,8,0),1,1)) -> 85.220001 | F193: =IF(A193>$A$8,"",OFFSET(InputPriceData!E$15,CalculationsAndCharts!$A193+$A$11,IF($C$5,8,0),1,1)) -> 84.279999 | G193: =IF(A193>$A$8,"",OFFSET(InputPriceData!F$15,CalculationsAndCharts!$A193+$A$11,IF($C$5,8,0),1,1)) -> 84.68 | J193: 1.644456653 | M193: 1.137692477 | N193: 0.5067641768 | O193: 3.57269289 | S193: 4.624939085 | BC193: 761900
A194: 162 | B194: =IF(A194>$A$8,"",OFFSET(InputPriceData!B$15,$A194+$A$11,0,1,1)) -> 2023-11-10 | C194: =IF(A194>$A$8,"",OFFSET(InputPriceData!G$15,CalculationsAndCharts!$A194+$A$11,IF($C$5,8,0),1,1)) -> 661800 | D194: =IF(A194>$A$8,"",OFFSET(InputPriceData!C$15,CalculationsAndCharts!$A194+$A$11,IF($C$5,8,0),1,1)) -> 84.440002 | E194: =IF(A194>$A$8,"",OFFSET(InputPriceData!D$15,CalculationsAndCharts!$A194+$A$11,IF($C$5,8,0),1,1)) -> 84.800003 | F194: =IF(A194>$A$8,"",OFFSET(InputPriceData!E$15,CalculationsAndCharts!$A194+$A$11,IF($C$5,8,0),1,1)) -> 83.57 | G194: =IF(A194>$A$8,"",OFFSET(InputPriceData!F$15,CalculationsAndCharts!$A194+$A$11,IF($C$5,8,0),1,1)) -> 84.650002 | J194: 1.530727351 | M194: 1.584875958 | N194: -0.0541486069 | O194: 3.75001744 | S194: 4.933244522 | BC194: 661800
A195: 163 | B195: =IF(A195>$A$8,"",OFFSET(InputPriceData!B$15,$A195+$A$11,0,1,1)) -> 2023-11-09 | C195: =IF(A195>$A$8,"",OFFSET(InputPriceData!G$15,CalculationsAndCharts!$A195+$A$11,IF($C$5,8,0),1,1)) -> 802500 | D195: =IF(A195>$A$8,"",OFFSET(InputPriceData!C$15,CalculationsAndCharts!$A195+$A$11,IF($C$5,8,0),1,1)) -> 84.260002 | E195: =IF(A195>$A$8,"",OFFSET(InputPriceData!D$15,CalculationsAndCharts!$A195+$A$11,IF($C$5,8,0),1,1)) -> 85.290001 | F195: =IF(A195>$A$8,"",OFFSET(InputPriceData!E$15,CalculationsAndCharts!$A195+$A$11,IF($C$5,8,0),1,1)) -> 84.089996 | G195: =IF(A195>$A$8,"",OFFSET(InputPriceData!F$15,CalculationsAndCharts!$A195+$A$11,IF($C$5,8,0),1,1)) -> 84.169998 | J195: 0.953826215 | M195: 1.59672756 | N195: -0.642901345 | O195: 3.872559239 | S195: 5.07488557 | BC195: 802500
A196: 164 | B196: =IF(A196>$A$8,"",OFFSET(InputPriceData!B$15,$A196+$A$11,0,1,1)) -> 2023-11-08 | C196: =IF(A196>$A$8,"",OFFSET(InputPriceData!G$15,CalculationsAndCharts!$A196+$A$11,IF($C$5,8,0),1,1)) -> 678100 | D196: =IF(A196>$A$8,"",OFFSET(InputPriceData!C$15,CalculationsAndCharts!$A196+$A$11,IF($C$5,8,0),1,1)) -> 83.900002 | E196: =IF(A196>$A$8,"",OFFSET(InputPriceData!D$15,CalculationsAndCharts!$A196+$A$11,IF($C$5,8,0),1,1)) -> 84.379997 | F196: =IF(A196>$A$8,"",OFFSET(InputPriceData!E$15,CalculationsAndCharts!$A196+$A$11,IF($C$5,8,0),1,1)) -> 83.599998 | G196: =IF(A196>$A$8,"",OFFSET(InputPriceData!F$15,CalculationsAndCharts!$A196+$A$11,IF($C$5,8,0),1,1)) -> 84.080002 | J196: 0.7524415208 | M196: 2.003334666 | N196: -1.250893145 | O196: 4.296864768 | S196: 4.870371182 | BD196: 678100
A197: 165 | B197: =IF(A197>$A$8,"",OFFSET(InputPriceData!B$15,$A197+$A$11,0,1,1)) -> 2023-11-07 | C197: =IF(A197>$A$8,"",OFFSET(InputPriceData!G$15,CalculationsAndCharts!$A197+$A$11,IF($C$5,8,0),1,1)) -> 574200 | D197: =IF(A197>$A$8,"",OFFSET(InputPriceData!C$15,CalculationsAndCharts!$A197+$A$11,IF($C$5,8,0),1,1)) -> 84.379997 | E197: =IF(A197>$A$8,"",OFFSET(InputPriceData!D$15,CalculationsAndCharts!$A197+$A$11,IF($C$5,8,0),1,1)) -> 84.379997 | F197: =IF(A197>$A$8,"",OFFSET(InputPriceData!E$15,CalculationsAndCharts!$A197+$A$11,IF($C$5,8,0),1,1)) -> 83.800003 | G197: =IF(A197>$A$8,"",OFFSET(InputPriceData!F$15,CalculationsAndCharts!$A197+$A$11,IF($C$5,8,0),1,1)) -> 84.120003 | J197: 0.6756152753 | M197: 2.601116189 | N197: -1.925500914 | O197: 5.270442426 | S197: 4.129753438 | BD197: 574200
A198: 166 | B198: =IF(A198>$A$8,"",OFFSET(InputPriceData!B$15,$A198+$A$11,0,1,1)) -> 2023-11-06 | C198: =IF(A198>$A$8,"",OFFSET(InputPriceData!G$15,CalculationsAndCharts!$A198+$A$11,IF($C$5,8,0),1,1)) -> 830700 | D198: =IF(A198>$A$8,"",OFFSET(InputPriceData!C$15,CalculationsAndCharts!$A198+$A$11,IF($C$5,8,0),1,1)) -> 85.540001 | E198: =IF(A198>$A$8,"",OFFSET(InputPriceData!D$15,CalculationsAndCharts!$A198+$A$11,IF($C$5,8,0),1,1)) -> 85.720001 | F198: =IF(A198>$A$8,"",OFFSET(InputPriceData!E$15,CalculationsAndCharts!$A198+$A$11,IF($C$5,8,0),1,1)) -> 84.559998 | G198: =IF(A198>$A$8,"",OFFSET(InputPriceData!F$15,CalculationsAndCharts!$A198+$A$11,IF($C$5,8,0),1,1)) -> 84.889999 | J198: 1.338657535 | M198: 4.09161791 | N198: -2.752960375 | O198: 6.271442896 | S198: 2.836413697 | BC198: 830700
A199: 167 | B199: =IF(A199>$A$8,"",OFFSET(InputPriceData!B$15,$A199+$A$11,0,1,1)) -> 2023-11-03 | C199: =IF(A199>$A$8,"",OFFSET(InputPriceData!G$15,CalculationsAndCharts!$A199+$A$11,IF($C$5,8,0),1,1)) -> 2507900 | D199: =IF(A199>$A$8,"",OFFSET(InputPriceData!C$15,CalculationsAndCharts!$A199+$A$11,IF($C$5,8,0),1,1)) -> 84.339996 | E199: =IF(A199>$A$8,"",OFFSET(InputPriceData!D$15,CalculationsAndCharts!$A199+$A$11,IF($C$5,8,0),1,1)) -> 85.129997 | F199: =IF(A199>$A$8,"",OFFSET(InputPriceData!E$15,CalculationsAndCharts!$A199+$A$11,IF($C$5,8,0),1,1)) -> 84.139999 | G199: =IF(A199>$A$8,"",OFFSET(InputPriceData!F$15,CalculationsAndCharts!$A199+$A$11,IF($C$5,8,0),1,1)) -> 84.879997 | J199: 1.230844474 | M199: 4.968421384 | N199: -3.73757691 | O199: 5.987494529 | S199: 1.289309662 | BC199: 2507900
A200: 168 | B200: =IF(A200>$A$8,"",OFFSET(InputPriceData!B$15,$A200+$A$11,0,1,1)) -> 2023-11-02 | C200: =IF(A200>$A$8,"",OFFSET(InputPriceData!G$15,CalculationsAndCharts!$A200+$A$11,IF($C$5,8,0),1,1)) -> 1229900 | D200: =IF(A200>$A$8,"",OFFSET(InputPriceData!C$15,CalculationsAndCharts!$A200+$A$11,IF($C$5,8,0),1,1)) -> 80.989998 | E200: =IF(A200>$A$8,"",OFFSET(InputPriceData!D$15,CalculationsAndCharts!$A200+$A$11,IF($C$5,8,0),1,1)) -> 83.559998 | F200: =IF(A200>$A$8,"",OFFSET(InputPriceData!E$15,CalculationsAndCharts!$A200+$A$11,IF($C$5,8,0),1,1)) -> 80.959999 | G200: =IF(A200>$A$8,"",OFFSET(InputPriceData!F$15,CalculationsAndCharts!$A200+$A$11,IF($C$5,8,0),1,1)) -> 83.559998 | J200: -0.2151422534 | M200: 4.462471297 | N200: -4.677613551 | O200: 3.504919421 | S200: -0.03356075394 | BC200: 1229900
A201: 169 | B201: =IF(A201>$A$8,"",OFFSET(InputPriceData!B$15,$A201+$A$11,0,1,1)) -> 2023-11-01 | C201: =IF(A201>$A$8,"",OFFSET(InputPriceData!G$15,CalculationsAndCharts!$A201+$A$11,IF($C$5,8,0),1,1)) -> 1122100 | D201: =IF(A201>$A$8,"",OFFSET(InputPriceData!C$15,CalculationsAndCharts!$A201+$A$11,IF($C$5,8,0),1,1)) -> 79.970001 | E201: =IF(A201>$A$8,"",OFFSET(InputPriceData!D$15,CalculationsAndCharts!$A201+$A$11,IF($C$5,8,0),1,1)) -> 80.379997 | F201: =IF(A201>$A$8,"",OFFSET(InputPriceData!E$15,CalculationsAndCharts!$A201+$A$11,IF($C$5,8,0),1,1)) -> 79.139999 | G201: =IF(A201>$A$8,"",OFFSET(InputPriceData!F$15,CalculationsAndCharts!$A201+$A$11,IF($C$5,8,0),1,1)) -> 80.300003 | J201: -3.688077313 | M201: 1.539808587 | N201: -5.2278859 | O201: 1.190354372 | S201: -0.9102469572 | BC201: 1122100
A202: 170 | B202: =IF(A202>$A$8,"",OFFSET(InputPriceData!B$15,$A202+$A$11,0,1,1)) -> 2023-10-31 | C202: =IF(A202>$A$8,"",OFFSET(InputPriceData!G$15,CalculationsAndCharts!$A202+$A$11,IF($C$5,8,0),1,1)) -> 704900 | D202: =IF(A202>$A$8,"",OFFSET(InputPriceData!C$15,CalculationsAndCharts!$A202+$A$11,IF($C$5,8,0),1,1)) -> 79.779999 | E202: =IF(A202>$A$8,"",OFFSET(InputPriceData!D$15,CalculationsAndCharts!$A202+$A$11,IF($C$5,8,0),1,1)) -> 79.940002 | F202: =IF(A202>$A$8,"",OFFSET(InputPriceData!E$15,CalculationsAndCharts!$A202+$A$11,IF($C$5,8,0),1,1)) -> 79.120003 | G202: =IF(A202>$A$8,"",OFFSET(InputPriceData!F$15,CalculationsAndCharts!$A202+$A$11,IF($C$5,8,0),1,1)) -> 79.879997 | J202: -4.393377738 | M202: 1.021393798 | N202: -5.414771536 | O202: 0.4674661193 | S202: -1.455418081 | BC202: 704900
A203: 171 | B203: =IF(A203>$A$8,"",OFFSET(InputPriceData!B$15,$A203+$A$11,0,1,1)) -> 2023-10-30 | C203: =IF(A203>$A$8,"",OFFSET(InputPriceData!G$15,CalculationsAndCharts!$A203+$A$11,IF($C$5,8,0),1,1)) -> 2909600 | D203: =IF(A203>$A$8,"",OFFSET(InputPriceData!C$15,CalculationsAndCharts!$A203+$A$11,IF($C$5,8,0),1,1)) -> 79.099998 | E203: =IF(A203>$A$8,"",OFFSET(InputPriceData!D$15,CalculationsAndCharts!$A203+$A$11,IF($C$5,8,0),1,1)) -> 80.059998 | F203: =IF(A203>$A$8,"",OFFSET(InputPriceData!E$15,CalculationsAndCharts!$A203+$A$11,IF($C$5,8,0),1,1)) -> 79.029999 | G203: =IF(A203>$A$8,"",OFFSET(InputPriceData!F$15,CalculationsAndCharts!$A203+$A$11,IF($C$5,8,0),1,1)) -> 79.669998 | J203: -4.907597681 | M203: 0.580566036 | N203: -5.488163717 | O203: -1.039559279 | S203: -1.691882147 | BC203: 2909600
A204: 172 | B204: =IF(A204>$A$8,"",OFFSET(InputPriceData!B$15,$A204+$A$11,0,1,1)) -> 2023-10-27 | C204: =IF(A204>$A$8,"",OFFSET(InputPriceData!G$15,CalculationsAndCharts!$A204+$A$11,IF($C$5,8,0),1,1)) -> 1818200 | D204: =IF(A204>$A$8,"",OFFSET(InputPriceData!C$15,CalculationsAndCharts!$A204+$A$11,IF($C$5,8,0),1,1)) -> 79.970001 | E204: =IF(A204>$A$8,"",OFFSET(InputPriceData!D$15,CalculationsAndCharts!$A204+$A$11,IF($C$5,8,0),1,1)) -> 79.970001 | F204: =IF(A204>$A$8,"",OFFSET(InputPriceData!E$15,CalculationsAndCharts!$A204+$A$11,IF($C$5,8,0),1,1)) -> 77.900002 | G204: =IF(A204>$A$8,"",OFFSET(InputPriceData!F$15,CalculationsAndCharts!$A204+$A$11,IF($C$5,8,0),1,1)) -> 78.190002 | J204: -6.730030951 | M204: -1.405078041 | N204: -5.32495291 | O204: -1.65040886 | S204: -1.629732559 | BD204: 1818200
A205: 173 | B205: =IF(A205>$A$8,"",OFFSET(InputPriceData!B$15,$A205+$A$11,0,1,1)) -> 2023-10-26 | C205: =IF(A205>$A$8,"",OFFSET(InputPriceData!G$15,CalculationsAndCharts!$A205+$A$11,IF($C$5,8,0),1,1)) -> 1048800 | D205: =IF(A205>$A$8,"",OFFSET(InputPriceData!C$15,CalculationsAndCharts!$A205+$A$11,IF($C$5,8,0),1,1)) -> 78.900002 | E205: =IF(A205>$A$8,"",OFFSET(InputPriceData!D$15,CalculationsAndCharts!$A205+$A$11,IF($C$5,8,0),1,1)) -> 80.220001 | F205: =IF(A205>$A$8,"",OFFSET(InputPriceData!E$15,CalculationsAndCharts!$A205+$A$11,IF($C$5,8,0),1,1)) -> 78.709999 | G205: =IF(A205>$A$8,"",OFFSET(InputPriceData!F$15,CalculationsAndCharts!$A205+$A$11,IF($C$5,8,0),1,1)) -> 79.699997 | J205: -5.570473362 | M205: -0.5046346426 | N205: -5.065838719 | O205: -1.756753381 | S205: -1.386412616 | BC205: 1048800
... 1077 more rows

Sheet Follow
A1: Stocks and Indexes I wish to follow
A3: To ease following a stock, enter a Yahoo Finance acceptable symbol in column "A" anywhere below cell "A9".
A4: Thereafter you may doubleclick the cell containing a symbol of interest to initiate data retrieval and charting for that symbol.
A6: =COUNTA(A10:A108) -> 97
A7: Symbol
A8: To | B8: Description | C8: Last Trade as of most recent check
A9: Follow | B9: Name (Symbol) -Market Where Traded (Data Interval) | C9: Date | D9: Time | E9: Open | F9: High | G9: Low | H9: Close | I9: Volume | J9: Change | K9: Retrieved @
A10: A | B10: Agilent Technologies, Inc. (A) -NYSE (Daily) | C10: 2022-10-07 | D10: 16:03:00 | E10: 130.449997 | F10: 130.929993 | G10: 126.959999 | H10: 127.440002 | I10: 1154700 | J10: -4.739991 | K10: 2022-10-08T20:06:52.050
A11: AA | B11: Alcoa Corporation (AA) -NYSE (Daily) | C11: 2023-06-16 | D11: 16:00:00 | E11: 35.970001 | F11: 36.040001 | G11: 34.790001 | H11: 35.619999 | I11: 5811700 | J11: -0.350002 | K11: 2023-06-17T11:43:27
A12: AAL | B12: American Airlines Group Inc. (AAL) -NasdaqGS (Daily) | C12: 2023-06-16 | D12: 16:00:00 | E12: 16.67 | F12: 16.719999 | G12: 16.43 | H12: 16.48 | I12: 22635600 | J12: -0.17 | K12: 2023-06-17T10:36:27.890
A13: AAPL | B13: Apple Inc. (AAPL) -NasdaqGS (Daily) | C13: 2022-10-07 | D13: 16:00:00 | E13: 142.539993 | F13: 143.100006 | G13: 139.449997 | H13: 140.089996 | I13: 85859100 | J13: -5.339997 | K13: 2022-10-08T20:07:45.780
A14: ADM | B14: Archer-Daniels-Midland Company (ADM) -NYSE (Daily) | C14: 2023-06-16 | D14: 16:00:00 | E14: 74.900002 | F14: 76 | G14: 74.470001 | H14: 75.480003 | I14: 5529600 | J14: 0.920005 | K14: 2023-06-17T11:43:58.380
A15: ADBE | B15: Adobe Inc. (ADBE) -NasdaqGS (Daily) | C15: 2023-06-16 | D15: 16:00:00 | E15: 518.22998 | F15: 518.73999 | G15: 494.619995 | H15: 495.179993 | I15: 13335800 | J15: 4.269989 | K15: 2023-06-17T11:42:39.820 | L15: [X]
A16: ALGN | B16: Align Technology, Inc. (ALGN) -NasdaqGS (Daily) | C16: 2023-06-16 | D16: 16:00:00 | E16: 334.950012 | F16: 335.869995 | G16: 326.519989 | H16: 330.290009 | I16: 1258300 | J16: -2.899993 | K16: 2023-06-17T10:47:06.620
A17: AMC | B17: AMC Entertainment Holdings, Inc. (AMC) -NYSE (Daily) | C17: 2023-06-16 | D17: 16:00:00 | E17: 4.82 | F17: 4.83 | G17: 4.67 | H17: 4.7 | I17: 18483600 | J17: -0.06 | K17: 2023-06-17T10:46:36.020
A18: AMD | B18: Advanced Micro Devices, Inc. (AMD) -NasdaqGS (Daily) | C18: 2023-06-16 | D18: 16:00:00 | E18: 125.82 | F18: 125.849998 | G18: 119.900002 | H18: 120.080002 | I18: 81846900 | J18: -4.159996 | K18: 2023-06-17T10:42:05.850
A19: AR | B19: Antero Resources Corporation (AR) -NYSE (Daily) | C19: 2024-07-05 | D19: 2:42 PM EDT | E19: 33.139999 | F19: 33.330002 | G19: 32.435001 | H19: 32.490002 | I19: 760195 | J19: -0.809997 | K19: 2024-07-05T14:42:57.090 | L19: [X]
A20: BA | B20: The Boeing Company (BA) -NYSE (Daily) | C20: 2023-06-16 | D20: 16:00:00 | E20: 220.720001 | F20: 223.869995 | G20: 218.979996 | H20: 219.990005 | I20: 7799500 | J20: 0.580001 | K20: 2023-06-17T10:43:22.080
A21: BSX | B21: Boston Scientific Corporation (BSX) -NYSE (Daily) | C21: 2023-06-16 | D21: 16:00:00 | E21: 54.509998 | F21: 54.689999 | G21: 54.049999 | H21: 54.32 | I21: 13022800 | J21: 0.34 | K21: 2023-06-17T10:45:23.450
A22: CASY | B22: Casey's General Stores, Inc. (CASY) -NasdaqGS (Daily) | C22: 2023-06-16 | D22: 16:00:00 | E22: 223.339996 | F22: 223.449997 | G22: 219.070007 | H22: 219.619995 | I22: 388500 | J22: -2.960007 | K22: 2023-06-17T10:46:01.080
A23: CAT | B23: Caterpillar Inc. (CAT) -NYSE (Daily) | C23: 2023-09-15 | D23: 11:10:00 | E23: 281.869995 | F23: 281.869995 | G23: 277.769989 | H23: 278.117493 | I23: 1524594 | J23: -4.442505 | K23: 2023-09-15T11:10:38.830
A24: COST | B24: Costco Wholesale Corporation (COST) -NasdaqGS (Daily) | C24: 2023-03-06 | D24: 16:00:00 | E24: 476.519989 | F24: 488.817413 | G24: 475.609985 | H24: 483.079987 | I24: 3005250 | J24: 7.819977 | K24: 2023-03-06T21:04:51.590
A25: CSCO | B25: Cisco Systems, Inc. (CSCO) -NasdaqGS (Daily) | C25: 2023-06-16 | D25: 16:00:00 | E25: 52.200001 | F25: 52.41 | G25: 51.93 | H25: 52.07 | I25: 37133300 | J25: 0.14 | K25: 2023-06-17T10:48:11.650
A26: CVS | B26: CVS Health Corporation (CVS) -NYSE (Daily) | C26: 2023-06-16 | D26: 16:00:00 | E26: 69.290001 | F26: 69.589996 | G26: 67.489998 | H26: 67.720001 | I26: 18202800 | J26: -1.779999 | K26: 2023-06-17T11:41:13.330
A27: DELL | B27: Dell Technologies Inc. (DELL) -NYSE (Daily) | C27: 2024-07-05 | D27: 2:41 PM EDT | E27: 142.199997 | F27: 142.759995 | G27: 138.309998 | H27: 139.410004 | I27: 6329713 | J27: -3.259994 | K27: 2024-07-05T14:41:21.880
A28: DG | B28: Dollar General Corporation (DG) -NYSE (Daily) | C28: 2023-06-16 | D28: 16:03:00 | E28: 163.210007 | F28: 164.649994 | G28: 161.759995 | H28: 164.320007 | I28: 4781100 | J28: 0.640014 | K28: 2023-06-17T10:49:14.920
A29: DIS | B29: The Walt Disney Company (DIS) -NYSE (Daily) | C29: 2023-06-16 | D29: 16:03:00 | E29: 92.879997 | F29: 92.970001 | G29: 90.860001 | H29: 91.32 | I29: 22665000 | J29: -1.620002 | K29: 2023-06-17T10:49:55.860
A30: DLTR | B30: Dollar Tree, Inc. (DLTR) -NasdaqGS (Daily) | C30: 2023-06-16 | D30: 16:00:00 | E30: 139.070007 | F30: 139.070007 | G30: 136.089996 | H30: 136.220001 | I30: 2592600 | J30: -2.220001 | K30: 2023-06-17T10:50:23.460
A31: EPD | B31: Enterprise Products Partners L.P. (EPD) -NYSE (Daily) | C31: 2023-06-16 | D31: 16:00:00 | E31: 26.389999 | F31: 26.48 | G31: 26.23 | H31: 26.389999 | I31: 3749200 | J31: 0.069999 | K31: 2023-06-17T10:51:07.130
A32: F | B32: Ford Motor Company (F) -NYSE (Daily) | C32: 2023-06-16 | D32: 16:00:00 | E32: 14.52 | F32: 14.61 | G32: 14.32 | H32: 14.42 | I32: 75366700 | J32: -0.03 | K32: 2023-06-17T11:35:12.500 | L32: [X]
A33: FAS | B33: Direxion Daily Financial Bull 3X Shares (FAS) -NYSEArca (Daily) | C33: 2022-10-07 | D33: 16:00:00 | E33: 59.529999 | F33: 59.849998 | G33: 55.689999 | H33: 56.790001 | I33: 1488400 | J33: -4.290001 | K33: 2022-10-08T20:13:13.080
A34: GSK | B34: GSK plc (GSK) -NYSE (Daily) | C34: 2022-10-07 | D34: 16:00:00 | E34: 30.190001 | F34: 30.42 | G34: 30.040001 | H34: 30.110001 | I34: 5486300 | J34: 0.110001 | K34: 2022-10-08T20:13:33.450
A35: GDX | B35: VanEck Gold Miners ETF (GDX) -NYSEArca (Daily) | C35: 2023-06-16 | D35: 16:00:00 | E35: 31.200001 | F35: 31.74 | G35: 30.9 | H35: 31.389999 | I35: 19283100 | J35: 0.389999 | K35: 2023-06-17T10:52:54.260
A36: GILD | B36: Gilead Sciences, Inc. (GILD) -NasdaqGS (Daily) | C36: 2022-10-07 | D36: 16:00:00 | E36: 64.639999 | F36: 65.099998 | G36: 63.959999 | H36: 64.290001 | I36: 6722600 | J36: -0.659996 | K36: 2022-10-08T20:14:12.060
A37: GOOG | B37: Alphabet Inc. (GOOG) -NasdaqGS (Daily) | C37: 2023-06-05 | D37: 14:47:00 | E37: 124.610001 | F37: 127.987701 | G37: 124.389999 | H37: 126.32 | I37: 17012908 | J37: 1.089997 | K37: 2023-06-05T14:47:20.460
A38: HD | B38: The Home Depot, Inc. (HD) -NYSE (Daily) | C38: 2023-06-16 | D38: 16:00:00 | E38: 304.339996 | F38: 305.980011 | G38: 300.140015 | H38: 300.380005 | I38: 10808400 | J38: -1.639984 | K38: 2023-06-17T11:36:54.610
A39: HSY | B39: The Hershey Company (HSY) -NYSE (Daily) | C39: 2023-06-16 | D39: 16:00:00 | E39: 262 | F39: 263.290009 | G39: 260.269989 | H39: 260.720001 | I39: 1577100 | J39: -0.139984 | K39: 2023-06-17T10:54:48.190
A40: HTLD | B40: Heartland Express, Inc. (HTLD) -NasdaqGS (Daily) | C40: 2023-06-16 | D40: 16:00:00 | E40: 16.440001 | F40: 16.440001 | G40: 16.139999 | H40: 16.290001 | I40: 738100 | J40: -0.039999 | K40: 2023-06-17T11:04:51.680
A41: IBM | B41: International Business Machines Corporation (IBM) -NYSE (Daily) | C41: 2023-06-16 | D41: 16:00:00 | E41: 139.229996 | F41: 139.470001 | G41: 137.470001 | H41: 137.479996 | I41: 7473100 | J41: -0.919998 | K41: 2023-06-17T11:05:53.630 | L41: [X]
A42: ILMN | B42: Illumina, Inc. (ILMN) -NasdaqGS (Daily) | C42: 2023-06-16 | D42: 16:00:00 | E42: 212.100006 | F42: 212.490005 | G42: 205 | H42: 205.869995 | I42: 2443300 | J42: -4.070007 | K42: 2023-06-17T10:19:57.970
A43: INTC | B43: Intel Corporation (INTC) -NasdaqGS (Daily) | C43: 2023-06-16 | D43: 16:00:00 | E43: 36.360001 | F43: 36.799999 | G43: 35.599998 | H43: 36.369999 | I43: 110188500 | J43: 0.549999 | K43: 2023-06-17T11:35:58.390 | L43: [X]
A44: JNJ | B44: Johnson & Johnson (JNJ) -NYSE (Daily) | C44: 2022-10-07 | D44: 16:00:00 | E44: 161.770004 | F44: 162.220001 | G44: 159.169998 | H44: 160.199997 | I44: 6363000 | J44: -1.710007 | K44: 2022-10-08T20:16:52.840
A45: KO | B45: The Coca-Cola Company (KO) -NYSE (Daily) | C45: 2023-06-16 | D45: 16:00:00 | E45: 61.599998 | F45: 62.169998 | G45: 61.48 | H45: 61.669998 | I45: 26735800 | J45: 0.439998 | K45: 2023-06-17T11:20:04.690
A46: LOW | B46: Lowe's Companies, Inc. (LOW) -NYSE (Daily) | C46: 2023-06-16 | D46: 16:02:00 | E46: 219.339996 | F46: 219.490005 | G46: 216.850006 | H46: 217.080002 | I46: 6874300 | J46: -1.849991 | K46: 2023-06-17T11:20:37.350 | L46: [X]
A47: LMT | B47: Lockheed Martin Corporation (LMT) -NYSE (Daily) | C47: 2023-06-16 | D47: 16:01:00 | E47: 457.730011 | F47: 461.769989 | G47: 456.600006 | H47: 459.170013 | I47: 1642800 | J47: 3.220001 | K47: 2023-06-17T11:23:13.320
A48: M | B48: Macy's, Inc. (M) -NYSE (Daily) | C48: 2023-06-16 | D48: 16:00:00 | E48: 16.17 | F48: 16.34 | G48: 15.8 | H48: 15.85 | I48: 17840800 | J48: -0.14 | K48: 2023-06-17T11:24:02.180
A49: MCD | B49: McDonald's Corporation (MCD) -NYSE (Daily) | C49: 2023-06-16 | D49: 16:00:00 | E49: 294.51001 | F49: 296.570007 | G49: 293.140015 | H49: 293.700012 | I49: 4890400 | J49: 1.090027 | K49: 2023-06-17T10:18:27.960
A50: MDT | B50: Medtronic plc (MDT) -NYSE (Daily) | C50: 2023-06-16 | D50: 16:00:00 | E50: 88.279999 | F50: 89.720001 | G50: 88.279999 | H50: 89.150002 | I50: 9108400 | J50: 0.900002 | K50: 2023-06-17T11:37:39.300
A51: META | B51: Meta Platforms, Inc. (META) -NasdaqGS (Daily) | C51: 2022-10-07 | D51: 16:00:00 | E51: 136.759995 | F51: 138.289993 | G51: 132.440002 | H51: 133.449997 | I51: 33179700 | J51: -5.62001 | K51: 2022-10-08T20:19:13.140
A52: MGM | B52: MGM Resorts International (MGM) -NYSE (Daily) | C52: 2023-06-16 | D52: 16:00:00 | E52: 43.68 | F52: 43.75 | G52: 42.43 | H52: 42.639999 | I52: 7929700 | J52: -1.080002 | K52: 2023-06-17T11:24:42.990
A53: MO | B53: Altria Group, Inc. (MO) -NYSE (Daily) | C53: 2023-06-16 | D53: 16:03:00 | E53: 44.220001 | F53: 44.27 | G53: 43.919998 | H53: 44.07 | I53: 13661200 | J53: -0.080002 | K53: 2023-06-17T11:25:41.960
A54: MRNA | B54: Moderna, Inc. (MRNA) -NasdaqGS (Daily) | C54: 2022-10-07 | D54: 16:00:00 | E54: 121.5 | F54: 123.360001 | G54: 118.459999 | H54: 119.32 | I54: 3149000 | J54: -5.830002 | K54: 2022-10-08T20:20:13.090
A55: MSFT | B55: Microsoft Corporation (MSFT) -NasdaqGS (Daily) | C55: 2023-06-16 | D55: 16:00:00 | E55: 351.320007 | F55: 351.470001 | G55: 341.950012 | H55: 342.329987 | I55: 46533600 | J55: -5.770019 | K55: 2023-06-17T11:26:05.540 | L55: [X]
A56: MU | B56: Micron Technology, Inc. (MU) -NasdaqGS (Daily) | C56: 2024-06-20 | D56: 4:00 PM EDT | E56: 157.104996 | F56: 157.289993 | G56: 142.910004 | H56: 144.190002 | I56: 40937924 | J56: -9.259995 | K56: 2024-06-20T18:09:53.130
A57: NFLX | B57: Netflix, Inc. (NFLX) -NasdaqGS (Daily) | C57: 2022-10-07 | D57: 16:00:00 | E57: 235.770004 | F57: 237.330002 | G57: 224.279999 | H57: 224.75 | I57: 9784800 | J57: -15.270004 | K57: 2022-10-08T20:20:51.730
A58: NUGT | B58: Direxion Daily Gold Miners Index Bull 2X Shares (NUGT) -NYSEArca (Daily) | C58: 2023-04-18 | D58: 11:15:00 | E58: 47.110001 | F58: 49.1688 | G58: 47 | H58: 48.517601 | I58: 939091 | J58: 1.647602 | K58: 2023-04-18T11:16:03.120
A59: NVS | B59: Novartis AG (NVS) -NYSE (Daily) | C59: 2023-06-16 | D59: 16:00:00 | E59: 102.43 | F59: 102.730003 | G59: 101.540001 | H59: 101.830002 | I59: 2683400 | J59: 0.440003 | K59: 2023-06-17T11:40:12.900
A60: NVDA | B60: NVIDIA Corporation (NVDA) -NasdaqGS (Daily) | C60: 2024-06-20 | D60: 4:00 PM EDT | E60: 139.850006 | F60: 140.759995 | G60: 129.529999 | H60: 130.779999 | I60: 504887012 | J60: -4.800003 | K60: 2024-06-20T18:09:20.250
A61: NWL | B61: Newell Brands Inc. (NWL) -NasdaqGS (Daily) | C61: 2022-10-07 | D61: 16:00:00 | E61: 14.18 | F61: 14.25 | G61: 13.89 | H61: 13.96 | I61: 2832700 | J61: -0.42 | K61: 2022-10-08T20:22:10.460
A62: PEP | B62: PepsiCo, Inc. (PEP) -NasdaqGS (Daily) | C62: 2023-09-15 | D62: 11:05:00 | E62: 181.410004 | F62: 181.820007 | G62: 180.210007 | H62: 180.289993 | I62: 2715164 | J62: -0.940003 | K62: 2023-09-15T11:06:06.970
A63: PFE | B63: Pfizer Inc. (PFE) -NYSE (Daily) | C63: 2022-10-07 | D63: 16:03:00 | E63: 43.049999 | F63: 43.049999 | G63: 41.919998 | H63: 42.32 | I63: 20093100 | J63: -0.77 | K63: 2022-10-08T20:22:31.070
A64: PRU | B64: Prudential Financial, Inc. (PRU) -NYSE (Daily) | C64: 2023-06-16 | D64: 16:00:00 | E64: 86.809998 | F64: 87.470001 | G64: 86.309998 | H64: 87.029999 | I64: 3976700 | J64: 0.269997 | K64: 2023-06-17T11:27:17.570
A65: PSA | B65: Public Storage (PSA) -NYSE (Daily) | C65: 2023-03-08 | D65: 13:52:00 | E65: 301.850006 | F65: 305.119995 | G65: 300.910004 | H65: 302.279999 | I65: 329019 | J65: -0.070007 | K65: 2023-03-08T13:53:27.260
A66: PSEC | B66: Prospect Capital Corporation (PSEC) -NasdaqGS (Daily) | C66: 2023-06-16 | D66: 16:00:00 | E66: 6.28 | F66: 6.3 | G66: 6.22 | H66: 6.23 | I66: 1790300 | J66: -0.05 | K66: 2023-06-17T11:34:40.180
A67: RPM | B67: RPM International Inc. (RPM) -NYSE (Daily) | C67: 2023-05-19 | D67: 16:00:00 | E67: 81.349998 | F67: 81.449997 | G67: 79.650002 | H67: 80.080002 | I67: 569600 | J67: -0.720001 | K67: 2023-05-19T21:39:10.650
A68: RY | B68: Royal Bank of Canada (RY) -NYSE (Daily) | C68: 2024-07-05 | D68: 3:07 PM EDT | E68: 110 | F68: 110.129997 | G68: 109.025002 | H68: 109.235397 | I68: 324453 | J68: 0.2154 | K68: 2024-07-05T15:07:53.830 | L68: [X]
A69: SCHW | B69: The Charles Schwab Corporation (SCHW) -NYSE (Daily) | C69: 2023-06-16 | D69: 16:00:00 | E69: 55.889999 | F69: 55.889999 | G69: 54.27 | H69: 54.400002 | I69: 19691000 | J69: -1.109996 | K69: 2023-06-17T11:34:11.580
A70: SPR | B70: Spirit AeroSystems Holdings, Inc. (SPR) -NYSE (Daily) | C70: 2022-10-07 | D70: 16:00:00 | E70: 24.26 | F70: 24.700001 | G70: 23.559999 | H70: 24.68 | I70: 1823200 | J70: -0.06 | K70: 2022-10-08T20:24:37.430
A71: SQ | B71: Block, Inc. (SQ) -NYSE (Daily) | C71: 2024-02-02 | D71: 16:00:00 | E71: 66.419998 | F71: 68.43 | G71: 65.290001 | H71: 67.879997 | I71: 9372100 | J71: 1.209999 | K71: 2024-02-04T17:44:52.090
A72: SWKS | B72: Skyworks Solutions, Inc. (SWKS) -NasdaqGS (Daily) | C72: 2022-10-07 | D72: 16:00:00 | E72: 90.18 | F72: 90.400002 | G72: 86.949997 | H72: 87.199997 | I72: 2592400 | J72: -5.410004 | K72: 2022-10-08T20:25:16.990
A73: TOL | B73: Toll Brothers, Inc. (TOL) -NYSE (Daily) | C73: 2023-06-08 | D73: 14:21:00 | E73: 73.739998 | F73: 74.809998 | G73: 73.379997 | H73: 74.334999 | I73: 1031567 | J73: 0.394997 | K73: 2023-06-08T14:22:29.470
A74: TSLA | B74: Tesla, Inc. (TSLA) -NasdaqGS (Daily) | C74: 2022-10-07 | D74: 16:00:00 | E74: 233.940002 | F74: 234.570007 | G74: 222.020004 | H74: 223.070007 | I74: 83592300 | J74: -15.059998 | K74: 2022-10-08T20:25:55.990
A75: TSN | B75: Tyson Foods, Inc. (TSN) -NYSE (Daily) | C75: 2023-06-16 | D75: 16:00:00 | E75: 50.360001 | F75: 50.490002 | G75: 49.959999 | H75: 50.389999 | I75: 4116300 | J75: 0.18 | K75: 2023-06-17T11:30:51.590
A76: TXN | B76: Texas Instruments Incorporated (TXN) -NasdaqGS (Daily) | C76: 2023-06-16 | D76: 16:00:00 | E76: 179.449997 | F76: 179.830002 | G76: 176.259995 | H76: 176.759995 | I76: 10374500 | J76: -1.330001 | K76: 2023-06-17T11:30:24.380
A77: UNP | B77: Union Pacific Corporation (UNP) -NYSE (Daily) | C77: 2023-06-16 | D77: 16:00:00 | E77: 206.369995 | F77: 206.899994 | G77: 204.479996 | H77: 204.669998 | I77: 4139800 | J77: -1.25 | K77: 2023-06-17T11:30:02.020
A78: VZ | B78: Verizon Communications Inc. (VZ) -NYSE (Daily) | C78: 2024-02-02 | D78: 16:00:00 | E78: 42.200001 | F78: 42.470001 | G78: 41.830002 | H78: 42.130001 | I78: 21546500 | J78: -0.360001 | K78: 2024-02-04T17:45:25.020
A79: WBA | B79: Walgreens Boots Alliance, Inc. (WBA) -NasdaqGS (Daily) | C79: 2023-06-16 | D79: 16:00:00 | E79: 31.83 | F79: 32.810001 | G79: 31.73 | H79: 32.669998 | I79: 16018300 | J79: 0.649998 | K79: 2023-06-17T11:29:06.980
A80: WMT | B80: Walmart Inc. (WMT) -NYSE (Daily) | C80: 2023-06-16 | D80: 16:00:00 | E80: 158.080002 | F80: 158.149994 | G80: 155.279999 | H80: 155.529999 | I80: 11556700 | J80: -2.199997 | K80: 2023-06-17T11:28:37.380
A82: ^AEX | B82: AEX-Index (^AEX) -Amsterdam (Daily) | C82: 2022-10-07 | D82: 18:05:00 | E82: 655.869995 | F82: 660.320007 | G82: 646.809998 | H82: 647.109985 | I82: 68900 | J82: -14.27002 | K82: 2022-10-08T20:27:56.300
A83: ^AORD | B83: ALL ORDINARIES (^AORD) -ASX (Daily) | C83: 2023-03-03 | D83: 16:46:00 | E83: 7460 | F83: 7493.299805 | G83: 7460 | H83: 7484 | I83: 915646200 | J83: 24 | K83: 2023-03-05T16:26:16.030
A84: ^AXJO | B84: S&P/ASX 200 (^AXJO) -ASX (Daily) | C84: 2023-03-15 | D84: 16:44:00 | E84: 7008.899902 | F84: 7068.899902 | G84: 7008.899902 | H84: 7068.899902 | I84: 0 | J84: 60 | K84: 2023-03-15T11:43:59.040
A85: DIA | B85: SPDR Dow Jones Industrial Average ETF Trust (DIA) -NYSEArca (Daily) | C85: 2022-10-07 | D85: 16:00:00 | E85: 296.730011 | F85: 296.890015 | G85: 291.440002 | H85: 292.970001 | I85: 3026900 | J85: -6.26001 | K85: 2022-10-08T20:28:35.330
A86: ^DJI | B86: Dow Jones Industrial Average (^DJI) -DJI (Daily) | C86: 2022-10-07 | D86: 17:28:00 | E86: 29685.26953 | F86: 29685.26953 | G86: 29142.66016 | H86: 29296.78906 | I86: 367950000 | J86: -630.15039 | K86: 2022-10-08T20:28:54.910
A87: ^FTSE | B87: FTSE 100 (^FTSE) -FTSE Index (Daily) | C87: 2022-10-07 | D87: 16:35:00 | E87: 6997.299805 | F87: 7022.399902 | G87: 6960.399902 | H87: 6991.100098 | I87: 807923600 | J87: -6.199707 | K87: 2022-10-08T20:29:14.340
A88: ^GSPC | B88: S&P 500 (^GSPC) -SNP (Daily) | C88: 2023-02-10 | D88: 17:04:00 | E88: 4068.919922 | F88: 4094.360107 | G88: 4060.790039 | H88: 4090.459961 | I88: 3891520000 | J88: 8.959961 | K88: 2023-02-12T10:01:40.360
A89: ^HSI | B89: HANG SENG INDEX (^HSI) -HKSE (Daily) | C89: 2024-06-18 | D89: 4:08 PM HKT | E89: 17961.89062 | F89: 18043.48047 | G89: 17854.78906 | H89: 17915.55078 | I89: 0 | J89: -20.56836 | K89: 2024-06-18T10:22:28.410
A90: ^MID | B90: S&P MID CAP 400 INDEX (^MID) -NYSE (Daily) | C90: 2022-10-07 | D90: 16:04:00 | E90: 2325.449951 | F90: 2325.449951 | G90: 2255.810059 | H90: 2266.889893 | I90: 0 | J90: -58.560058 | K90: 2022-10-08T20:30:12.560
A91: ^NDX | B91: NASDAQ 100 (^NDX) -Nasdaq GIDS (Daily) | C91: 2023-09-15 | D91: 12:10:00 | E91: 15425.90039 | F91: 15435.45019 | G91: 15227.21777 | H91: 15258.62207 | I91: 507836217 | J91: -215.267578 | K91: 2023-09-15T12:11:00.300
A92: ^NYA | B92: NYSE COMPOSITE (DJ) (^NYA) -NYSE (Daily) | C92: 2022-10-07 | D92: 16:20:00 | E92: 14087.37988 | F92: 14087.37988 | G92: 13727.79004 | H92: 13798.25977 | I92: 4449660000 | J92: -289.120117 | K92: 2022-10-08T20:30:51.020
A93: ^OEX | B93: S&P 100 INDEX (^OEX) -Chicago Options (Daily) | C93: 2022-10-07 | D93: 17:28:00 | E93: 1674.359985 | F93: 1674.359985 | G93: 1634.599976 | H93: 1642.890015 | I93: 4449660000 | J93: -51.380005 | K93: 2022-10-08T20:31:10.140
A94: RSP | B94: Invesco S&P 500 Equal Weight ETF (RSP) -NYSEArca (Daily) | C94: 2022-10-07 | D94: 16:00:00 | E94: 132.009995 | F94: 132.199997 | G94: 129.389999 | H94: 130.149994 | I94: 3197700 | J94: -3.160004 | K94: 2022-10-08T20:31:31.900
A95: ^RUT | B95: Russell 2000 (^RUT) -Chicago Options (Daily) | C95: 2022-10-07 | D95: 16:30:00 | E95: 1734.650024 | F95: 1734.920044 | G95: 1694.959961 | H95: 1702.150024 | I95: 4449660000 | J95: -50.359986 | K95: 2022-10-08T20:31:50.530
A96: ^VIX | B96: CBOE Volatility Index (^VIX) -Chicago Options (Daily) | C96: 2022-10-07 | D96: 16:15:00 | E96: 30.370001 | F96: 32.02 | G96: 29.879999 | H96: 31.360001 | I96: 0 | J96: 0.840001 | K96: 2022-10-08T20:32:09.750
A97: IWM | B97: iShares Russell 2000 ETF (IWM) -NYSEArca (Daily) | C97: 2022-10-07 | D97: 16:00:00 | E97: 171.929993 | F97: 172.470001 | G97: 167.919998 | H97: 168.610001 | I97: 26504500 | J97: -5.11 | K97: 2022-10-08T20:32:29.720
A98: QQQ | B98: Invesco QQQ Trust (QQQ) -NasdaqGM (Daily) | C98: 2024-02-02 | D98: 16:00:00 | E98: 423.799988 | F98: 430.23999 | G98: 422.790009 | H98: 429.01001 | I98: 59582300 | J98: 7.130005 | K98: 2024-02-04T13:47:12.870
A99: XLE | B99: Energy Select Sector SPDR Fund (XLE) -NYSEArca (Daily) | C99: 2022-10-07 | D99: 16:00:00 | E99: 82.610001 | F99: 83.540001 | G99: 81.209999 | H99: 81.800003 | I99: 28449900 | J99: -0.639999 | K99: 2022-10-08T20:33:10.770
A100: SOXL | B100: Direxion Daily Semiconductor Bull 3X Shares (SOXL) -NYSEArca (Daily) | C100: 2022-10-07 | D100: 16:00:00 | E100: 10.18 | F100: 10.28 | G100: 9 | H100: 9.21 | I100: 134291600 | J100: -1.98 | K100: 2022-10-08T20:33:31.210
A101: SPY | B101: SPDR S&P 500 ETF Trust (SPY) -NYSEArca (Daily) | C101: 2024-06-04 | D101: 4:00 PM EDT | E101: 526.460022 | F101: 529.150024 | G101: 524.960022 | H101: 528.390015 | I101: 31377520 | J101: 0.590027 | K101: 2024-06-04T17:07:50.990
A103: ACAD | B103: ACADIA Pharmaceuticals Inc. (ACAD) -NasdaqGS (Daily) | C103: 2022-10-07 | D103: 16:00:00 | E103: 18.219999 | F103: 18.27 | G103: 16.030001 | H103: 16.290001 | I103: 2891100 | J103: -2.339998 | K103: 2022-10-08T20:34:10.690
A104: CLDX | B104: Celldex Therapeutics, Inc. (CLDX) -NasdaqCM (Daily) | C104: 2022-10-07 | D104: 16:00:00 | E104: 28.530001 | F104: 29.16 | G104: 28.01 | H104: 28.07 | I104: 426400 | J104: -0.91 | K104: 2022-10-08T20:34:27.670
A105: ICPT | B105: Intercept Pharmaceuticals, Inc. (ICPT) -NasdaqGS (Daily) | C105: 2022-10-07 | D105: 16:00:00 | E105: 13.97 | F105: 14.06 | G105: 13.64 | H105: 13.66 | I105: 691500 | J105: -0.28 | K105: 2022-10-08T20:34:46.490
A106: INO | B106: Inovio Pharmaceuticals, Inc. (INO) -NasdaqGS (Daily) | C106: 2022-10-07 | D106: 16:00:00 | E106: 1.69 | F106: 1.7 | G106: 1.6 | H106: 1.61 | I106: 4513100 | J106: -0.13 | K106: 2022-10-08T20:35:05.980
A107: LCI | B107: Lannett Company, Inc. (LCI) -NYSE (Daily) | C107: 2022-10-07 | D107: 16:00:00 | E107: 0.48 | F107: 0.493 | G107: 0.471 | H107: 0.471 | I107: 105400 | J107: -0.011 | K107: 2022-10-08T20:35:25.780
A108: PBYI | B108: Puma Biotechnology, Inc. (PBYI) -NasdaqGS (Daily) | C108: 2022-10-07 | D108: 16:00:00 | E108: 2.47 | F108: 2.5 | G108: 2.32 | H108: 2.37 | I108: 123700 | J108: -0.15 | K108: 2022-10-08T20:35:44.300

Sheet April 15 Repairs
A1: Attention T-Tips Spreadsheet Users!
A3: This spreadsheet incorporates Visual Basic (VBA) code that is capable of automatically restoring functionality to any of the Traders Tip
A4: spreadsheets from May of 2021 (RateOfChangeWithBands.xlsm), to May of 2024 (EhlersUltimateChannelsAndBands.xlsm).
A5: Note: Attempting to use this on Traders Tips from before May of 2021 will most likely fail with a message of one sort or another.
A7: The enclosed corrections include, but are not limited to, failures in recent Traders Tip spreadsheets that look like this:
A24: This most recent failure is due to the folks at Yahoo Finance changing the entire design of, and the HTML coding for, their Stock Summary web page.
A25: Yahoo Finance certainly free to do that After all, it is their web page!
A27: It just takes a bit of time for me to catch up to their changes.
A29: The newly designed Yahoo Finance "Stock Summary "web page went into use online on, or shortly before, April 15, 2024.
A31: Note: The necessary adjustments have already been made to the spreadsheet you have open before you.
A32: This a normal, fully functional, Traders Tip spreadsheet. (See the other tabs)
A33: It just happens to include the capability to restore functionality to a subset of relatively recent Traders Tip spreadsheets.
A35: Steps to repair other Traders Tips spreadsheets:
A36: Before you do anything!!
A38: Please! Read this entire page!
A40: Check that your EXCEL options conform to the requirements section near the bottom of this page!
A42: 1. Select a TARGET spreadsheet to repair. Please Do Not open it yet.
A44: 2. Backup your Target? -- Yes you can download a fresh copy from the web site if something goes wrong.
A45: But… You should ask yourself:
A46: "Have I have made any changes to my target spreadsheet that I would not like to loose?"
A47: If so, you should make a backup copy now in case this fix process breaks your target in the process of making the necessary changes.
A49: 3. When you click the "April 15 Repair" button below, a file explorer window will open and prompt you to
A50: navigate to, select, and then click "Open" for your target spreadsheet.
A52: 4. Click this "April 15 Repair" button to start the process.
A58: 5. When repairs have been completed, A message will be displayed that lets you choose:
A59: A. " OK" - To automatically save your repaired spreadsheet back to the same directory, using the same target name appended with a suffix of "_CorrectedFor_2024APR15_Problem".
A60: Note: The "OK" choice will overwrite a previously fixed version of the same spreadsheet with out any warnings.
A61: or
A62: B. "Cancel" - To do nothing. With this choice, you should:
A63: Alt-Tab to the corrected spread sheet and then:
A64: manually "Save" the corrected spreadsheet back to the original directory and name,
A65: or
A66: manually "Save As" to your choice of directory and name.
A68: 6. Close the now "Repaired" and "Saved" spreadsheet
A70: 7. Repeat steps 1 thru 6 for as many spreadsheets as you wish.
A72: 8. Close this spreadsheet.
A73: Or
A74: Select one of the other tabs on this spreadsheet to use this spreadsheet as originally designed. That is, to demonstrate stuff from the corresponding Traders Tip article.
A76: 9. When all EXCEL spreadsheets have been closed, you may open any of the "Repaired" target spreadsheets to
A77: test them as you see fit.
A79: Two Requirements:
A81: 1. The repair process provided here requires that the VBA environment have a reference to
A82: "Microsoft Visual Basic for Applications Extensibility 5.3"
A83: This reference provides access to the VBA Project Object Model which contains the
A84: routines that may be called by VBA code to modify other VBA code.
A86: References are generally set for, and are kept track of, by each individual workbook.
A87: So this reference should already be set for this workbook.
A89: If this reference was not inherited, then when you click the "April 15 Repair" button
A90: the VBA Editor window will open and display the following error.
A107: Click "OK" to close the messsage.
A109: You will need to add the reference:
A110: At the top of the screen click on "Tools". Then in the Tools dropdown click on "References".
A119: The References dialog will display.
A120: Mine looks like this. Note the a check next to the entry for:
A121: "Microsoft Visual Basic for Applications Extensibility 5.3"
A138: If you do not have this entry in the list of checked entries, you will need to scroll down to
A139: find it and then check the box next to it. Then click "OK" to close the dialog.
A156: Then close the VBA Editor window.
A158: Save this workbook to lock in the newly added Reference
A160: 2. You will also need to get into the EXCEL OPTIONS dialog to grant the EXCEL VBA engine specific permission to use
A161: these VBA code modifying routines.
A163: Allowing EXCEL to use VBA macros is a security concern in many circles. But that is what all of my spreadsheets do.
A165: This next level, allowing VBA code to modify VBA code "On The Fly" is even more of a concern in those same circles.
A166: Particularly as both of these permissions are maintained globally at the EXCEL application level.
A167: Once set, these permissions apply to every workbook you open.
A169: If you get the following error when you click the "April 15 Repair" button, you will need to adjust your EXCEL Trust Center Options.
A186: Click "End" to close the error message and then close the VBA editor window.
A188: Steps to adjust your Trust Center options
A189: a. In the upper left of an EXCEL worksheet window, click "File".
A190: b. at the bottom left click Options
A191: c. at the bottom left click Trust Center
A192: d. at the far right click Trust Center Settings
A193: e. at the left, near the middle, click Macro Settings
A194: f. In the Macros Settings form:
A196: - Under the heading "Macro Settings" I have the selected the radio button next to
A197: Disable VBA macros with notification
A198: You may have selected something else. If VBA macros work OK for you, no change should be necessary.
A200: - Under the heading "Developer Macro Settings", check the box next to
A201: "Trust access to the VBA project object model"
A202: Depending on your comfort level, you may want to turn this off (Uncheck) after you have fixed your workbooks.
A204: g. Click OK a couple of times to get back to the main EXCEL window showing this tab.
